Workbook

Sheet ORÇAMENTO
A11: TODOS OS VALORES ESTÃO NA UNIDADE MONETÁRIA REAL
A12: ITEM | B12: SERVIÇO | C12: UN | D12: QUANTI. | E12: VALOR UNI. | F12: VALOR TOTAL | G12: CÓDIGO | H12: FONTE | J12: Texto original na referência utilizada | K12: Valor sem BDI | L12: Valor com BDI | M12: Un. | N12: Linha na tabela de referência | P12: BDI
A13: 1 | B13: =QUANT!B13 -> SERVIÇOS INICIAIS | E13: ∑ | F13: =SUBTOTAL(9,F14:F14) -> 1131.75 | I13: =F13/$F$175 -> 0.009750388336
A14: 1.1 | B14: =QUANT!B14 -> Placa de Obra em Chapa de Aço Galvanizado | C14: =QUANT!E14 -> m2 | D14: =QUANT!D14 -> 3 | E14: =L14 -> 377.25 | F14: =ROUND((D14*E14),2) -> 1131.75 | G14: 74209/1 | H14: =OFFSET(FONTE!$A$4,N14,4,1) -> SINAPI | J14: =OFFSET(FONTE!$A$4,N14,1,1) -> PLACA DE OBRA EM CHAPA DE ACO GALVANIZADO | K14: =OFFSET(FONTE!$A$4,N14,3,1) -> 313.49 | L14: =TRUNC(((K14*BDI!$C$38)+K14),2) -> 377.25 | M14: =OFFSET(FONTE!$A$4,N14,2,1) -> M2 | N14: =MATCH(G14,FONTE!$A$4:$A$14171,0)-1 -> 5669 | P14: =(L14*100/K14)-100 -> 20.33876679
A15: 2 | B15: =QUANT!B17 -> FECHAMENTOS | E15: ∑ | F15: =SUBTOTAL(9,F16:F18) -> 17501.12 | I15: =F15/$F$175 -> 0.150777748
A16: 2.1 | B16: =QUANT!B18 -> Alvenaria de Tijolos Cerâmicos Furados, e=12cm (15cm acabada) | C16: =QUANT!E18 -> m2 | D16: =QUANT!D18 -> 181.76 | E16: =L16 -> 75.23 | F16: =ROUND((D16*E16),2) -> 13673.8 | G16: 87521 | H16: =OFFSET(FONTE!$A$4,N16,4,1) -> SINAPI | J16: =OFFSET(FONTE!$A$4,N16,1,1) -> ALVENARIA DE VEDAÇÃO DE BLOCOS CERÂMICOS FURADOS NA HORIZONTAL DE 11,5X19X19CM (ESPESSURA 11,5CM) DE PAREDES COM ÁREA LÍQUIDA MAIOR OU IGUAL A 6M² COM VÃOS E ARGAMASSA DE ASSENTAMENTO COM PREPARO EM BETONEIRA. AF_06/2014 | K16: =OFFSET(FONTE!$A$4,N16,3,1) -> 62.52 | L16: =TRUNC(((K16*BDI!$C$38)+K16),2) -> 75.23 | M16: =OFFSET(FONTE!$A$4,N16,2,1) -> M2 | N16: =MATCH(G16,FONTE!$A$4:$A$14171,0)-1 -> 10069 | P16: =(L16*100/K16)-100 -> 20.32949456
A17: 2.2 | B17: =QUANT!B55 -> Alvenaria de Blocos de Concreto Celular (15cm acabada) | C17: =QUANT!E55 -> m2 | D17: =QUANT!D55 -> 33.06 | E17: 71.12 | F17: 2351.23 | G17: 73863/1 | H17: =OFFSET(FONTE!$A$4,N17,4,1) -> SINAPI | J17: =OFFSET(FONTE!$A$4,N17,1,1) -> ALVENARIA COM BLOCOS DE CONCRETO CELULAR 10X30X60CM, ESPESSURA 10CM, ASSENTADOS COM ARGAMASSA TRACO 1:2:9 (CIMENTO, CAL E AREIA) PREPARO MANUAL | K17: =OFFSET(FONTE!$A$4,N17,3,1) -> 59.1 | L17: =TRUNC(((K17*BDI!$C$38)+K17),2) -> 71.12 | M17: =OFFSET(FONTE!$A$4,N17,2,1) -> M2 | N17: =MATCH(G17,FONTE!$A$4:$A$14171,0)-1 -> 10205 | P17: 20.33840948
A18: 2.3 | B18: =QUANT!B76 -> Vergas e contravergas | C18: =QUANT!E76 -> m | D18: =QUANT!D76 -> 31.5 | E18: 46.86 | F18: 1476.09 | G18: 93188 | H18: =OFFSET(FONTE!$A$4,N18,4,1) -> SINAPI | J18: =OFFSET(FONTE!$A$4,N18,1,1) -> VERGA MOLDADA IN LOCO EM CONCRETO PARA PORTAS COM ATÉ 1,5 M DE VÃO. AF_03/2016 | K18: =OFFSET(FONTE!$A$4,N18,3,1) -> 38.94 | L18: =TRUNC(((K18*BDI!$C$38)+K18),2) -> 46.86 | M18: =OFFSET(FONTE!$A$4,N18,2,1) -> M | N18: =MATCH(G18,FONTE!$A$4:$A$14171,0)-1 -> 7651 | P18: 20.33898305
A19: 3 | B19: =QUANT!B88 -> FORRO | E19: ∑ | F19: =SUBTOTAL(9,F20:F20) -> 5547.29 | I19: =F19/$F$175 -> 0.04779167812
A20: 3.1 | B20: =QUANT!B89 -> Forro de PVC em Placas, Frisado, larg=10cm, e=8mm (inclusive estrutura de fixação) | C20: =QUANT!E89 -> m2 | D20: =QUANT!D89 -> 113.21 | E20: =L20 -> 49 | F20: =ROUND((D20*E20),2) -> 5547.29 | G20: 96111 | H20: =OFFSET(FONTE!$A$4,N20,4,1) -> SINAPI | J20: =OFFSET(FONTE!$A$4,N20,1,1) -> FORRO EM RÉGUAS DE PVC, FRISADO, PARA AMBIENTES RESIDENCIAIS, INCLUSIVE ESTRUTURA DE FIXAÇÃO. AF_05/2017_P | K20: =OFFSET(FONTE!$A$4,N20,3,1) -> 40.72 | L20: =TRUNC(((K20*BDI!$C$38)+K20),2) -> 49 | M20: =OFFSET(FONTE!$A$4,N20,2,1) -> M2 | N20: =MATCH(G20,FONTE!$A$4:$A$14171,0)-1 -> 10797 | P20: =(L20*100/K20)-100 -> 20.33398821
A21: 4 | B21: =QUANT!B101 -> REVESTIMENTOS | E21: ∑ | F21: =SUBTOTAL(9,F22:F25) -> 16227.86 | I21: =F21/$F$175 -> 0.1398082057
A22: 4.1 | B22: =QUANT!B102 -> Chapisco | C22: =QUANT!E102 -> m2 | D22: =QUANT!D102 -> 419.89 | E22: =L22 -> 3.73 | F22: =ROUND((D22*E22),2) -> 1566.19 | G22: 87879 | H22: =OFFSET(FONTE!$A$4,N22,4,1) -> SINAPI | J22: =OFFSET(FONTE!$A$4,N22,1,1) -> CHAPISCO APLICADO EM ALVENARIAS E ESTRUTURAS DE CONCRETO INTERNAS, COM COLHER DE PEDREIRO. ARGAMASSA TRAÇO 1:3 COM PREPARO EM BETONEIRA 400L. AF_06/2014 | K22: =OFFSET(FONTE!$A$4,N22,3,1) -> 3.1 | L22: =TRUNC(((K22*BDI!$C$38)+K22),2) -> 3.73 | M22: =OFFSET(FONTE!$A$4,N22,2,1) -> M2 | N22: =MATCH(G22,FONTE!$A$4:$A$14171,0)-1 -> 10588 | P22: =(L22*100/K22)-100 -> 20.32258065
A23: 4.2 | B23: =QUANT!B156 -> Emboço/Reboco (Massa Única) | C23: =QUANT!E156 -> m2 | D23: =QUANT!D156 -> 419.89 | E23: 30.89 | F23: 12970.4 | G23: 89173 | H23: =OFFSET(FONTE!$A$4,N23,4,1) -> SINAPI | J23: =OFFSET(FONTE!$A$4,N23,1,1) -> (COMPOSIÇÃO REPRESENTATIVA) DO SERVIÇO DE EMBOÇO/MASSA ÚNICA, APLICADO MANUALMENTE, TRAÇO 1:2:8, EM BETONEIRA DE 400L, PAREDES INTERNAS, COM EXECUÇÃO DE TALISCAS, EDIFICAÇÃO HABITACIONAL UNIFAMILIAR (CASAS) E EDIFICAÇÃO PÚBLICA PADRÃO. AF_12/2014 | K23: =OFFSET(FONTE!$A$4,N23,3,1) -> 25.67 | L23: =TRUNC(((K23*BDI!$C$38)+K23),2) -> 30.89 | M23: =OFFSET(FONTE!$A$4,N23,2,1) -> M2 | N23: =MATCH(G23,FONTE!$A$4:$A$14171,0)-1 -> 10746 | P23: 20.33502143
A24: 4.3 | B24: =QUANT!B159 -> Azulejos 20x20cm ( ou próximo a essa medida) | C24: =QUANT!E159 -> m2 | D24: =QUANT!D159 -> 22.06 | E24: 59.53 | F24: 1313.23 | G24: 87269 | H24: =OFFSET(FONTE!$A$4,N24,4,1) -> SINAPI | J24: =OFFSET(FONTE!$A$4,N24,1,1) -> REVESTIMENTO CERÂMICO PARA PAREDES INTERNAS COM PLACAS TIPO ESMALTADA EXTRA DE DIMENSÕES 25X35 CM APLICADAS EM AMBIENTES DE ÁREA MAIOR QUE 5 M² NA ALTURA INTEIRA DAS PAREDES. AF_06/2014 | K24: =OFFSET(FONTE!$A$4,N24,3,1) -> 49.47 | L24: =TRUNC(((K24*BDI!$C$38)+K24),2) -> 59.53 | M24: =OFFSET(FONTE!$A$4,N24,2,1) -> M2 | N24: =MATCH(G24,FONTE!$A$4:$A$14171,0)-1 -> 10762 | P24: 20.3355569
A25: 4.4 | B25: =QUANT!B180 -> Peitoril de Granito (com Pingadeira), e=2cm (fornecimento e instalação) | C25: =QUANT!E180 -> m2 | D25: =QUANT!D180 -> 1.62 | E25: 233.36 | F25: 378.04 | G25: 84190 | H25: =OFFSET(FONTE!$A$4,N25,4,1) -> SINAPI | J25: =OFFSET(FONTE!$A$4,N25,1,1) -> PISO GRANITO ASSENTADO SOBRE ARGAMASSA CIMENTO / CAL / AREIA TRACO 1:0,25:3 INCLUSIVE REJUNTE EM CIMENTO | K25: =OFFSET(FONTE!$A$4,N25,3,1) -> 193.92 | L25: =TRUNC(((K25*BDI!$C$38)+K25),2) -> 233.36 | M25: =OFFSET(FONTE!$A$4,N25,2,1) -> M2 | N25: =MATCH(G25,FONTE!$A$4:$A$14171,0)-1 -> 10476 | P25: 20.33828383
A26: 5 | B26: =QUANT!B188 -> PISO | E26: ∑ | F26: =SUBTOTAL(9,F28:F48) -> 20623.91 | I26: =F26/$F$175 -> 0.1776815829
A27: 5.1 | B27: =QUANT!B189 -> Piso Edificação
A28: 5.1.1 | B28: =QUANT!B190 -> Regularização e Apiloamento Manual | C28: =QUANT!E190 -> m2 | D28: =QUANT!D190 -> 113.21 | E28: =L28 -> 9.72 | F28: =ROUND((D28*E28),2) -> 1100.4 | G28: CED003 | H28: =OFFSET(FONTE!$A$4,N28,4,1) -> COMPOSIÇÃO | J28: =OFFSET(FONTE!$A$4,N28,1,1) -> REGULARIZAÇÃO E APILOAMENTO MANUAL | K28: =OFFSET(FONTE!$A$4,N28,3,1) -> 8.08 | L28: =TRUNC(((K28*BDI!$C$38)+K28),2) -> 9.72 | M28: =OFFSET(FONTE!$A$4,N28,2,1) -> m2 | N28: =MATCH(G28,FONTE!$A$4:$A$14171,0)-1 -> 11914 | P28: =(L28*100/K28)-100 -> 20.2970297
A29: 5.1.2 | B29: =QUANT!B203 -> Lastro de Brita Graduada para Contrapiso, e = 10cm | C29: =QUANT!E203 -> m3 | D29: =QUANT!D203 -> 11.32 | E29: =L29 -> 95.26 | F29: =ROUND((D29*E29),2) -> 1078.34 | G29: 88549 | H29: =OFFSET(FONTE!$A$4,N29,4,1) -> SINAPI | J29: =OFFSET(FONTE!$A$4,N29,1,1) -> FORNECIMENTO E ASSENTAMENTO DE BRITA 2-DRENOS E FILTROS MM | K29: =OFFSET(FONTE!$A$4,N29,3,1) -> 79.16 | L29: =TRUNC(((K29*BDI!$C$38)+K29),2) -> 95.26 | M29: =OFFSET(FONTE!$A$4,N29,2,1) -> M3 | N29: =MATCH(G29,FONTE!$A$4:$A$14171,0)-1 -> 10009 | P29: =(L29*100/K29)-100 -> 20.33855483
A30: 5.1.3 | B30: =QUANT!B207 -> Lona 200 Micras (fornecimento e instalação) | C30: =QUANT!E207 -> m2 | D30: =QUANT!D207 -> 113.21 | E30: 5.89 | F30: 666.81 | G30: 68053 | H30: =OFFSET(FONTE!$A$4,N30,4,1) -> SINAPI | J30: =OFFSET(FONTE!$A$4,N30,1,1) -> FORNECIMENTO/INSTALACAO LONA PLASTICA PRETA, PARA IMPERMEABILIZACAO, ESPESSURA 150 MICRAS. | K30: =OFFSET(FONTE!$A$4,N30,3,1) -> 4.9 | L30: =TRUNC(((K30*BDI!$C$38)+K30),2) -> 5.89 | M30: =OFFSET(FONTE!$A$4,N30,2,1) -> M2 | N30: =MATCH(G30,FONTE!$A$4:$A$14171,0)-1 -> 7688 | P30: 20.20408163
A31: 5.1.4 | B31: =QUANT!B210 -> Tela Q 92 (CA-60) 4,2mm (Fornecimento e instalação) (1,48 kg/m2) | C31: =QUANT!E210 -> m2 | D31: =QUANT!D210 -> 113.21 | E31: 11.36 | F31: 1286.07 | G31: 85662 | H31: =OFFSET(FONTE!$A$4,N31,4,1) -> SINAPI | J31: =OFFSET(FONTE!$A$4,N31,1,1) -> ARMACAO EM TELA DE ACO SOLDADA NERVURADA Q-92, ACO CA-60, 4,2MM, MALHA 15X15CM | K31: =OFFSET(FONTE!$A$4,N31,3,1) -> 9.44 | L31: =TRUNC(((K31*BDI!$C$38)+K31),2) -> 11.36 | M31: =OFFSET(FONTE!$A$4,N31,2,1) -> M2 | N31: =MATCH(G31,FONTE!$A$4:$A$14171,0)-1 -> 7446 | P31: 20.33898305
A32: 5.1.5 | B32: =QUANT!B212 -> Reforço de Aço CA-50 Ø6.3mm para Paredes de Concreto Celular | C32: =QUANT!E212 -> kg | D32: =QUANT!D212 -> 9.95 | E32: =L32 -> 12.61 | F32: =ROUND((D32*E32),2) -> 125.47 | G32: 96544 | H32: =OFFSET(FONTE!$A$4,N32,4,1) -> SINAPI | J32: =OFFSET(FONTE!$A$4,N32,1,1) -> ARMAÇÃO DE BLOCO, VIGA BALDRAME OU SAPATA UTILIZANDO AÇO CA-50 DE 6,3 MM - MONTAGEM. AF_06/2017 | K32: =OFFSET(FONTE!$A$4,N32,3,1) -> 10.48 | L32: =TRUNC(((K32*BDI!$C$38)+K32),2) -> 12.61 | M32: =OFFSET(FONTE!$A$4,N32,2,1) -> KG | N32: =MATCH(G32,FONTE!$A$4:$A$14171,0)-1 -> 7557 | P32: =(L32*100/K32)-100 -> 20.32442748
A33: 5.1.6 | B33: =QUANT!B214 -> Piso em Concreto 25 Mpa , e=7cm | C33: =QUANT!E214 -> m3 | D33: =QUANT!D214 -> 7.92 | E33: 369.08 | F33: 2923.11 | G33: CED100 | H33: =OFFSET(FONTE!$A$4,N33,4,1) -> COMPOSIÇÃO | J33: =OFFSET(FONTE!$A$4,N33,1,1) -> CONCRETAGEM DE PISO, FCK 25 MPA, PARA ESPESSURA DE 5 À 15 CM - LANÇAMENTO, ADENSAMENTO E ACABAMENTO. | K33: =OFFSET(FONTE!$A$4,N33,3,1) -> 306.7 | L33: =TRUNC(((K33*BDI!$C$38)+K33),2) -> 369.08 | M33: =OFFSET(FONTE!$A$4,N33,2,1) -> m3 | N33: =MATCH(G33,FONTE!$A$4:$A$14171,0)-1 -> 11925 | P33: 20.33909358
A34: 5.1.7 | B34: =QUANT!B218 -> Soleira de Granito, e=2cm (fornecimento e instalação) | C34: =QUANT!E218 -> m2 | D34: =QUANT!D218 -> 1.28 | E34: 233.36 | F34: 298.7 | G34: 84190 | H34: =OFFSET(FONTE!$A$4,N34,4,1) -> SINAPI | J34: =OFFSET(FONTE!$A$4,N34,1,1) -> PISO GRANITO ASSENTADO SOBRE ARGAMASSA CIMENTO / CAL / AREIA TRACO 1:0,25:3 INCLUSIVE REJUNTE EM CIMENTO | K34: =OFFSET(FONTE!$A$4,N34,3,1) -> 193.92 | L34: =TRUNC(((K34*BDI!$C$38)+K34),2) -> 233.36 | M34: =OFFSET(FONTE!$A$4,N34,2,1) -> M2 | N34: =MATCH(G34,FONTE!$A$4:$A$14171,0)-1 -> 10476 | P34: 20.33828383
A35: 5.1.8 | B35: =QUANT!B225 -> Contrapiso em Argamassa, e=2cm | C35: =QUANT!E225 -> m2 | D35: =QUANT!D225 -> 113.21 | E35: 30.3 | F35: 3430.26 | G35: 87620 | H35: =OFFSET(FONTE!$A$4,N35,4,1) -> SINAPI | J35: =OFFSET(FONTE!$A$4,N35,1,1) -> CONTRAPISO EM ARGAMASSA TRAÇO 1:4 (CIMENTO E AREIA), PREPARO MECÂNICO COM BETONEIRA 400 L, APLICADO EM ÁREAS SECAS SOBRE LAJE, ADERIDO, ESPESSURA 2CM. AF_06/2014 | K35: =OFFSET(FONTE!$A$4,N35,3,1) -> 25.18 | L35: =TRUNC(((K35*BDI!$C$38)+K35),2) -> 30.3 | M35: =OFFSET(FONTE!$A$4,N35,2,1) -> M2 | N35: =MATCH(G35,FONTE!$A$4:$A$14171,0)-1 -> 10505 | P35: 20.33359809
A36: 5.1.9 | B36: =QUANT!B227 -> Piso Cerâmico
A37: 5.1.8.1 | B37: =QUANT!B228 -> Piso Cerâmico ACETINADO FOSCO 30x30 (ou próximo a esta medida), PEI 5, aplicado com Argamassa | C37: =QUANT!E228 -> m2 | D37: =QUANT!D228 -> 39.86 | E37: =L37 -> 42.76 | F37: =ROUND((D37*E37),2) -> 1704.41 | G37: 87247 | H37: =OFFSET(FONTE!$A$4,N37,4,1) -> SINAPI | J37: =OFFSET(FONTE!$A$4,N37,1,1) -> REVESTIMENTO CERÂMICO PARA PISO COM PLACAS TIPO ESMALTADA EXTRA DE DIMENSÕES 35X35 CM APLICADA EM AMBIENTES DE ÁREA ENTRE 5 M2 E 10 M2. AF_06/2014 | K37: =OFFSET(FONTE!$A$4,N37,3,1) -> 35.54 | L37: =TRUNC(((K37*BDI!$C$38)+K37),2) -> 42.76 | M37: =OFFSET(FONTE!$A$4,N37,2,1) -> M2 | N37: =MATCH(G37,FONTE!$A$4:$A$14171,0)-1 -> 10441 | P37: =(L37*100/K37)-100 -> 20.31513787
A38: 5.1.8.2 | B38: =QUANT!B234 -> Piso Cerâmico BRILHO 30x30 (ou próximo a esta medida), PEI 5, aplicado com Argamassa | C38: =QUANT!E234 -> m2 | D38: =QUANT!D234 -> 64.89 | E38: =L38 -> 42.76 | F38: =ROUND((D38*E38),2) -> 2774.7 | G38: 87247 | H38: =OFFSET(FONTE!$A$4,N38,4,1) -> SINAPI | J38: =OFFSET(FONTE!$A$4,N38,1,1) -> REVESTIMENTO CERÂMICO PARA PISO COM PLACAS TIPO ESMALTADA EXTRA DE DIMENSÕES 35X35 CM APLICADA EM AMBIENTES DE ÁREA ENTRE 5 M2 E 10 M2. AF_06/2014 | K38: =OFFSET(FONTE!$A$4,N38,3,1) -> 35.54 | L38: =TRUNC(((K38*BDI!$C$38)+K38),2) -> 42.76 | M38: =OFFSET(FONTE!$A$4,N38,2,1) -> M2 | N38: =MATCH(G38,FONTE!$A$4:$A$14171,0)-1 -> 10441 | P38: =(L38*100/K38)-100 -> 20.31513787
A39: 5.1.8.3 | B39: =QUANT!B241 -> Piso Cerâmico ANTIDERRAPANTE, 30x30 (ou próximo a esta medida), PEI 5, aplicado com Argamassa | C39: =QUANT!E241 -> m2 | D39: =QUANT!D241 -> 8.46 | E39: =L39 -> 42.76 | F39: =ROUND((D39*E39),2) -> 361.75 | G39: 87247 | H39: =OFFSET(FONTE!$A$4,N39,4,1) -> SINAPI | J39: =OFFSET(FONTE!$A$4,N39,1,1) -> REVESTIMENTO CERÂMICO PARA PISO COM PLACAS TIPO ESMALTADA EXTRA DE DIMENSÕES 35X35 CM APLICADA EM AMBIENTES DE ÁREA ENTRE 5 M2 E 10 M2. AF_06/2014 | K39: =OFFSET(FONTE!$A$4,N39,3,1) -> 35.54 | L39: =TRUNC(((K39*BDI!$C$38)+K39),2) -> 42.76 | M39: =OFFSET(FONTE!$A$4,N39,2,1) -> M2 | N39: =MATCH(G39,FONTE!$A$4:$A$14171,0)-1 -> 10441 | P39: =(L39*100/K39)-100 -> 20.31513787
A40: 5.1.8.4 | B40: =QUANT!B247 -> Rodapé Cerâmico de 7cm, colado com Argamassa | C40: =QUANT!E247 -> m | D40: =QUANT!D247 -> 99.5 | E40: =L40 -> 5.78 | F40: =ROUND((D40*E40),2) -> 575.11 | G40: 88648 | H40: =OFFSET(FONTE!$A$4,N40,4,1) -> SINAPI | J40: =OFFSET(FONTE!$A$4,N40,1,1) -> RODAPÉ CERÂMICO DE 7CM DE ALTURA COM PLACAS TIPO ESMALTADA EXTRA DE DIMENSÕES 35X35CM. AF_06/2014 | K40: =OFFSET(FONTE!$A$4,N40,3,1) -> 4.81 | L40: =TRUNC(((K40*BDI!$C$38)+K40),2) -> 5.78 | M40: =OFFSET(FONTE!$A$4,N40,2,1) -> M | N40: =MATCH(G40,FONTE!$A$4:$A$14171,0)-1 -> 10482 | P40: =(L40*100/K40)-100 -> 20.16632017
A41: 5.1.10 | B41: =QUANT!B291 -> Podotátil
A42: 5.1.10.1 | B42: =QUANT!B292 -> Podotátil Emborrachado e=7mm - Argamassado | C42: =QUANT!E292 -> m2 | D42: =QUANT!D292 -> 4.57 | E42: =L42 -> 184.72 | F42: =ROUND((D42*E42),2) -> 844.17 | G42: 72188 | H42: =OFFSET(FONTE!$A$4,N42,4,1) -> SINAPI | J42: =OFFSET(FONTE!$A$4,N42,1,1) -> PISO DE BORRACHA PASTILHADO, ESPESSURA 7MM, ASSENTADO COM ARGAMASSA TRACO 1:3 (CIMENTO E AREIA) | K42: =OFFSET(FONTE!$A$4,N42,3,1) -> 153.5 | L42: =TRUNC(((K42*BDI!$C$38)+K42),2) -> 184.72 | M42: =OFFSET(FONTE!$A$4,N42,2,1) -> M2 | N42: =MATCH(G42,FONTE!$A$4:$A$14171,0)-1 -> 10466 | P42: =(L42*100/K42)-100 -> 20.33876221
A43: 5.1.10.2 | B43: =QUANT!B299 -> Podotátil Emborrachado e=7mm - Colado | C43: =QUANT!E299 -> m2 | D43: =QUANT!D299 -> 4.88 | E43: =L43 -> 165.5 | F43: =ROUND((D43*E43),2) -> 807.64 | G43: 73876/1 | H43: =OFFSET(FONTE!$A$4,N43,4,1) -> SINAPI | J43: =OFFSET(FONTE!$A$4,N43,1,1) -> PISO DE BORRACHA PASTILHADO, ESPESSURA 7MM, FIXADO COM COLA | K43: =OFFSET(FONTE!$A$4,N43,3,1) -> 137.53 | L43: =TRUNC(((K43*BDI!$C$38)+K43),2) -> 165.5 | M43: =OFFSET(FONTE!$A$4,N43,2,1) -> M2 | N43: =MATCH(G43,FONTE!$A$4:$A$14171,0)-1 -> 10467 | P43: =(L43*100/K43)-100 -> 20.33738094
A44: 5.2 | B44: =QUANT!B306 -> Piso Vaga Preferencial/Circulação/Hall Coberto
A45: 5.2.1 | B45: =QUANT!B307 -> Regularização e Apiloamento Manual | C45: =QUANT!E307 -> m2 | D45: =QUANT!D307 -> 39.22 | E45: =L45 -> 9.72 | F45: =ROUND((D45*E45),2) -> 381.22 | G45: CED003 | H45: =OFFSET(FONTE!$A$4,N45,4,1) -> COMPOSIÇÃO | J45: =OFFSET(FONTE!$A$4,N45,1,1) -> REGULARIZAÇÃO E APILOAMENTO MANUAL | K45: =OFFSET(FONTE!$A$4,N45,3,1) -> 8.08 | L45: =TRUNC(((K45*BDI!$C$38)+K45),2) -> 9.72 | M45: =OFFSET(FONTE!$A$4,N45,2,1) -> m2 | N45: =MATCH(G45,FONTE!$A$4:$A$14171,0)-1 -> 11914 | P45: =(L45*100/K45)-100 -> 20.2970297
A46: 5.2.2 | B46: =QUANT!B315 -> Lastro de Brita Graduada para Contrapiso, e = 7cm | C46: =QUANT!E315 -> m3 | D46: =QUANT!D315 -> 3.92 | E46: =L46 -> 95.26 | F46: =ROUND((D46*E46),2) -> 373.42 | G46: 88549 | H46: =OFFSET(FONTE!$A$4,N46,4,1) -> SINAPI | J46: =OFFSET(FONTE!$A$4,N46,1,1) -> FORNECIMENTO E ASSENTAMENTO DE BRITA 2-DRENOS E FILTROS MM | K46: =OFFSET(FONTE!$A$4,N46,3,1) -> 79.16 | L46: =TRUNC(((K46*BDI!$C$38)+K46),2) -> 95.26 | M46: =OFFSET(FONTE!$A$4,N46,2,1) -> M3 | N46: =MATCH(G46,FONTE!$A$4:$A$14171,0)-1 -> 10009 | P46: =(L46*100/K46)-100 -> 20.33855483
A47: 5.2.3 | B47: =QUANT!B319 -> Tela Q 92 (CA-60) 4,2mm (Fornecimento e instalação) (1,48 kg/m2) | C47: =QUANT!E319 -> m2 | D47: =QUANT!D319 -> 39.22 | E47: =L47 -> 11.36 | F47: =ROUND((D47*E47),2) -> 445.54 | G47: 85662 | H47: =OFFSET(FONTE!$A$4,N47,4,1) -> SINAPI | J47: =OFFSET(FONTE!$A$4,N47,1,1) -> ARMACAO EM TELA DE ACO SOLDADA NERVURADA Q-92, ACO CA-60, 4,2MM, MALHA 15X15CM | K47: =OFFSET(FONTE!$A$4,N47,3,1) -> 9.44 | L47: =TRUNC(((K47*BDI!$C$38)+K47),2) -> 11.36 | M47: =OFFSET(FONTE!$A$4,N47,2,1) -> M2 | N47: =MATCH(G47,FONTE!$A$4:$A$14171,0)-1 -> 7446 | P47: =(L47*100/K47)-100 -> 20.33898305
A48: 5.2.4 | B48: =QUANT!B321 -> Piso em Concreto 25 Mpa , e=10cm | C48: =QUANT!E321 -> m3 | D48: =QUANT!D321 -> 3.92 | E48: =L48 -> 369.08 | F48: =ROUND((D48*E48),2) -> 1446.79 | G48: CED100 | H48: =OFFSET(FONTE!$A$4,N48,4,1) -> COMPOSIÇÃO | J48: =OFFSET(FONTE!$A$4,N48,1,1) -> CONCRETAGEM DE PISO, FCK 25 MPA, PARA ESPESSURA DE 5 À 15 CM - LANÇAMENTO, ADENSAMENTO E ACABAMENTO. | K48: =OFFSET(FONTE!$A$4,N48,3,1) -> 306.7 | L48: =TRUNC(((K48*BDI!$C$38)+K48),2) -> 369.08 | M48: =OFFSET(FONTE!$A$4,N48,2,1) -> m3 | N48: =MATCH(G48,FONTE!$A$4:$A$14171,0)-1 -> 11925 | P48: =(L48*100/K48)-100 -> 20.33909358
A49: 6 | B49: INSTALAÇÕES ELÉTRICAS | E49: ∑ | F49: =SUBTOTAL(9,F50:F72) -> 15785.62 | I49: =F49/$F$175 -> 0.1359981667 | P49: =(L49*100/K49)-100 -> 
A50: 6.1 | B50: Ramal de Carga (do Quadro de Disjuntores existente até o Quadro de Disjuntores a Executar)
A51: 6.1.1 | B51: Cabo de Cobre Isolado 6mm2 - 1KV (3F+N) | C51: m | D51: 40 | E51: =L51 -> 7.46 | F51: =ROUND((D51*E51),2) -> 298.4 | G51: 91931 | H51: =OFFSET(FONTE!$A$4,N51,4,1) -> SINAPI | J51: =OFFSET(FONTE!$A$4,N51,1,1) -> CABO DE COBRE FLEXÍVEL ISOLADO, 6 MM², ANTI-CHAMA 0,6/1,0 KV, PARA CIRCUITOS TERMINAIS - FORNECIMENTO E INSTALAÇÃO. AF_12/2015 | K51: =OFFSET(FONTE!$A$4,N51,3,1) -> 6.2 | L51: =TRUNC(((K51*BDI!$C$38)+K51),2) -> 7.46 | M51: =OFFSET(FONTE!$A$4,N51,2,1) -> M | N51: =MATCH(G51,FONTE!$A$4:$A$14171,0)-1 -> 7843 | P51: =(L51*100/K51)-100 -> 20.32258065
A52: 6.1.2 | B52: Eletroduto PVC Rígido 1" | C52: m | D52: 10 | E52: =L52 -> 13.22 | F52: =ROUND((D52*E52),2) -> 132.2 | G52: 91864 | H52: =OFFSET(FONTE!$A$4,N52,4,1) -> SINAPI | J52: =OFFSET(FONTE!$A$4,N52,1,1) -> ELETRODUTO RÍGIDO ROSCÁVEL, PVC, DN 32 MM (1"), PARA CIRCUITOS TERMINAIS, INSTALADO EM FORRO - FORNECIMENTO E INSTALAÇÃO. AF_12/2015 | K52: =OFFSET(FONTE!$A$4,N52,3,1) -> 10.99 | L52: =TRUNC(((K52*BDI!$C$38)+K52),2) -> 13.22 | M52: =OFFSET(FONTE!$A$4,N52,2,1) -> M | N52: =MATCH(G52,FONTE!$A$4:$A$14171,0)-1 -> 7723 | P52: =(L52*100/K52)-100 -> 20.29117379
A53: 6.1.3 | B53: Cabo de Cobre Isolado 10mm2 - 1KV - para Aterramento | C53: m | D53: 9 | E53: =L53 -> 6.57 | F53: =ROUND((D53*E53),2) -> 59.13 | G53: 92980 | H53: =OFFSET(FONTE!$A$4,N53,4,1) -> SINAPI | J53: =OFFSET(FONTE!$A$4,N53,1,1) -> CABO DE COBRE FLEXÍVEL ISOLADO, 10 MM², ANTI-CHAMA 0,6/1,0 KV, PARA DISTRIBUIÇÃO - FORNECIMENTO E INSTALAÇÃO. AF_12/2015 | K53: =OFFSET(FONTE!$A$4,N53,3,1) -> 5.46 | L53: =TRUNC(((K53*BDI!$C$38)+K53),2) -> 6.57 | M53: =OFFSET(FONTE!$A$4,N53,2,1) -> M | N53: =MATCH(G53,FONTE!$A$4:$A$14171,0)-1 -> 7849 | P53: =(L53*100/K53)-100 -> 20.32967033
A54: 6.1.4 | B54: Eletroduto PVC Corrugado 1" (fornecimento, escavação, assentamento e reaterro) - para Aterramento | C54: m | D54: 9 | E54: 35.1 | F54: 315.9 | G54: CEL006 | H54: =OFFSET(FONTE!$A$4,N54,4,1) -> COMPOSIÇÃO | J54: =OFFSET(FONTE!$A$4,N54,1,1) -> Eletroduto PVC Corrugado 1" (fornecimento, escavação, assentamento e reaterro) | K54: =OFFSET(FONTE!$A$4,N54,3,1) -> 29.17 | L54: =TRUNC(((K54*BDI!$C$38)+K54),2) -> 35.1 | M54: =OFFSET(FONTE!$A$4,N54,2,1) -> m | N54: =MATCH(G54,FONTE!$A$4:$A$14171,0)-1 -> 11937 | P54: 20.32910525
A55: 6.1.5 | B55: Caixa de Passagem 30x30x40, Fundo de Brita e Tampa (fornecimento e instalação) - para Aterramento | C55: un | D55: 1 | E55: 188.66 | F55: 188.66 | G55: 83446 | H55: =OFFSET(FONTE!$A$4,N55,4,1) -> SINAPI | J55: =OFFSET(FONTE!$A$4,N55,1,1) -> CAIXA DE PASSAGEM 30X30X40 COM TAMPA E DRENO BRITA | K55: =OFFSET(FONTE!$A$4,N55,3,1) -> 156.78 | L55: =TRUNC(((K55*BDI!$C$38)+K55),2) -> 188.66 | M55: =OFFSET(FONTE!$A$4,N55,2,1) -> UN | N55: =MATCH(G55,FONTE!$A$4:$A$14171,0)-1 -> 7873 | P55: 20.3342263
A56: 6.1.6 | B56: Terminal para Cabo de Cobre 10mm2 (fornecimento e instalação) - para Aterramento | C56: un | D56: 1 | E56: 21.17 | F56: 21.17 | G56: 72259 | H56: =OFFSET(FONTE!$A$4,N56,4,1) -> SINAPI | J56: =OFFSET(FONTE!$A$4,N56,1,1) -> TERMINAL OU CONECTOR DE PRESSAO - PARA CABO 10MM2 - FORNECIMENTO E INSTALACAO | K56: =OFFSET(FONTE!$A$4,N56,3,1) -> 17.6 | L56: =TRUNC(((K56*BDI!$C$38)+K56),2) -> 21.17 | M56: =OFFSET(FONTE!$A$4,N56,2,1) -> UN | N56: =MATCH(G56,FONTE!$A$4:$A$14171,0)-1 -> 7753 | P56: 20.28409091
A57: 6.1.7 | B57: Haste de Aterramento 3/4" (fornecimento e instalação) | C57: un | D57: 1 | E57: 69.89 | F57: 69.89 | G57: 96986 | H57: =OFFSET(FONTE!$A$4,N57,4,1) -> SINAPI | J57: =OFFSET(FONTE!$A$4,N57,1,1) -> HASTE DE ATERRAMENTO 3/4 PARA SPDA - FORNECIMENTO E INSTALAÇÃO. AF_12/2017 | K57: =OFFSET(FONTE!$A$4,N57,3,1) -> 58.08 | L57: =TRUNC(((K57*BDI!$C$38)+K57),2) -> 69.89 | M57: =OFFSET(FONTE!$A$4,N57,2,1) -> UN | N57: =MATCH(G57,FONTE!$A$4:$A$14171,0)-1 -> 8206 | P57: 20.33402204
A58: 6.2 | B58: Quadro de Distribuição
A59: 6.2.1 | B59: Quadro de Distribuição de Energia para 18 Disjuntores Monopolares, com Barramento Trifasico e Neutro (Fornecimento e Instalação) | C59: un | D59: 1 | E59: =L59 -> 553.02 | F59: =ROUND((D59*E59),2) -> 553.02 | G59: 74131/4 | H59: =OFFSET(FONTE!$A$4,N59,4,1) -> SINAPI | J59: =OFFSET(FONTE!$A$4,N59,1,1) -> QUADRO DE DISTRIBUICAO DE ENERGIA DE EMBUTIR, EM CHAPA METALICA, PARA 18 DISJUNTORES TERMOMAGNETICOS MONOPOLARES, COM BARRAMENTO TRIFASICO E NEUTRO, FORNECIMENTO E INSTALACAO | K59: =OFFSET(FONTE!$A$4,N59,3,1) -> 459.55 | L59: =TRUNC(((K59*BDI!$C$38)+K59),2) -> 553.02 | M59: =OFFSET(FONTE!$A$4,N59,2,1) -> UN | N59: =MATCH(G59,FONTE!$A$4:$A$14171,0)-1 -> 7943 | P59: =(L59*100/K59)-100 -> 20.33946252
A60: 6.2.2 | B60: Disjuntor Monopolar 13A - Din (Fornecimento e Instalação) | C60: un | D60: 2 | E60: =L60 -> 15.68 | F60: =ROUND((D60*E60),2) -> 31.36 | G60: 93653 | H60: =OFFSET(FONTE!$A$4,N60,4,1) -> SINAPI | J60: =OFFSET(FONTE!$A$4,N60,1,1) -> DISJUNTOR MONOPOLAR TIPO DIN, CORRENTE NOMINAL DE 10A - FORNECIMENTO E INSTALAÇÃO. AF_04/2016 | K60: =OFFSET(FONTE!$A$4,N60,3,1) -> 13.03 | L60: =TRUNC(((K60*BDI!$C$38)+K60),2) -> 15.68 | M60: =OFFSET(FONTE!$A$4,N60,2,1) -> UN | N60: =MATCH(G60,FONTE!$A$4:$A$14171,0)-1 -> 7951 | P60: =(L60*100/K60)-100 -> 20.33768227
A61: 6.2.3 | B61: Disjuntor Monopolar 16A - Din (Fornecimento e Instalação) | C61: un | D61: 6 | E61: 16.45 | F61: 98.7 | G61: 93654 | H61: =OFFSET(FONTE!$A$4,N61,4,1) -> SINAPI | J61: =OFFSET(FONTE!$A$4,N61,1,1) -> DISJUNTOR MONOPOLAR TIPO DIN, CORRENTE NOMINAL DE 16A - FORNECIMENTO E INSTALAÇÃO. AF_04/2016 | K61: =OFFSET(FONTE!$A$4,N61,3,1) -> 13.67 | L61: =TRUNC(((K61*BDI!$C$38)+K61),2) -> 16.45 | M61: =OFFSET(FONTE!$A$4,N61,2,1) -> UN | N61: =MATCH(G61,FONTE!$A$4:$A$14171,0)-1 -> 7952 | P61: 20.33650329
A62: 6.2.4 | B62: Disjuntor Monopolar 20A - Din (Fornecimento e Instalação) | C62: un | D62: 1 | E62: 17.71 | F62: 17.71 | G62: 93655 | H62: =OFFSET(FONTE!$A$4,N62,4,1) -> SINAPI | J62: =OFFSET(FONTE!$A$4,N62,1,1) -> DISJUNTOR MONOPOLAR TIPO DIN, CORRENTE NOMINAL DE 20A - FORNECIMENTO E INSTALAÇÃO. AF_04/2016 | K62: =OFFSET(FONTE!$A$4,N62,3,1) -> 14.72 | L62: =TRUNC(((K62*BDI!$C$38)+K62),2) -> 17.71 | M62: =OFFSET(FONTE!$A$4,N62,2,1) -> UN | N62: =MATCH(G62,FONTE!$A$4:$A$14171,0)-1 -> 7953 | P62: 20.3125
A63: 6.2.5 | B63: Disjuntor Tripolar 32A - Din (Fornecimento e Instalação) | C63: un | D63: 1 | E63: 110.39 | F63: 110.39 | G63: 93671 | H63: =OFFSET(FONTE!$A$4,N63,4,1) -> SINAPI | J63: =OFFSET(FONTE!$A$4,N63,1,1) -> DISJUNTOR TRIPOLAR TIPO DIN, CORRENTE NOMINAL DE 32A - FORNECIMENTO E INSTALAÇÃO. AF_04/2016 | K63: =OFFSET(FONTE!$A$4,N63,3,1) -> 91.74 | L63: =TRUNC(((K63*BDI!$C$38)+K63),2) -> 110.39 | M63: =OFFSET(FONTE!$A$4,N63,2,1) -> UN | N63: =MATCH(G63,FONTE!$A$4:$A$14171,0)-1 -> 7969 | P63: 20.32919119
A64: 6.2.6 | B64: Disjuntor Diferencial Residual (DR) 25A (fornecimento e instalação) | C64: un | D64: 2 | E64: =L64 -> 209.8 | F64: =ROUND((D64*E64),2) -> 419.6 | G64: CEL013 | H64: =OFFSET(FONTE!$A$4,N64,4,1) -> COMPOSIÇÃO | J64: =OFFSET(FONTE!$A$4,N64,1,1) -> Disjuntor Diferencial Residual (DR), 2 polos F-N, 25A (fornecimento e instalação) | K64: =OFFSET(FONTE!$A$4,N64,3,1) -> 174.34 | L64: =TRUNC(((K64*BDI!$C$38)+K64),2) -> 209.8 | M64: =OFFSET(FONTE!$A$4,N64,2,1) -> un | N64: =MATCH(G64,FONTE!$A$4:$A$14171,0)-1 -> 11943 | P64: =(L64*100/K64)-100 -> 20.33956636
A65: 6.3 | B65: Iluminação
A66: 6.3.1 | B66: Ponto de Iluminação (Caixas, Eletroduto, Cabos, Interruptor) (fornecimento e instalação) | C66: un | D66: =3+(24+16)/2+4 -> 27 | E66: =L66 -> 153.19 | F66: =ROUND((D66*E66),2) -> 4136.13 | G66: 93128 | H66: =OFFSET(FONTE!$A$4,N66,4,1) -> SINAPI | J66: =OFFSET(FONTE!$A$4,N66,1,1) -> PONTO DE ILUMINAÇÃO RESIDENCIAL INCLUINDO INTERRUPTOR SIMPLES, CAIXA ELÉTRICA, ELETRODUTO, CABO, RASGO, QUEBRA E CHUMBAMENTO (EXCLUINDO LUMINÁRIA E LÂMPADA). AF_01/2016 | K66: =OFFSET(FONTE!$A$4,N66,3,1) -> 127.3 | L66: =TRUNC(((K66*BDI!$C$38)+K66),2) -> 153.19 | M66: =OFFSET(FONTE!$A$4,N66,2,1) -> UN | N66: =MATCH(G66,FONTE!$A$4:$A$14171,0)-1 -> 8180 | P66: =(L66*100/K66)-100 -> 20.33778476
A67: 6.3.2 | B67: Luminária Calha, com 2 Lâmpada Fluorescente de 36W (fornecimento e instalação) | C67: un | D67: 20 | E67: 96.83 | F67: 1936.6 | G67: 97586 | H67: =OFFSET(FONTE!$A$4,N67,4,1) -> SINAPI | J67: =OFFSET(FONTE!$A$4,N67,1,1) -> LUMINÁRIA TIPO CALHA, DE SOBREPOR, COM 2 LÂMPADAS TUBULARES DE 36 W - FORNECIMENTO E INSTALAÇÃO. AF_11/2017 | K67: =OFFSET(FONTE!$A$4,N67,3,1) -> 80.47 | L67: =TRUNC(((K67*BDI!$C$38)+K67),2) -> 96.83 | M67: =OFFSET(FONTE!$A$4,N67,2,1) -> UN | N67: =MATCH(G67,FONTE!$A$4:$A$14171,0)-1 -> 8083 | P67: 20.33055797
A68: 6.3.3 | B68: Luminária Plafon, com Lâmpada LED (fornecimento e instalação) | C68: un | D68: 3 | E68: 120.43 | F68: 361.29 | G68: 97592 | H68: =OFFSET(FONTE!$A$4,N68,4,1) -> SINAPI | J68: =OFFSET(FONTE!$A$4,N68,1,1) -> LUMINÁRIA TIPO PLAFON, DE SOBREPOR, COM 1 LÂMPADA LED - FORNECIMENTO E INSTALAÇÃO. AF_11/2017 | K68: =OFFSET(FONTE!$A$4,N68,3,1) -> 100.08 | L68: =TRUNC(((K68*BDI!$C$38)+K68),2) -> 120.43 | M68: =OFFSET(FONTE!$A$4,N68,2,1) -> UN | N68: =MATCH(G68,FONTE!$A$4:$A$14171,0)-1 -> 8088 | P68: 20.33373301
A69: 6.3.4 | B69: Luminária Arandela Meia-Lua, com 1 Lâmpada LED (fornecimento e instalação) | C69: un | D69: 4 | E69: 84.14 | F69: 336.56 | G69: 97605 | H69: =OFFSET(FONTE!$A$4,N69,4,1) -> SINAPI | J69: =OFFSET(FONTE!$A$4,N69,1,1) -> LUMINÁRIA ARANDELA TIPO MEIA-LUA, PARA 1 LÂMPADA LED - FORNECIMENTO E INSTALAÇÃO. AF_11/2017 | K69: =OFFSET(FONTE!$A$4,N69,3,1) -> 69.92 | L69: =TRUNC(((K69*BDI!$C$38)+K69),2) -> 84.14 | M69: =OFFSET(FONTE!$A$4,N69,2,1) -> UN | N69: =MATCH(G69,FONTE!$A$4:$A$14171,0)-1 -> 8166 | P69: 20.3375286
A70: 6.4 | B70: Tomadas
A71: 6.4.1 | B71: Ponto de Tomada 2P+T - 10A (Caixa, Eletroduto, Cabos e Tomada com Placa) (fornecimento e instalação) | C71: un | D71: 31 | E71: =L71 -> 180.96 | F71: =ROUND((D71*E71),2) -> 5609.76 | G71: 93141 | H71: =OFFSET(FONTE!$A$4,N71,4,1) -> SINAPI | J71: =OFFSET(FONTE!$A$4,N71,1,1) -> PONTO DE TOMADA RESIDENCIAL INCLUINDO TOMADA 10A/250V, CAIXA ELÉTRICA, ELETRODUTO, CABO, RASGO, QUEBRA E CHUMBAMENTO. AF_01/2016 | K71: =OFFSET(FONTE!$A$4,N71,3,1) -> 150.38 | L71: =TRUNC(((K71*BDI!$C$38)+K71),2) -> 180.96 | M71: =OFFSET(FONTE!$A$4,N71,2,1) -> UN | N71: =MATCH(G71,FONTE!$A$4:$A$14171,0)-1 -> 8185 | P71: =(L71*100/K71)-100 -> 20.33515095
A72: 6.4.2 | B72: Ponto de Utilização de Equipamentos Elétricos (Caixa, Eletroduto, Cabos e Placa) (fornecimento e instalação) | C72: un | D72: 5 | E72: =L72 -> 217.83 | F72: =ROUND((D72*E72),2) -> 1089.15 | G72: 93144 | H72: =OFFSET(FONTE!$A$4,N72,4,1) -> SINAPI | J72: =OFFSET(FONTE!$A$4,N72,1,1) -> PONTO DE UTILIZAÇÃO DE EQUIPAMENTOS ELÉTRICOS, RESIDENCIAL, INCLUINDO SUPORTE E PLACA, CAIXA ELÉTRICA, ELETRODUTO, CABO, RASGO, QUEBRA E CHUMBAMENTO. AF_01/2016 | K72: =OFFSET(FONTE!$A$4,N72,3,1) -> 181.02 | L72: =TRUNC(((K72*BDI!$C$38)+K72),2) -> 217.83 | M72: =OFFSET(FONTE!$A$4,N72,2,1) -> UN | N72: =MATCH(G72,FONTE!$A$4:$A$14171,0)-1 -> 8188 | P72: =(L72*100/K72)-100 -> 20.33476964
A73: 7 | B73: INSTALAÇÃO DO SISTEMA DE ÁGUA FRIA | E73: ∑ | F73: =SUBTOTAL(9,F74:F107) -> 1673.18 | I73: =F73/$F$175 -> 0.01441498101
A74: 7.1 | B74: Registro de Gaveta com Canopla Cromada
A75: 7.1.1 | B75: 3/4" | C75: un | D75: 4 | E75: =L75 -> 79.65 | F75: =ROUND((D75*E75),2) -> 318.6 | G75: 89987 | H75: =OFFSET(FONTE!$A$4,N75,4,1) -> SINAPI | J75: =OFFSET(FONTE!$A$4,N75,1,1) -> REGISTRO DE GAVETA BRUTO, LATÃO, ROSCÁVEL, 3/4", COM ACABAMENTO E CANOPLA CROMADOS. FORNECIDO E INSTALADO EM RAMAL DE ÁGUA. AF_12/2014 | K75: =OFFSET(FONTE!$A$4,N75,3,1) -> 66.19 | L75: =TRUNC(((K75*BDI!$C$38)+K75),2) -> 79.65 | M75: =OFFSET(FONTE!$A$4,N75,2,1) -> UN | N75: =MATCH(G75,FONTE!$A$4:$A$14171,0)-1 -> 9624 | P75: =(L75*100/K75)-100 -> 20.3353981
A76: 7.2 | B76: Válvula de Esfera - PVC Soldável
A77: 7.2.1 | B77: 1.1/2" | C77: un | D77: 1 | E77: =L77 -> 35.16 | F77: =ROUND((D77*E77),2) -> 35.16 | G77: 94492 | H77: =OFFSET(FONTE!$A$4,N77,4,1) -> SINAPI | J77: =OFFSET(FONTE!$A$4,N77,1,1) -> REGISTRO DE ESFERA, PVC, SOLDÁVEL, DN 50 MM, INSTALADO EM RESERVAÇÃO DE ÁGUA DE EDIFICAÇÃO QUE POSSUA RESERVATÓRIO DE FIBRA/FIBROCIMENTO FORNECIMENTO E INSTALAÇÃO. AF_06/2016 | K77: =OFFSET(FONTE!$A$4,N77,3,1) -> 29.22 | L77: =TRUNC(((K77*BDI!$C$38)+K77),2) -> 35.16 | M77: =OFFSET(FONTE!$A$4,N77,2,1) -> UN | N77: =MATCH(G77,FONTE!$A$4:$A$14171,0)-1 -> 9629 | P77: =(L77*100/K77)-100 -> 20.32854209
A78: 7.3 | B78: Válvula de Descarga Baixa Pressão, com Acabamento em Metal Cromado
A79: 7.3.1 | B79: 1.1/2" | C79: un | D79: 2 | E79: =L79 -> 230.16 | F79: =ROUND((D79*E79),2) -> 460.32 | G79: 40729 | H79: =OFFSET(FONTE!$A$4,N79,4,1) -> SINAPI | J79: =OFFSET(FONTE!$A$4,N79,1,1) -> VALVULA DESCARGA 1.1/2" COM REGISTRO, ACABAMENTO EM METAL CROMADO - FORNECIMENTO E INSTALACAO | K79: =OFFSET(FONTE!$A$4,N79,3,1) -> 191.26 | L79: =TRUNC(((K79*BDI!$C$38)+K79),2) -> 230.16 | M79: =OFFSET(FONTE!$A$4,N79,2,1) -> UN | N79: =MATCH(G79,FONTE!$A$4:$A$14171,0)-1 -> 9582 | P79: =(L79*100/K79)-100 -> 20.33880581
A80: 7.4 | B80: Adaptador Soldável com Flange para Caixa d'Água
A81: 7.4.1 | B81: 50mm - 1.1/2" | C81: un | D81: 1 | E81: =L81 -> 39.9 | F81: =ROUND((D81*E81),2) -> 39.9 | G81: 94706 | H81: =OFFSET(FONTE!$A$4,N81,4,1) -> SINAPI | J81: =OFFSET(FONTE!$A$4,N81,1,1) -> ADAPTADOR COM FLANGE E ANEL DE VEDAÇÃO, PVC, SOLDÁVEL, DN 50 MM X 1 1/2 , INSTALADO EM RESERVAÇÃO DE ÁGUA DE EDIFICAÇÃO QUE POSSUA RESERVATÓRIO DE FIBRA/FIBROCIMENTO FORNECIMENTO E INSTALAÇÃO. AF_06/2016 | K81: =OFFSET(FONTE!$A$4,N81,3,1) -> 33.16 | L81: =TRUNC(((K81*BDI!$C$38)+K81),2) -> 39.9 | M81: =OFFSET(FONTE!$A$4,N81,2,1) -> UN | N81: =MATCH(G81,FONTE!$A$4:$A$14171,0)-1 -> 9261 | P81: =(L81*100/K81)-100 -> 20.32569361
A82: 7.5 | B82: Adaptador Soldável Curto com Bolsa e Rosca para Registro
A83: 7.5.1 | B83: 50mm - 1.1/2" | C83: un | D83: 2 | E83: =L83 -> 8.41 | F83: =ROUND((D83*E83),2) -> 16.82 | G83: 89596 | H83: =OFFSET(FONTE!$A$4,N83,4,1) -> SINAPI | J83: =OFFSET(FONTE!$A$4,N83,1,1) -> ADAPTADOR CURTO COM BOLSA E ROSCA PARA REGISTRO, PVC, SOLDÁVEL, DN 50MM X 1.1/2, INSTALADO EM PRUMADA DE ÁGUA - FORNECIMENTO E INSTALAÇÃO. AF_12/2014 | K83: =OFFSET(FONTE!$A$4,N83,3,1) -> 6.99 | L83: =TRUNC(((K83*BDI!$C$38)+K83),2) -> 8.41 | M83: =OFFSET(FONTE!$A$4,N83,2,1) -> UN | N83: =MATCH(G83,FONTE!$A$4:$A$14171,0)-1 -> 8682 | P83: =(L83*100/K83)-100 -> 20.31473534
A84: 7.6 | B84: Bucha de Redução Soldável Curta
A85: 7.6.1 | B85: 32mm - 25mm | C85: un | D85: 1 | E85: =L85 -> 5.71 | F85: =ROUND((D85*E85),2) -> 5.71 | G85: CHD007 | H85: =OFFSET(FONTE!$A$4,N85,4,1) -> COMPOSIÇÃO | J85: =OFFSET(FONTE!$A$4,N85,1,1) -> BUCHA DE REDUCAO DE PVC, SOLDAVEL, CURTA, COM 32 X 25 MM, PARA AGUA FRIA PREDIAL - FORNECIMENTO E INSTALAÇÃO | K85: =OFFSET(FONTE!$A$4,N85,3,1) -> 4.75 | L85: =TRUNC(((K85*BDI!$C$38)+K85),2) -> 5.71 | M85: =OFFSET(FONTE!$A$4,N85,2,1) -> un | N85: =MATCH(G85,FONTE!$A$4:$A$14171,0)-1 -> 11963 | P85: =(L85*100/K85)-100 -> 20.21052632
A86: 7.7 | B86: Bucha de Redução Soldável Longa
A87: 7.7.1 | B87: 50mm - 32mm | C87: un | D87: 1 | E87: =L87 -> 8.82 | F87: =ROUND((D87*E87),2) -> 8.82 | G87: CHD010 | H87: =OFFSET(FONTE!$A$4,N87,4,1) -> COMPOSIÇÃO | J87: =OFFSET(FONTE!$A$4,N87,1,1) -> BUCHA DE REDUCAO DE PVC, SOLDAVEL, LONGA, COM 50 X 32 MM, PARA AGUA FRIA PREDIAL - FORNECIMENTO E INSTALAÇÃO | K87: =OFFSET(FONTE!$A$4,N87,3,1) -> 7.33 | L87: =TRUNC(((K87*BDI!$C$38)+K87),2) -> 8.82 | M87: =OFFSET(FONTE!$A$4,N87,2,1) -> un | N87: =MATCH(G87,FONTE!$A$4:$A$14171,0)-1 -> 11966 | P87: =(L87*100/K87)-100 -> 20.32742156
A88: 7.8 | B88: Joelho 45° Soldável
A89: 7.8.1 | B89: 25mm | C89: un | D89: 3 | E89: =L89 -> 5.98 | F89: =ROUND((D89*E89),2) -> 17.94 | G89: 89409 | H89: =OFFSET(FONTE!$A$4,N89,4,1) -> SINAPI | J89: =OFFSET(FONTE!$A$4,N89,1,1) -> JOELHO 45 GRAUS, PVC, SOLDÁVEL, DN 25MM, INSTALADO EM RAMAL DE DISTRIBUIÇÃO DE ÁGUA - FORNECIMENTO E INSTALAÇÃO. AF_12/2014 | K89: =OFFSET(FONTE!$A$4,N89,3,1) -> 4.97 | L89: =TRUNC(((K89*BDI!$C$38)+K89),2) -> 5.98 | M89: =OFFSET(FONTE!$A$4,N89,2,1) -> UN | N89: =MATCH(G89,FONTE!$A$4:$A$14171,0)-1 -> 8551 | P89: =(L89*100/K89)-100 -> 20.32193159
A90: 7.8.2 | B90: 50mm | C90: un | D90: 1 | E90: =L90 -> 12.04 | F90: =ROUND((D90*E90),2) -> 12.04 | G90: 89502 | H90: =OFFSET(FONTE!$A$4,N90,4,1) -> SINAPI | J90: =OFFSET(FONTE!$A$4,N90,1,1) -> JOELHO 45 GRAUS, PVC, SOLDÁVEL, DN 50MM, INSTALADO EM PRUMADA DE ÁGUA - FORNECIMENTO E INSTALAÇÃO. AF_12/2014 | K90: =OFFSET(FONTE!$A$4,N90,3,1) -> 10.01 | L90: =TRUNC(((K90*BDI!$C$38)+K90),2) -> 12.04 | M90: =OFFSET(FONTE!$A$4,N90,2,1) -> UN | N90: =MATCH(G90,FONTE!$A$4:$A$14171,0)-1 -> 8601 | P90: =(L90*100/K90)-100 -> 20.27972028
A91: 7.9 | B91: Joelho 90° Soldável
A92: 7.9.1 | B92: 25mm | C92: un | D92: 6 | E92: =L92 -> 5.53 | F92: =ROUND((D92*E92),2) -> 33.18 | G92: 89408 | H92: =OFFSET(FONTE!$A$4,N92,4,1) -> SINAPI | J92: =OFFSET(FONTE!$A$4,N92,1,1) -> JOELHO 90 GRAUS, PVC, SOLDÁVEL, DN 25MM, INSTALADO EM RAMAL DE DISTRIBUIÇÃO DE ÁGUA - FORNECIMENTO E INSTALAÇÃO. AF_12/2014 | K92: =OFFSET(FONTE!$A$4,N92,3,1) -> 4.6 | L92: =TRUNC(((K92*BDI!$C$38)+K92),2) -> 5.53 | M92: =OFFSET(FONTE!$A$4,N92,2,1) -> UN | N92: =MATCH(G92,FONTE!$A$4:$A$14171,0)-1 -> 8550 | P92: =(L92*100/K92)-100 -> 20.2173913
A93: 7.9.2 | B93: 50mm | C93: un | D93: 4 | E93: =L93 -> 11.13 | F93: =ROUND((D93*E93),2) -> 44.52 | G93: 89501 | H93: =OFFSET(FONTE!$A$4,N93,4,1) -> SINAPI | J93: =OFFSET(FONTE!$A$4,N93,1,1) -> JOELHO 90 GRAUS, PVC, SOLDÁVEL, DN 50MM, INSTALADO EM PRUMADA DE ÁGUA - FORNECIMENTO E INSTALAÇÃO. AF_12/2014 | K93: =OFFSET(FONTE!$A$4,N93,3,1) -> 9.25 | L93: =TRUNC(((K93*BDI!$C$38)+K93),2) -> 11.13 | M93: =OFFSET(FONTE!$A$4,N93,2,1) -> UN | N93: =MATCH(G93,FONTE!$A$4:$A$14171,0)-1 -> 8600 | P93: =(L93*100/K93)-100 -> 20.32432432
A94: 7.10 | B94: Tê 90° Soldável
A95: 7.10.1 | B95: 25mm | C95: un | D95: 1 | E95: =L95 -> 5.84 | F95: =ROUND((D95*E95),2) -> 5.84 | G95: 89617 | H95: =OFFSET(FONTE!$A$4,N95,4,1) -> SINAPI | J95: =OFFSET(FONTE!$A$4,N95,1,1) -> TE, PVC, SOLDÁVEL, DN 25MM, INSTALADO EM PRUMADA DE ÁGUA - FORNECIMENTO E INSTALAÇÃO. AF_12/2014 | K95: =OFFSET(FONTE!$A$4,N95,3,1) -> 4.86 | L95: =TRUNC(((K95*BDI!$C$38)+K95),2) -> 5.84 | M95: =OFFSET(FONTE!$A$4,N95,2,1) -> UN | N95: =MATCH(G95,FONTE!$A$4:$A$14171,0)-1 -> 8696 | P95: =(L95*100/K95)-100 -> 20.16460905
A96: 7.10.2 | B96: 50mm | C96: un | D96: 2 | E96: =L96 -> 16.73 | F96: =ROUND((D96*E96),2) -> 33.46 | G96: 89625 | H96: =OFFSET(FONTE!$A$4,N96,4,1) -> SINAPI | J96: =OFFSET(FONTE!$A$4,N96,1,1) -> TE, PVC, SOLDÁVEL, DN 50MM, INSTALADO EM PRUMADA DE ÁGUA - FORNECIMENTO E INSTALAÇÃO. AF_12/2014 | K96: =OFFSET(FONTE!$A$4,N96,3,1) -> 13.91 | L96: =TRUNC(((K96*BDI!$C$38)+K96),2) -> 16.73 | M96: =OFFSET(FONTE!$A$4,N96,2,1) -> UN | N96: =MATCH(G96,FONTE!$A$4:$A$14171,0)-1 -> 8704 | P96: =(L96*100/K96)-100 -> 20.27318476
A97: 7.11 | B97: Tubos PVC Soldável
A98: 7.11.1 | B98: 25mm | C98: m | D98: 19.77 | E98: =L98 -> 8.97 | F98: =ROUND((D98*E98),2) -> 177.34 | G98: 89402 | H98: =OFFSET(FONTE!$A$4,N98,4,1) -> SINAPI | J98: =OFFSET(FONTE!$A$4,N98,1,1) -> TUBO, PVC, SOLDÁVEL, DN 25MM, INSTALADO EM RAMAL DE DISTRIBUIÇÃO DE ÁGUA - FORNECIMENTO E INSTALAÇÃO. AF_12/2014 | K98: =OFFSET(FONTE!$A$4,N98,3,1) -> 7.46 | L98: =TRUNC(((K98*BDI!$C$38)+K98),2) -> 8.97 | M98: =OFFSET(FONTE!$A$4,N98,2,1) -> M | N98: =MATCH(G98,FONTE!$A$4:$A$14171,0)-1 -> 8323 | P98: =(L98*100/K98)-100 -> 20.24128686
A99: 7.11.2 | B99: 32mm | C99: m | D99: 1.38 | E99: =L99 -> 14.21 | F99: =ROUND((D99*E99),2) -> 19.61 | G99: 89403 | H99: =OFFSET(FONTE!$A$4,N99,4,1) -> SINAPI | J99: =OFFSET(FONTE!$A$4,N99,1,1) -> TUBO, PVC, SOLDÁVEL, DN 32MM, INSTALADO EM RAMAL DE DISTRIBUIÇÃO DE ÁGUA - FORNECIMENTO E INSTALAÇÃO. AF_12/2014 | K99: =OFFSET(FONTE!$A$4,N99,3,1) -> 11.81 | L99: =TRUNC(((K99*BDI!$C$38)+K99),2) -> 14.21 | M99: =OFFSET(FONTE!$A$4,N99,2,1) -> M | N99: =MATCH(G99,FONTE!$A$4:$A$14171,0)-1 -> 8324 | P99: =(L99*100/K99)-100 -> 20.32176122
A100: 7.11.3 | B100: 50mm | C100: m | D100: =13.7+7 -> 20.7 | E100: =L100 -> 15.72 | F100: =ROUND((D100*E100),2) -> 325.4 | G100: 89449 | H100: =OFFSET(FONTE!$A$4,N100,4,1) -> SINAPI | J100: =OFFSET(FONTE!$A$4,N100,1,1) -> TUBO, PVC, SOLDÁVEL, DN 50MM, INSTALADO EM PRUMADA DE ÁGUA - FORNECIMENTO E INSTALAÇÃO. AF_12/2014 | K100: =OFFSET(FONTE!$A$4,N100,3,1) -> 13.07 | L100: =TRUNC(((K100*BDI!$C$38)+K100),2) -> 15.72 | M100: =OFFSET(FONTE!$A$4,N100,2,1) -> M | N100: =MATCH(G100,FONTE!$A$4:$A$14171,0)-1 -> 8328 | P100: =(L100*100/K100)-100 -> 20.27543994
A101: 7.12 | B101: Tê de Redução 90° Soldável
A102: 7.12.1 | B102: 50mm - 25mm | C102: un | D102: 2 | E102: =L102 -> 16.51 | F102: =ROUND((D102*E102),2) -> 33.02 | G102: 89627 | H102: =OFFSET(FONTE!$A$4,N102,4,1) -> SINAPI | J102: =OFFSET(FONTE!$A$4,N102,1,1) -> TÊ DE REDUÇÃO, PVC, SOLDÁVEL, DN 50MM X 25MM, INSTALADO EM PRUMADA DE ÁGUA - FORNECIMENTO E INSTALAÇÃO. AF_12/2014 | K102: =OFFSET(FONTE!$A$4,N102,3,1) -> 13.72 | L102: =TRUNC(((K102*BDI!$C$38)+K102),2) -> 16.51 | M102: =OFFSET(FONTE!$A$4,N102,2,1) -> UN | N102: =MATCH(G102,FONTE!$A$4:$A$14171,0)-1 -> 8706 | P102: =(L102*100/K102)-100 -> 20.33527697
A103: 7.12.2 | B103: 32mm - 25mm | C103: un | D103: 1 | E103: =L103 -> 10.61 | F103: =ROUND((D103*E103),2) -> 10.61 | G103: 89622 | H103: =OFFSET(FONTE!$A$4,N103,4,1) -> SINAPI | J103: =OFFSET(FONTE!$A$4,N103,1,1) -> TÊ DE REDUÇÃO, PVC, SOLDÁVEL, DN 32MM X 25MM, INSTALADO EM PRUMADA DE ÁGUA - FORNECIMENTO E INSTALAÇÃO. AF_12/2014 | K103: =OFFSET(FONTE!$A$4,N103,3,1) -> 8.82 | L103: =TRUNC(((K103*BDI!$C$38)+K103),2) -> 10.61 | M103: =OFFSET(FONTE!$A$4,N103,2,1) -> UN | N103: =MATCH(G103,FONTE!$A$4:$A$14171,0)-1 -> 8701 | P103: =(L103*100/K103)-100 -> 20.29478458
A104: 7.13 | B104: Joelho de Redução 90° Soldável com Bucha de Latão
A105: 7.13.1 | B105: 25mm - 1/2" | C105: un | D105: 5 | E105: =L105 -> 12.17 | F105: =ROUND((D105*E105),2) -> 60.85 | G105: 90373 | H105: =OFFSET(FONTE!$A$4,N105,4,1) -> SINAPI | J105: =OFFSET(FONTE!$A$4,N105,1,1) -> JOELHO 90 GRAUS COM BUCHA DE LATÃO, PVC, SOLDÁVEL, DN 25MM, X 1/2 INSTALADO EM RAMAL OU SUB-RAMAL DE ÁGUA - FORNECIMENTO E INSTALAÇÃO. AF_12/2014 | K105: =OFFSET(FONTE!$A$4,N105,3,1) -> 10.12 | L105: =TRUNC(((K105*BDI!$C$38)+K105),2) -> 12.17 | M105: =OFFSET(FONTE!$A$4,N105,2,1) -> UN | N105: =MATCH(G105,FONTE!$A$4:$A$14171,0)-1 -> 8919 | P105: =(L105*100/K105)-100 -> 20.256917
A106: 7.14 | B106: Tê de Redução 90° Soldável com Bucha de Latão
A107: 7.14.1 | B107: 25mm - 1/2" | C107: un | D107: 1 | E107: =L107 -> 14.04 | F107: =ROUND((D107*E107),2) -> 14.04 | G107: 89441 | H107: =OFFSET(FONTE!$A$4,N107,4,1) -> SINAPI | J107: =OFFSET(FONTE!$A$4,N107,1,1) -> TÊ COM BUCHA DE LATÃO NA BOLSA CENTRAL, PVC, SOLDÁVEL, DN 25MM X 1/2, INSTALADO EM RAMAL DE DISTRIBUIÇÃO DE ÁGUA - FORNECIMENTO E INSTALAÇÃO. AF_12/2014 | K107: =OFFSET(FONTE!$A$4,N107,3,1) -> 11.67 | L107: =TRUNC(((K107*BDI!$C$38)+K107),2) -> 14.04 | M107: =OFFSET(FONTE!$A$4,N107,2,1) -> UN | N107: =MATCH(G107,FONTE!$A$4:$A$14171,0)-1 -> 8583 | P107: =(L107*100/K107)-100 -> 20.30848329
A108: 8 | B108: REDE DE ESGOTO SANITÁRIO | E108: ∑ | F108: =SUBTOTAL(9,F109:F128) -> 1525.87 | I108: =F108/$F$175 -> 0.01314585823
A109: 8.1 | B109: Caixa de inspeção
A110: 8.1.1 | B110: 60x60cm | C110: un | D110: 1 | E110: =L110 -> 176.41 | F110: =ROUND((D110*E110),2) -> 176.41 | G110: 74104/1 | H110: =OFFSET(FONTE!$A$4,N110,4,1) -> SINAPI | J110: =OFFSET(FONTE!$A$4,N110,1,1) -> CAIXA DE INSPEÇÃO EM ALVENARIA DE TIJOLO MACIÇO 60X60X60CM, REVESTIDA INTERNAMENTO COM BARRA LISA (CIMENTO E AREIA, TRAÇO 1:4) E=2,0CM, COM TAMPA PRÉ-MOLDADA DE CONCRETO E FUNDO DE CONCRETO 15MPA TIPO C - ESCAVAÇÃO E CONFECÇÃO | K110: =OFFSET(FONTE!$A$4,N110,3,1) -> 146.6 | L110: =TRUNC(((K110*BDI!$C$38)+K110),2) -> 176.41 | M110: =OFFSET(FONTE!$A$4,N110,2,1) -> UN | N110: =MATCH(G110,FONTE!$A$4:$A$14171,0)-1 -> 9485 | P110: =(L110*100/K110)-100 -> 20.33424284
A111: 8.2 | B111: Caixa sifonada
A112: 8.2.1 | B112: 150x150x50 | C112: un | D112: 3 | E112: =L112 -> 24.91 | F112: =ROUND((D112*E112),2) -> 74.73 | G112: 89707 | H112: =OFFSET(FONTE!$A$4,N112,4,1) -> SINAPI | J112: =OFFSET(FONTE!$A$4,N112,1,1) -> CAIXA SIFONADA, PVC, DN 100 X 100 X 50 MM, JUNTA ELÁSTICA, FORNECIDA E INSTALADA EM RAMAL DE DESCARGA OU EM RAMAL DE ESGOTO SANITÁRIO. AF_12/2014 | K112: =OFFSET(FONTE!$A$4,N112,3,1) -> 20.7 | L112: =TRUNC(((K112*BDI!$C$38)+K112),2) -> 24.91 | M112: =OFFSET(FONTE!$A$4,N112,2,1) -> UN | N112: =MATCH(G112,FONTE!$A$4:$A$14171,0)-1 -> 9493 | P112: =(L112*100/K112)-100 -> 20.33816425
A113: 8.3 | B113: Curva PVC 90° curta
A114: 8.3.1 | B114: 40mm | C114: un | D114: 3 | E114: =L114 -> 9.85 | F114: =ROUND((D114*E114),2) -> 29.55 | G114: 89728 | H114: =OFFSET(FONTE!$A$4,N114,4,1) -> SINAPI | J114: =OFFSET(FONTE!$A$4,N114,1,1) -> CURVA CURTA 90 GRAUS, PVC, SERIE NORMAL, ESGOTO PREDIAL, DN 40 MM, JUNTA SOLDÁVEL, FORNECIDO E INSTALADO EM RAMAL DE DESCARGA OU RAMAL DE ESGOTO SANITÁRIO. AF_12/2014 | K114: =OFFSET(FONTE!$A$4,N114,3,1) -> 8.19 | L114: =TRUNC(((K114*BDI!$C$38)+K114),2) -> 9.85 | M114: =OFFSET(FONTE!$A$4,N114,2,1) -> UN | N114: =MATCH(G114,FONTE!$A$4:$A$14171,0)-1 -> 8787 | P114: =(L114*100/K114)-100 -> 20.26862027
A115: 8.4 | B115: Joelho PVC 45°
A116: 8.4.1 | B116: 40mm | C116: un | D116: 3 | E116: =L116 -> 7.81 | F116: =ROUND((D116*E116),2) -> 23.43 | G116: 89726 | H116: =OFFSET(FONTE!$A$4,N116,4,1) -> SINAPI | J116: =OFFSET(FONTE!$A$4,N116,1,1) -> JOELHO 45 GRAUS, PVC, SERIE NORMAL, ESGOTO PREDIAL, DN 40 MM, JUNTA SOLDÁVEL, FORNECIDO E INSTALADO EM RAMAL DE DESCARGA OU RAMAL DE ESGOTO SANITÁRIO. AF_12/2014 | K116: =OFFSET(FONTE!$A$4,N116,3,1) -> 6.49 | L116: =TRUNC(((K116*BDI!$C$38)+K116),2) -> 7.81 | M116: =OFFSET(FONTE!$A$4,N116,2,1) -> UN | N116: =MATCH(G116,FONTE!$A$4:$A$14171,0)-1 -> 8785 | P116: =(L116*100/K116)-100 -> 20.33898305
A117: 8.4.2 | B117: 50mm | C117: un | D117: 1 | E117: =L117 -> 9.9 | F117: =ROUND((D117*E117),2) -> 9.9 | G117: 89732 | H117: =OFFSET(FONTE!$A$4,N117,4,1) -> SINAPI | J117: =OFFSET(FONTE!$A$4,N117,1,1) -> JOELHO 45 GRAUS, PVC, SERIE NORMAL, ESGOTO PREDIAL, DN 50 MM, JUNTA ELÁSTICA, FORNECIDO E INSTALADO EM RAMAL DE DESCARGA OU RAMAL DE ESGOTO SANITÁRIO. AF_12/2014 | K117: =OFFSET(FONTE!$A$4,N117,3,1) -> 8.23 | L117: =TRUNC(((K117*BDI!$C$38)+K117),2) -> 9.9 | M117: =OFFSET(FONTE!$A$4,N117,2,1) -> UN | N117: =MATCH(G117,FONTE!$A$4:$A$14171,0)-1 -> 8791 | P117: =(L117*100/K117)-100 -> 20.29161604
A118: 8.4.3 | B118: 100mm | C118: un | D118: 3 | E118: =L118 -> 20.6 | F118: =ROUND((D118*E118),2) -> 61.8 | G118: 89746 | H118: =OFFSET(FONTE!$A$4,N118,4,1) -> SINAPI | J118: =OFFSET(FONTE!$A$4,N118,1,1) -> JOELHO 45 GRAUS, PVC, SERIE NORMAL, ESGOTO PREDIAL, DN 100 MM, JUNTA ELÁSTICA, FORNECIDO E INSTALADO EM RAMAL DE DESCARGA OU RAMAL DE ESGOTO SANITÁRIO. AF_12/2014 | K118: =OFFSET(FONTE!$A$4,N118,3,1) -> 17.12 | L118: =TRUNC(((K118*BDI!$C$38)+K118),2) -> 20.6 | M118: =OFFSET(FONTE!$A$4,N118,2,1) -> UN | N118: =MATCH(G118,FONTE!$A$4:$A$14171,0)-1 -> 8805 | P118: =(L118*100/K118)-100 -> 20.3271028
A119: 8.5 | B119: Joelho PVC 90°
A120: 8.5.1 | B120: 40mm | C120: un | D120: 1 | E120: =L120 -> 7.06 | F120: =ROUND((D120*E120),2) -> 7.06 | G120: 89724 | H120: =OFFSET(FONTE!$A$4,N120,4,1) -> SINAPI | J120: =OFFSET(FONTE!$A$4,N120,1,1) -> JOELHO 90 GRAUS, PVC, SERIE NORMAL, ESGOTO PREDIAL, DN 40 MM, JUNTA SOLDÁVEL, FORNECIDO E INSTALADO EM RAMAL DE DESCARGA OU RAMAL DE ESGOTO SANITÁRIO. AF_12/2014 | K120: =OFFSET(FONTE!$A$4,N120,3,1) -> 5.87 | L120: =TRUNC(((K120*BDI!$C$38)+K120),2) -> 7.06 | M120: =OFFSET(FONTE!$A$4,N120,2,1) -> UN | N120: =MATCH(G120,FONTE!$A$4:$A$14171,0)-1 -> 8783 | P120: =(L120*100/K120)-100 -> 20.2725724
A121: 8.5.2 | B121: 100mm | C121: un | D121: 2 | E121: =L121 -> 20.54 | F121: =ROUND((D121*E121),2) -> 41.08 | G121: 89744 | H121: =OFFSET(FONTE!$A$4,N121,4,1) -> SINAPI | J121: =OFFSET(FONTE!$A$4,N121,1,1) -> JOELHO 90 GRAUS, PVC, SERIE NORMAL, ESGOTO PREDIAL, DN 100 MM, JUNTA ELÁSTICA, FORNECIDO E INSTALADO EM RAMAL DE DESCARGA OU RAMAL DE ESGOTO SANITÁRIO. AF_12/2014 | K121: =OFFSET(FONTE!$A$4,N121,3,1) -> 17.07 | L121: =TRUNC(((K121*BDI!$C$38)+K121),2) -> 20.54 | M121: =OFFSET(FONTE!$A$4,N121,2,1) -> UN | N121: =MATCH(G121,FONTE!$A$4:$A$14171,0)-1 -> 8803 | P121: =(L121*100/K121)-100 -> 20.32806093
A122: 8.6 | B122: Junção Simples PVC
A123: 8.6.1 | B123: 100mm - 50mm | C123: un | D123: 3 | E123: =L123 -> 25.03 | F123: =ROUND((D123*E123),2) -> 75.09 | G123: CHD019 | H123: =OFFSET(FONTE!$A$4,N123,4,1) -> COMPOSIÇÃO | J123: =OFFSET(FONTE!$A$4,N123,1,1) -> JUNCAO SIMPLES, PVC, DN 100 X 50 MM, SERIE NORMAL PARA ESGOTO PREDIAL - FORNECIMENTOE INSTALAÇÃO | K123: =OFFSET(FONTE!$A$4,N123,3,1) -> 20.8 | L123: =TRUNC(((K123*BDI!$C$38)+K123),2) -> 25.03 | M123: =OFFSET(FONTE!$A$4,N123,2,1) -> un | N123: =MATCH(G123,FONTE!$A$4:$A$14171,0)-1 -> 11975 | P123: =(L123*100/K123)-100 -> 20.33653846
A124: 8.6.2 | B124: 100mm - 100mm | C124: un | D124: 1 | E124: 36.96 | F124: 36.96 | G124: 89797 | H124: =OFFSET(FONTE!$A$4,N124,4,1) -> SINAPI | J124: =OFFSET(FONTE!$A$4,N124,1,1) -> JUNÇÃO SIMPLES, PVC, SERIE NORMAL, ESGOTO PREDIAL, DN 100 X 100 MM, JUNTA ELÁSTICA, FORNECIDO E INSTALADO EM RAMAL DE DESCARGA OU RAMAL DE ESGOTO SANITÁRIO. AF_12/2014 | K124: =OFFSET(FONTE!$A$4,N124,3,1) -> 30.72 | L124: =TRUNC(((K124*BDI!$C$38)+K124),2) -> 36.96 | M124: =OFFSET(FONTE!$A$4,N124,2,1) -> UN | N124: =MATCH(G124,FONTE!$A$4:$A$14171,0)-1 -> 8852 | P124: 20.3125
A125: 8.7 | B125: Tubo Rígido com Ponta Lisa
A126: 8.7.1 | B126: 40mm | C126: un | D126: 6.09 | E126: =L126 -> 17.59 | F126: =ROUND((D126*E126),2) -> 107.12 | G126: 89711 | H126: =OFFSET(FONTE!$A$4,N126,4,1) -> SINAPI | J126: =OFFSET(FONTE!$A$4,N126,1,1) -> TUBO PVC, SERIE NORMAL, ESGOTO PREDIAL, DN 40 MM, FORNECIDO E INSTALADO EM RAMAL DE DESCARGA OU RAMAL DE ESGOTO SANITÁRIO. AF_12/2014 | K126: =OFFSET(FONTE!$A$4,N126,3,1) -> 14.62 | L126: =TRUNC(((K126*BDI!$C$38)+K126),2) -> 17.59 | M126: =OFFSET(FONTE!$A$4,N126,2,1) -> M | N126: =MATCH(G126,FONTE!$A$4:$A$14171,0)-1 -> 8343 | P126: =(L126*100/K126)-100 -> 20.31463748
A127: 8.7.2 | B127: 50mm - 2" | C127: un | D127: 7.42 | E127: =L127 -> 25.29 | F127: =ROUND((D127*E127),2) -> 187.65 | G127: 89712 | H127: =OFFSET(FONTE!$A$4,N127,4,1) -> SINAPI | J127: =OFFSET(FONTE!$A$4,N127,1,1) -> TUBO PVC, SERIE NORMAL, ESGOTO PREDIAL, DN 50 MM, FORNECIDO E INSTALADO EM RAMAL DE DESCARGA OU RAMAL DE ESGOTO SANITÁRIO. AF_12/2014 | K127: =OFFSET(FONTE!$A$4,N127,3,1) -> 21.02 | L127: =TRUNC(((K127*BDI!$C$38)+K127),2) -> 25.29 | M127: =OFFSET(FONTE!$A$4,N127,2,1) -> M | N127: =MATCH(G127,FONTE!$A$4:$A$14171,0)-1 -> 8344 | P127: =(L127*100/K127)-100 -> 20.31398668
A128: 8.7.3 | B128: 100mm - 4" | C128: un | D128: 14.2 | E128: =L128 -> 48.95 | F128: =ROUND((D128*E128),2) -> 695.09 | G128: 89714 | H128: =OFFSET(FONTE!$A$4,N128,4,1) -> SINAPI | J128: =OFFSET(FONTE!$A$4,N128,1,1) -> TUBO PVC, SERIE NORMAL, ESGOTO PREDIAL, DN 100 MM, FORNECIDO E INSTALADO EM RAMAL DE DESCARGA OU RAMAL DE ESGOTO SANITÁRIO. AF_12/2014 | K128: =OFFSET(FONTE!$A$4,N128,3,1) -> 40.68 | L128: =TRUNC(((K128*BDI!$C$38)+K128),2) -> 48.95 | M128: =OFFSET(FONTE!$A$4,N128,2,1) -> M | N128: =MATCH(G128,FONTE!$A$4:$A$14171,0)-1 -> 8346 | P128: =(L128*100/K128)-100 -> 20.3294002
A129: 9 | B129: INSTALAÇÃO DOS APARELHOS SANITÁRIOS E ACESSÓRIOS | E129: ∑ | F129: =SUBTOTAL(9,F130:F148) -> 6453.48 | I129: =F129/$F$175 -> 0.05559879489
A130: 9.1 | B130: Lavatório Louça Branca Suspenso, 29,5x39cm ou equivalente, Padrão Popular, incluso Sifão Flexível em PVC, Válvula e Engate Flexível 30cm em Plástico e com Torneira Cromada de Mesa, Padrão Popular (fornecimento e instalação) | C130: un | D130: 2 | E130: =L130 -> 200.1 | F130: =ROUND((D130*E130),2) -> 400.2 | G130: 86943 | H130: =OFFSET(FONTE!$A$4,N130,4,1) -> SINAPI | J130: =OFFSET(FONTE!$A$4,N130,1,1) -> LAVATÓRIO LOUÇA BRANCA SUSPENSO, 29,5 X 39CM OU EQUIVALENTE, PADRÃO POPULAR, INCLUSO SIFÃO FLEXÍVEL EM PVC, VÁLVULA E ENGATE FLEXÍVEL 30CM EM PLÁSTICO E TORNEIRA CROMADA DE MESA, PADRÃO POPULAR - FORNECIMENTO E INSTALAÇÃO. AF_12/2013 | K130: =OFFSET(FONTE!$A$4,N130,3,1) -> 166.28 | L130: =TRUNC(((K130*BDI!$C$38)+K130),2) -> 200.1 | M130: =OFFSET(FONTE!$A$4,N130,2,1) -> UN | N130: =MATCH(G130,FONTE!$A$4:$A$14171,0)-1 -> 9560 | P130: =(L130*100/K130)-100 -> 20.33918691
A131: 9.2 | B131: Vaso Sanitário para Válvula de Descarga de 1.1/2" incluso Conjunto de Ligação para Bacia Sanitária Ajustável (fornecimento e instalação) | C131: un | D131: 2 | E131: 191.12 | F131: 382.24 | G131: 95470 | H131: =OFFSET(FONTE!$A$4,N131,4,1) -> SINAPI | J131: =OFFSET(FONTE!$A$4,N131,1,1) -> VASO SANITARIO SIFONADO CONVENCIONAL COM LOUÇA BRANCA, INCLUSO CONJUNTO DE LIGAÇÃO PARA BACIA SANITÁRIA AJUSTÁVEL - FORNECIMENTO E INSTALAÇÃO. AF_10/2016 | K131: =OFFSET(FONTE!$A$4,N131,3,1) -> 158.82 | L131: =TRUNC(((K131*BDI!$C$38)+K131),2) -> 191.12 | M131: =OFFSET(FONTE!$A$4,N131,2,1) -> UN | N131: =MATCH(G131,FONTE!$A$4:$A$14171,0)-1 -> 9567 | P131: 20.33748898
A132: 9.3 | B132: Ducha Higiênica Metálica de Parede Articulável (fornecimento e instalação) | C132: un | D132: 2 | E132: 242.97 | F132: 485.94 | G132: CAC001 | H132: =OFFSET(FONTE!$A$4,N132,4,1) -> COMPOSIÇÃO | J132: =OFFSET(FONTE!$A$4,N132,1,1) -> DUCHA HIGIÊNICA METÁLICA DE PAREDE ARTICULÁVEL (fornecimento e instalação) | K132: =OFFSET(FONTE!$A$4,N132,3,1) -> 201.91 | L132: =TRUNC(((K132*BDI!$C$38)+K132),2) -> 242.97 | M132: =OFFSET(FONTE!$A$4,N132,2,1) -> un | N132: =MATCH(G132,FONTE!$A$4:$A$14171,0)-1 -> 11988 | P132: 20.33579318
A133: 9.4 | B133: Alarme de Emergencia Audiovisual (fornecimento e instalação) | C133: un | D133: 2 | E133: 552.86 | F133: 1105.72 | G133: CAC002 | H133: =OFFSET(FONTE!$A$4,N133,4,1) -> COMPOSIÇÃO | J133: =OFFSET(FONTE!$A$4,N133,1,1) -> ALARME DE EMERGÊNCIA AUDIOVISUAL (fornecimento e instalação) | K133: =OFFSET(FONTE!$A$4,N133,3,1) -> 459.42 | L133: =TRUNC(((K133*BDI!$C$38)+K133),2) -> 552.86 | M133: =OFFSET(FONTE!$A$4,N133,2,1) -> un | N133: =MATCH(G133,FONTE!$A$4:$A$14171,0)-1 -> 11989 | P133: 20.33868791
A134: 9.5 | B134: Barra de Apoio
A135: 9.5.1 | B135: Barra de Apoio Angular, 60cm, em Aço Inox Polido (fornecimento e instalação) | C135: un | D135: 2 | E135: =L135 -> 318.6 | F135: =ROUND((D135*E135),2) -> 637.2 | G135: CAC003 | H135: =OFFSET(FONTE!$A$4,N135,4,1) -> COMPOSIÇÃO | J135: =OFFSET(FONTE!$A$4,N135,1,1) -> BARRA DE APOIO ANGULAR, 60 CM, EM ACO INOX POLIDO (fornecimento e instalação) | K135: =OFFSET(FONTE!$A$4,N135,3,1) -> 264.75 | L135: =TRUNC(((K135*BDI!$C$38)+K135),2) -> 318.6 | M135: =OFFSET(FONTE!$A$4,N135,2,1) -> un | N135: =MATCH(G135,FONTE!$A$4:$A$14171,0)-1 -> 11990 | P135: =(L135*100/K135)-100 -> 20.33994334
A136: 9.5.2 | B136: Barra de Apoio Reta, em Alumínio, 40cm (fornecimento e instalação) | C136: un | D136: 4 | E136: 145.52 | F136: 582.08 | G136: CAC004 | H136: =OFFSET(FONTE!$A$4,N136,4,1) -> COMPOSIÇÃO | J136: =OFFSET(FONTE!$A$4,N136,1,1) -> BARRA DE APOIO RETA, EM ALUMINIO, COMPRIMENTO 60CM OU MENOR (fornecimento e instalação) | K136: =OFFSET(FONTE!$A$4,N136,3,1) -> 120.93 | L136: =TRUNC(((K136*BDI!$C$38)+K136),2) -> 145.52 | M136: =OFFSET(FONTE!$A$4,N136,2,1) -> un | N136: =MATCH(G136,FONTE!$A$4:$A$14171,0)-1 -> 11991 | P136: 20.33407757
A137: 9.5.3 | B137: Barra de Apoio Reta, em Alumínio, 70cm (fornecimento e instalação) | C137: un | D137: 2 | E137: 164.86 | F137: 329.72 | G137: CAC005 | H137: =OFFSET(FONTE!$A$4,N137,4,1) -> COMPOSIÇÃO | J137: =OFFSET(FONTE!$A$4,N137,1,1) -> BARRA DE APOIO RETA, EM ALUMINIO, COMPRIMENTO 70CM (fornecimento e instalação) | K137: =OFFSET(FONTE!$A$4,N137,3,1) -> 137 | L137: =TRUNC(((K137*BDI!$C$38)+K137),2) -> 164.86 | M137: =OFFSET(FONTE!$A$4,N137,2,1) -> un | N137: =MATCH(G137,FONTE!$A$4:$A$14171,0)-1 -> 11992 | P137: 20.33576642
A138: 9.5.4 | B138: Barra de Apoio Reta, em Alumínio, 80cm (fornecimento e instalação) | C138: un | D138: 4 | E138: 177.21 | F138: 708.84 | G138: CAC006 | H138: =OFFSET(FONTE!$A$4,N138,4,1) -> COMPOSIÇÃO | J138: =OFFSET(FONTE!$A$4,N138,1,1) -> BARRA DE APOIO RETA, EM ALUMINIO, COMPRIMENTO 80CM (fornecimento e instalação) | K138: =OFFSET(FONTE!$A$4,N138,3,1) -> 147.26 | L138: =TRUNC(((K138*BDI!$C$38)+K138),2) -> 177.21 | M138: =OFFSET(FONTE!$A$4,N138,2,1) -> un | N138: =MATCH(G138,FONTE!$A$4:$A$14171,0)-1 -> 11993 | P138: 20.33817737
A139: 9.6 | B139: Espelho Cristal 80x50cm e=4mm, com Moldura de Madeira | C139: m2 | D139: =ROUND((0.5*0.8*2),2) -> 0.8 | E139: 353.61 | F139: 282.89 | G139: 74125/1 | H139: =OFFSET(FONTE!$A$4,N139,4,1) -> SINAPI | J139: =OFFSET(FONTE!$A$4,N139,1,1) -> ESPELHO CRISTAL ESPESSURA 4MM, COM MOLDURA DE MADEIRA | K139: =OFFSET(FONTE!$A$4,N139,3,1) -> 293.85 | L139: =TRUNC(((K139*BDI!$C$38)+K139),2) -> 353.61 | M139: =OFFSET(FONTE!$A$4,N139,2,1) -> M2 | N139: =MATCH(G139,FONTE!$A$4:$A$14171,0)-1 -> 7081 | P139: 20.33690658
A140: 9.7 | B140: =J140 -> Exaustor para Ventilação Mecânica para Banheiros | C140: un | D140: 2 | E140: =L140 -> 339.45 | F140: =ROUND((D140*E140),2) -> 678.9 | G140: CED900 | H140: =OFFSET(FONTE!$A$4,N140,4,1) -> COMPOSIÇÃO | J140: =OFFSET(FONTE!$A$4,N140,1,1) -> Exaustor para Ventilação Mecânica para Banheiros | K140: =OFFSET(FONTE!$A$4,N140,3,1) -> 282.08 | L140: =TRUNC(((K140*BDI!$C$38)+K140),2) -> 339.45 | M140: =OFFSET(FONTE!$A$4,N140,2,1) -> un | N140: =MATCH(G140,FONTE!$A$4:$A$14171,0)-1 -> 11899 | P140: =(L140*100/K140)-100 -> 20.33820193
A141: 9.8 | B141: Saboneteira Plástica tipo Dispenser para Sabonete Líquido (fornecimento e instalação) | C141: un | D141: 2 | E141: 76.75 | F141: 153.5 | G141: 95547 | H141: =OFFSET(FONTE!$A$4,N141,4,1) -> SINAPI | J141: =OFFSET(FONTE!$A$4,N141,1,1) -> SABONETEIRA PLASTICA TIPO DISPENSER PARA SABONETE LIQUIDO COM RESERVATORIO 800 A 1500 ML, INCLUSO FIXAÇÃO. AF_10/2016 | K141: =OFFSET(FONTE!$A$4,N141,3,1) -> 63.78 | L141: =TRUNC(((K141*BDI!$C$38)+K141),2) -> 76.75 | M141: =OFFSET(FONTE!$A$4,N141,2,1) -> UN | N141: =MATCH(G141,FONTE!$A$4:$A$14171,0)-1 -> 9575 | P141: 20.33552838
A142: 9.9 | B142: Toalheiro Plástico tipo Dispenser para Papel Toalha Interfolhado (fornecimento e instalação) | C142: un | D142: 2 | E142: 74.89 | F142: 149.78 | G142: CAC007 | H142: =OFFSET(FONTE!$A$4,N142,4,1) -> COMPOSIÇÃO | J142: =OFFSET(FONTE!$A$4,N142,1,1) -> TOALHEIRO PLÁSTICO TIPO DISPENSER PARA PAPEL TOALHA INTERFOLHADO (fornecimento e instalação) | K142: =OFFSET(FONTE!$A$4,N142,3,1) -> 62.24 | L142: =TRUNC(((K142*BDI!$C$38)+K142),2) -> 74.89 | M142: =OFFSET(FONTE!$A$4,N142,2,1) -> un | N142: =MATCH(G142,FONTE!$A$4:$A$14171,0)-1 -> 11994 | P142: 20.32455013
A143: 9.10 | B143: Papeleira Plástica tipo Dispenser para Papel Higiênico para Rolo de 300m (fornecimento e instalação) | C143: un | D143: 2 | E143: 74.89 | F143: 149.78 | G143: CAC008 | H143: =OFFSET(FONTE!$A$4,N143,4,1) -> COMPOSIÇÃO | J143: =OFFSET(FONTE!$A$4,N143,1,1) -> PAPELEIRA TIPO DISPENSER PARA PAPEL HIGIÊNICO PARA ROLO DE 300M (fornecimento e instalação) | K143: =OFFSET(FONTE!$A$4,N143,3,1) -> 62.24 | L143: =TRUNC(((K143*BDI!$C$38)+K143),2) -> 74.89 | M143: =OFFSET(FONTE!$A$4,N143,2,1) -> un | N143: =MATCH(G143,FONTE!$A$4:$A$14171,0)-1 -> 11995 | P143: 20.32455013
A144: 9.11 | B144: Gancho para Pendurar Utensílios (fornecimento e instalação) | C144: un | D144: 2 | E144: 26.64 | F144: 53.28 | G144: CAC009 | H144: =OFFSET(FONTE!$A$4,N144,4,1) -> COMPOSIÇÃO | J144: =OFFSET(FONTE!$A$4,N144,1,1) -> GANCHO PARA PENDURAR UTENSÍLIOS (fornecimento e instalação) | K144: =OFFSET(FONTE!$A$4,N144,3,1) -> 22.14 | L144: =TRUNC(((K144*BDI!$C$38)+K144),2) -> 26.64 | M144: =OFFSET(FONTE!$A$4,N144,2,1) -> un | N144: =MATCH(G144,FONTE!$A$4:$A$14171,0)-1 -> 11996 | P144: 20.32520325
A145: 9.12 | B145: Porta Objetos em MDF (fornecimento e instalação) | C145: un | D145: 2 | E145: 57.12 | F145: 114.24 | G145: CAC010 | H145: =OFFSET(FONTE!$A$4,N145,4,1) -> COMPOSIÇÃO | J145: =OFFSET(FONTE!$A$4,N145,1,1) -> PORTA OBJETOS (fornecimento e instalação) | K145: =OFFSET(FONTE!$A$4,N145,3,1) -> 47.47 | L145: =TRUNC(((K145*BDI!$C$38)+K145),2) -> 57.12 | M145: =OFFSET(FONTE!$A$4,N145,2,1) -> un | N145: =MATCH(G145,FONTE!$A$4:$A$14171,0)-1 -> 11997 | P145: 20.32862861
A146: 9.13 | B146: Lixeira Basculante de PVC 12 Litros | C146: un | D146: 2 | E146: 41.62 | F146: 83.24 | G146: CAC011 | H146: =OFFSET(FONTE!$A$4,N146,4,1) -> COMPOSIÇÃO | J146: =OFFSET(FONTE!$A$4,N146,1,1) -> LIXEIRA BASCULANTE DE PVC 12 LITROS (fornecimento e instalação) | K146: =OFFSET(FONTE!$A$4,N146,3,1) -> 34.59 | L146: =TRUNC(((K146*BDI!$C$38)+K146),2) -> 41.62 | M146: =OFFSET(FONTE!$A$4,N146,2,1) -> un | N146: =MATCH(G146,FONTE!$A$4:$A$14171,0)-1 -> 11998 | P146: 20.323793
A147: 9.14 | B147: Placa Tátil Braille para Sinalização de Ambientes (fornecimento e instalação) | C147: un | D147: 2 | E147: 54.91 | F147: 109.82 | G147: CAC012 | H147: =OFFSET(FONTE!$A$4,N147,4,1) -> COMPOSIÇÃO | J147: =OFFSET(FONTE!$A$4,N147,1,1) -> PLACA TÁTIL BRAILLE PARA SINALIZAÇÃO DE AMBIENTES (fornecimento e instalação) | K147: =OFFSET(FONTE!$A$4,N147,3,1) -> 45.63 | L147: =TRUNC(((K147*BDI!$C$38)+K147),2) -> 54.91 | M147: =OFFSET(FONTE!$A$4,N147,2,1) -> un | N147: =MATCH(G147,FONTE!$A$4:$A$14171,0)-1 -> 11999 | P147: 20.33749726
A148: 9.15 | B148: Placa de Proteção de Impacto nas Portas, 40x90cm (fornecimento e instalação) | C148: m2 | D148: =ROUND((0.4*0.9*2),2) -> 0.72 | E148: 64.04 | F148: 46.11 | G148: CAC013 | H148: =OFFSET(FONTE!$A$4,N148,4,1) -> COMPOSIÇÃO | J148: =OFFSET(FONTE!$A$4,N148,1,1) -> PLACA DE PROTEÇÃO DE IMPACTO NAS PORTAS (fornecimento e instalação) | K148: =OFFSET(FONTE!$A$4,N148,3,1) -> 53.22 | L148: =TRUNC(((K148*BDI!$C$38)+K148),2) -> 64.04 | M148: =OFFSET(FONTE!$A$4,N148,2,1) -> m2 | N148: =MATCH(G148,FONTE!$A$4:$A$14171,0)-1 -> 12000 | P148: 20.33070274
A149: 10 | B149: =QUANT!B343 -> PREVENTIVO CONTRA INCÊNDIO | E149: ∑ | F149: =SUBTOTAL(9,F150:F156) -> 606.32 | I149: =F149/$F$175 -> 0.005223640783
A150: 10.1 | B150: Placas
A151: 10.1.1 | B151: Bloco Autônomo com Indicação de Saída | C151: un | D151: 2 | E151: =L151 -> 87.24 | F151: =ROUND((D151*E151),2) -> 174.48 | G151: CPR001 | H151: =OFFSET(FONTE!$A$4,N151,4,1) -> COMPOSIÇÃO | J151: =OFFSET(FONTE!$A$4,N151,1,1) -> BLOCO AUTONOMO COM INDICAÇÃO DE SAIDA | K151: =OFFSET(FONTE!$A$4,N151,3,1) -> 72.5 | L151: =TRUNC(((K151*BDI!$C$38)+K151),2) -> 87.24 | M151: =OFFSET(FONTE!$A$4,N151,2,1) -> un | N151: =MATCH(G151,FONTE!$A$4:$A$14171,0)-1 -> 12004 | P151: =(L151*100/K151)-100 -> 20.33103448
A152: 10.1.2 | B152: Placa Indicativa de Extintor de Incêndio em PVC, 20x20cm | C152: un | D152: 2 | E152: =L152 -> 36.39 | F152: =ROUND((D152*E152),2) -> 72.78 | G152: CPR003 | H152: =OFFSET(FONTE!$A$4,N152,4,1) -> COMPOSIÇÃO | J152: =OFFSET(FONTE!$A$4,N152,1,1) -> PLACA INDICATIVA DE EXTINTOR DE INCÊNDIO, EM PVC 20x20cm | K152: =OFFSET(FONTE!$A$4,N152,3,1) -> 30.24 | L152: =TRUNC(((K152*BDI!$C$38)+K152),2) -> 36.39 | M152: =OFFSET(FONTE!$A$4,N152,2,1) -> un | N152: =MATCH(G152,FONTE!$A$4:$A$14171,0)-1 -> 12006 | P152: =(L152*100/K152)-100 -> 20.33730159
A153: 10.2 | B153: Extintores
A154: 10.2.1 | B154: Extintor de Incêndio de Pó Químico Seco de 4Kg | C154: un | D154: 2 | E154: =L154 -> 134.84 | F154: =ROUND((D154*E154),2) -> 269.68 | G154: 72553 | H154: =OFFSET(FONTE!$A$4,N154,4,1) -> SINAPI | J154: =OFFSET(FONTE!$A$4,N154,1,1) -> EXTINTOR DE PQS 4KG - FORNECIMENTO E INSTALACAO | K154: =OFFSET(FONTE!$A$4,N154,3,1) -> 112.05 | L154: =TRUNC(((K154*BDI!$C$38)+K154),2) -> 134.84 | M154: =OFFSET(FONTE!$A$4,N154,2,1) -> UN | N154: =MATCH(G154,FONTE!$A$4:$A$14171,0)-1 -> 8231 | P154: =(L154*100/K154)-100 -> 20.33913432
A155: 10.3 | B155: Iluminação de Emergência
A156: 10.3.1 | B156: Bloco Autônomo de Iluminação de Emergência | C156: un | D156: 2 | E156: =L156 -> 44.69 | F156: =ROUND((D156*E156),2) -> 89.38 | G156: 97599 | H156: =OFFSET(FONTE!$A$4,N156,4,1) -> SINAPI | J156: =OFFSET(FONTE!$A$4,N156,1,1) -> LUMINÁRIA DE EMERGÊNCIA - FORNECIMENTO E INSTALAÇÃO. AF_11/2017 | K156: =OFFSET(FONTE!$A$4,N156,3,1) -> 37.14 | L156: =TRUNC(((K156*BDI!$C$38)+K156),2) -> 44.69 | M156: =OFFSET(FONTE!$A$4,N156,2,1) -> UN | N156: =MATCH(G156,FONTE!$A$4:$A$14171,0)-1 -> 8095 | P156: =(L156*100/K156)-100 -> 20.32848681
A157: 11 | B157: =QUANT!B347 -> ESQUADRIAS | E157: ∑ | F157: =SUBTOTAL(9,F158:F165) -> 21606.91 | I157: =F157/$F$175 -> 0.1861504424 | P157: =(L157*100/K157)-100 -> 
A158: 11.1 | B158: =QUANT!B348 -> Janelas | J158: =OFFSET(FONTE!$A$4,N158,1,1) ->  | K158: =OFFSET(FONTE!$A$4,N158,3,1) ->  | L158: =TRUNC(((K158*BDI!$C$38)+K158),2) ->  | M158: =OFFSET(FONTE!$A$4,N158,2,1) ->  | N158: =MATCH(G158,FONTE!$A$4:$A$14171,0)-1 ->  | P158: =(L158*100/K158)-100 -> 
A159: 11.1.1 | B159: =QUANT!B349 -> J1 - Janela - Basculante - Alumínio para Vidro - 1,60 x 2,10 (02 Unidades) | C159: =QUANT!E349 -> m2 | D159: =QUANT!D349 -> 6.72 | E159: =L159 -> 935.06 | F159: =ROUND((D159*E159),2) -> 6283.6 | G159: CES001 | H159: =OFFSET(FONTE!$A$4,N159,4,1) -> COMPOSIÇÃO | J159: =OFFSET(FONTE!$A$4,N159,1,1) -> JANELA DE ALUMÍNIO BASCULANTE | K159: =OFFSET(FONTE!$A$4,N159,3,1) -> 777.02 | L159: =TRUNC(((K159*BDI!$C$38)+K159),2) -> 935.06 | M159: =OFFSET(FONTE!$A$4,N159,2,1) -> un | N159: =MATCH(G159,FONTE!$A$4:$A$14171,0)-1 -> 12022 | P159: 20.33924481
A160: 11.1.2 | B160: =QUANT!B354 -> J2 - Janela - Basculante - Alumínio para Vidro - 1,20 x 1,80 (02 Unidades) | C160: =QUANT!E354 -> m2 | D160: =QUANT!D354 -> 4.32 | E160: =L160 -> 935.06 | F160: =ROUND((D160*E160),2) -> 4039.46 | G160: CES001 | H160: =OFFSET(FONTE!$A$4,N160,4,1) -> COMPOSIÇÃO | J160: =OFFSET(FONTE!$A$4,N160,1,1) -> JANELA DE ALUMÍNIO BASCULANTE | K160: =OFFSET(FONTE!$A$4,N160,3,1) -> 777.02 | L160: =TRUNC(((K160*BDI!$C$38)+K160),2) -> 935.06 | M160: =OFFSET(FONTE!$A$4,N160,2,1) -> un | N160: =MATCH(G160,FONTE!$A$4:$A$14171,0)-1 -> 12022 | P160: 20.33924481
A161: 11.1.3 | B161: =QUANT!B359 -> J3 - Janela - Basculante - Alumínio para Vidro - 2,50 x 1,50 (01 Unidades) | C161: =QUANT!E359 -> m2 | D161: =QUANT!D359 -> 3.75 | E161: =L161 -> 935.06 | F161: =ROUND((D161*E161),2) -> 3506.48 | G161: CES001 | H161: =OFFSET(FONTE!$A$4,N161,4,1) -> COMPOSIÇÃO | J161: =OFFSET(FONTE!$A$4,N161,1,1) -> JANELA DE ALUMÍNIO BASCULANTE | K161: =OFFSET(FONTE!$A$4,N161,3,1) -> 777.02 | L161: =TRUNC(((K161*BDI!$C$38)+K161),2) -> 935.06 | M161: =OFFSET(FONTE!$A$4,N161,2,1) -> un | N161: =MATCH(G161,FONTE!$A$4:$A$14171,0)-1 -> 12022 | P161: 20.33924481
A162: 11.2 | B162: =QUANT!B364 -> Portas | J162: =OFFSET(FONTE!$A$4,N162,1,1) ->  | K162: =OFFSET(FONTE!$A$4,N162,3,1) ->  | L162: =TRUNC(((K162*BDI!$C$38)+K162),2) ->  | M162: =OFFSET(FONTE!$A$4,N162,2,1) ->  | N162: =MATCH(G162,FONTE!$A$4:$A$14171,0)-1 -> 
A163: 11.2.1 | B163: =QUANT!B365 -> P1 - Porta - Abrir - Madeira Semi-Oca - 0,90 x 2,10 (05 Unidades) | C163: =QUANT!E365 -> un | D163: =QUANT!D365 -> 5 | E163: =L163 -> 708.14 | F163: =ROUND((D163*E163),2) -> 3540.7 | G163: 91321 | H163: =OFFSET(FONTE!$A$4,N163,4,1) -> SINAPI | J163: =OFFSET(FONTE!$A$4,N163,1,1) -> KIT DE PORTA DE MADEIRA PARA PINTURA, SEMI-OCA (LEVE OU MÉDIA), PADRÃO POPULAR, 90X210CM, ESPESSURA DE 3,5CM, ITENS INCLUSOS: DOBRADIÇAS, MONTAGEM E INSTALAÇÃO DO BATENTE, SEM FECHADURA - FORNECIMENTO E INSTALAÇÃO. AF_08/2015 | K163: =OFFSET(FONTE!$A$4,N163,3,1) -> 588.45 | L163: =TRUNC(((K163*BDI!$C$38)+K163),2) -> 708.14 | M163: =OFFSET(FONTE!$A$4,N163,2,1) -> UN | N163: =MATCH(G163,FONTE!$A$4:$A$14171,0)-1 -> 7002 | P163: 20.33987595
A164: 11.2.2 | B164: =QUANT!B367 -> P2 - Porta - 2 Folhas de Abrir com Bandeira Fixa de 90cm - Madeira Maciça - 1,20 x 3,00 (01 Unidades) | C164: =QUANT!E367 -> un | D164: =QUANT!D367 -> 1 | E164: 2488.46 | F164: 2488.46 | G164: CES008 | H164: =OFFSET(FONTE!$A$4,N164,4,1) -> COMPOSIÇÃO | J164: =OFFSET(FONTE!$A$4,N164,1,1) -> Porta - 2 Folhas de Abrir com Bandeira Fixa de 90cm - Madeira Maciça - 1,20 x 3,00 , c/ BATENTE, GUARNIÇÃO, VERNIZ E FERRAGENS (fornecimento e instalação) | K164: =OFFSET(FONTE!$A$4,N164,3,1) -> 2067.86 | L164: =TRUNC(((K164*BDI!$C$38)+K164),2) -> 2488.46 | M164: =OFFSET(FONTE!$A$4,N164,2,1) -> un | N164: =MATCH(G164,FONTE!$A$4:$A$14171,0)-1 -> 12029 | P164: 20.33986827
A165: 11.2.3 | B165: =QUANT!B369 -> P3 - Porta - Abrir - Ferro - 0,80 x 2,10 (01 Unidades) | C165: =QUANT!E369 -> m2 | D165: =QUANT!D369 -> 1.68 | E165: 1040.6 | F165: 1748.21 | G165: 73933/1 | H165: =OFFSET(FONTE!$A$4,N165,4,1) -> SINAPI | J165: =OFFSET(FONTE!$A$4,N165,1,1) -> PORTA DE FERRO, DE ABRIR, TIPO GRADE COM CHAPA, 87X210CM, COM GUARNICOES | K165: =OFFSET(FONTE!$A$4,N165,3,1) -> 864.72 | L165: =TRUNC(((K165*BDI!$C$38)+K165),2) -> 1040.6 | M165: =OFFSET(FONTE!$A$4,N165,2,1) -> M2 | N165: =MATCH(G165,FONTE!$A$4:$A$14171,0)-1 -> 7024 | P165: 20.33953187
A166: 12 | B166: =QUANT!B374 -> COMPLEMENTAÇÕES | E166: ∑ | F166: =SUBTOTAL(9,F167) -> 531.49 | I166: =F166/$F$175 -> 0.004578956392
A167: 12.1 | B167: =QUANT!B375 -> Placa de Vaga Preferencial 50x70cm | C167: =QUANT!E375 -> un | D167: =QUANT!D375 -> 1 | E167: =L167 -> 531.49 | F167: =ROUND((D167*E167),2) -> 531.49 | G167: COM003 | H167: =OFFSET(FONTE!$A$4,N167,4,1) -> COMPOSIÇÃO | J167: =OFFSET(FONTE!$A$4,N167,1,1) -> PLACA DA VAGA ACESSÍVEL | K167: =OFFSET(FONTE!$A$4,N167,3,1) -> 441.66 | L167: =TRUNC(((K167*BDI!$C$38)+K167),2) -> 531.49 | M167: =OFFSET(FONTE!$A$4,N167,2,1) -> un | N167: =MATCH(G167,FONTE!$A$4:$A$14171,0)-1 -> 12044 | P167: =(L167*100/K167)-100 -> 20.33917493
A168: 13 | B168: =QUANT!B378 -> PINTURA | E168: ∑ | F168: =SUBTOTAL(9,F169:F171) -> 6418.5 | I168: =F168/$F$175 -> 0.055297431
A169: 13.1 | B169: =QUANT!B379 -> Fundo Preparador para Pintura Acrílica, uma demão | C169: =QUANT!E379 -> m2 | D169: =QUANT!D379 -> 397.83 | E169: =L169 -> 2.67 | F169: =ROUND((D169*E169),2) -> 1062.21 | G169: 88415 | H169: =OFFSET(FONTE!$A$4,N169,4,1) -> SINAPI | J169: =OFFSET(FONTE!$A$4,N169,1,1) -> APLICAÇÃO MANUAL DE FUNDO SELADOR ACRÍLICO EM PAREDES EXTERNAS DE CASAS. AF_06/2014 | K169: =OFFSET(FONTE!$A$4,N169,3,1) -> 2.22 | L169: =TRUNC(((K169*BDI!$C$38)+K169),2) -> 2.67 | M169: =OFFSET(FONTE!$A$4,N169,2,1) -> M2 | N169: =MATCH(G169,FONTE!$A$4:$A$14171,0)-1 -> 10319 | P169: =(L169*100/K169)-100 -> 20.27027027
A170: 13.2 | B170: =QUANT!B383 -> Pintura Acrílica, duas demãos | C170: =QUANT!E383 -> m2 | D170: =QUANT!D383 -> 397.83 | E170: 13.04 | F170: 5187.7 | G170: 88489 | H170: =OFFSET(FONTE!$A$4,N170,4,1) -> SINAPI | J170: =OFFSET(FONTE!$A$4,N170,1,1) -> APLICAÇÃO MANUAL DE PINTURA COM TINTA LÁTEX ACRÍLICA EM PAREDES, DUAS DEMÃOS. AF_06/2014 | K170: =OFFSET(FONTE!$A$4,N170,3,1) -> 10.84 | L170: =TRUNC(((K170*BDI!$C$38)+K170),2) -> 13.04 | M170: =OFFSET(FONTE!$A$4,N170,2,1) -> M2 | N170: =MATCH(G170,FONTE!$A$4:$A$14171,0)-1 -> 10338 | P170: 20.29520295
A171: 13.3 | B171: =QUANT!B386 -> Pinturas das Vagas Preferenciais | C171: =QUANT!E386 -> m2 | D171: =QUANT!D386 -> 7.44 | E171: =L171 -> 22.66 | F171: =ROUND((D171*E171),2) -> 168.59 | G171: 79500/2 | H171: =OFFSET(FONTE!$A$4,N171,4,1) -> SINAPI | J171: =OFFSET(FONTE!$A$4,N171,1,1) -> PINTURA ACRILICA EM PISO CIMENTADO, TRES DEMAOS | K171: =OFFSET(FONTE!$A$4,N171,3,1) -> 18.83 | L171: =TRUNC(((K171*BDI!$C$38)+K171),2) -> 22.66 | M171: =OFFSET(FONTE!$A$4,N171,2,1) -> M2 | N171: =MATCH(G171,FONTE!$A$4:$A$14171,0)-1 -> 10406 | P171: =(L171*100/K171)-100 -> 20.33988317
A172: 14 | B172: =QUANT!B388 -> LIMPEZA DA OBRA | E172: ∑ | F172: =SUBTOTAL(9,F173) -> 439 | I172: =F172/$F$175 -> 0.003782125451
A173: 14.1 | B173: =QUANT!B389 -> Limpeza final da obra | C173: =QUANT!E389 -> m2 | D173: =QUANT!D389 -> 152.43 | E173: =L173 -> 2.88 | F173: =ROUND((D173*E173),2) -> 439 | G173: 9537 | H173: =OFFSET(FONTE!$A$4,N173,4,1) -> SINAPI | J173: =OFFSET(FONTE!$A$4,N173,1,1) -> LIMPEZA FINAL DA OBRA | K173: =OFFSET(FONTE!$A$4,N173,3,1) -> 2.4 | L173: =TRUNC(((K173*BDI!$C$38)+K173),2) -> 2.88 | M173: =OFFSET(FONTE!$A$4,N173,2,1) -> M2 | N173: =MATCH(G173,FONTE!$A$4:$A$14171,0)-1 -> 11083 | P173: =(L173*100/K173)-100 -> 20
E175: TOTAL | F175: =SUBTOTAL(9,F13:F173) -> 116072.3 | I175: =F172+F168+F166+F157+F149+F129+F108+F73+F49+F26+F21+F19+F15+F13 -> 116072.3
A178: 1 | B178: Declaro que os encargos sociais e complementares para mão de obra, horista e mensalista, sem desoneração, atendem ao estabelecido no SINAPI para SC. | I178: =120000-I175 -> 3927.7
A180: 2 | B180: Declaro que para esta planilha, foi verificado que a alternativa mais adequada para a Administração Pública, é a utilização da planilha SEM DESONERAÇÃO.
A182: ='DADOS GERAIS'!B12 -> Rio do Sul, 08 de junho de 2018 | I182: .

Sheet QUANT
A13: =ORÇAMENTO!A13 -> 1 | B13: SERVIÇOS INICIAIS | M13: .
A14: =ORÇAMENTO!A14 -> 1.1 | B14: Placa de Obra em Chapa de Aço Galvanizado | C14: ∑ | D14: =D15 -> 3 | E14: m2
B15: Área | D15: 3
A17: =ORÇAMENTO!A15 -> 2 | B17: FECHAMENTOS | M17: .
A18: =ORÇAMENTO!A16 -> 2.1 | B18: Alvenaria de Tijolos Cerâmicos Furados, e=12cm (15cm acabada) | C18: ∑ | D18: =SUM(H22:H46)-SUM(J49:J53) -> 181.76 | E18: m2
B19: Comprimento x Altura - Descontos
B21: Parede Vertical h=3,25 m | D21: Comprimento | F21: Altura
D22: 4.45 | E22: x | F22: 3.25 | G22: = | H22: =ROUND((D22*F22),2) -> 14.46
D23: 2.6 | E23: x | F23: 3.25 | G23: = | H23: =ROUND((D23*F23),2) -> 8.45
D24: 3.2 | E24: x | F24: 3.25 | G24: = | H24: =ROUND((D24*F24),2) -> 10.4
D25: 3.4 | E25: x | F25: 3.25 | G25: = | H25: =ROUND((D25*F25),2) -> 11.05
D26: 3.4 | E26: x | F26: 3.25 | G26: = | H26: =ROUND((D26*F26),2) -> 11.05
D27: 3.3 | E27: x | F27: 3.25 | G27: = | H27: 10.73
D28: 3.45 | E28: x | F28: 3.25 | G28: = | H28: 11.21
D29: 1.95 | E29: x | F29: 3.25 | G29: = | H29: 6.34
B31: Parede Horizontal h=3,25 m | D31: Comprimento | F31: Altura
D32: 1.2 | E32: x | F32: 3.25 | G32: = | H32: =ROUND((D32*F32),2) -> 3.9
D33: 1.4 | E33: x | F33: 3.25 | G33: = | H33: =ROUND((D33*F33),2) -> 4.55
D34: 5.15 | E34: x | F34: 3.25 | G34: = | H34: 16.74
D35: 3 | E35: x | F35: 3.25 | G35: = | H35: 9.75
D36: 1.9 | E36: x | F36: 3.25 | G36: = | H36: 6.18
D37: 5.2 | E37: x | F37: 3.25 | G37: = | H37: 16.9
D38: 4.4 | E38: x | F38: 3.25 | G38: = | H38: 14.3
D39: 3.1 | E39: x | F39: 3.25 | G39: = | H39: =ROUND((D39*F39),2) -> 10.08
D40: 3.7 | E40: x | F40: 3.25 | G40: = | H40: =ROUND((D40*F40),2) -> 12.03
D41: 4.4 | E41: x | F41: 3.25 | G41: = | H41: 14.3
D42: 1.85 | E42: x | F42: 3.25 | G42: = | H42: =ROUND((D42*F42),2) -> 6.01
B44: Paredes Compressor h-1,00m
D45: 0.95 | E45: x | F45: 1 | G45: = | H45: =ROUND((D45*F45),2) -> 0.95
D46: 0.95 | E46: x | F46: 1 | G46: = | H46: =ROUND((D46*F46),2) -> 0.95
B48: Descontos: Janelas e Portas | D48: Largura | F48: Altura | H48: Quantidade
B49: J1 | D49: 1.6 | E49: x | F49: 2.1 | G49: x | H49: 2 | I49: = | J49: =ROUND((D49*F49*H49),2) -> 6.72
B50: J2 | D50: 1.2 | E50: x | F50: 1.8 | G50: x | H50: 2 | I50: = | J50: =ROUND((D50*F50*H50),2) -> 4.32
B51: J3 | D51: 2.5 | E51: x | F51: 1.5 | G51: x | H51: 1 | I51: = | J51: =ROUND((D51*F51*H51),2) -> 3.75
B52: P1 | D52: 0.9 | E52: x | F52: 2.1 | G52: x | H52: 2 | I52: = | J52: =ROUND((D52*F52*H52),2) -> 3.78
A55: =ORÇAMENTO!A17 -> 2.2 | B55: Alvenaria de Blocos de Concreto Celular (15cm acabada) | C55: ∑ | D55: =SUM(H59:H69)-SUM(J71:J75) -> 33.06 | E55: m2
B56: Comprimento x Altura - Descontos
B58: Paredes Banheiros | D58: Comprimento | F58: Altura
D59: 4 | E59: x | F59: 3.05 | G59: = | H59: =ROUND((D59*F59),2) -> 12.2
D60: 2.2 | E60: x | F60: 3.05 | G60: = | H60: =ROUND((D60*F60),2) -> 6.71
B62: Paredes Vigilância Epidemiológica | D62: Comprimento | F62: Altura
D63: 2 | E63: x | F63: 3.05 | G63: = | H63: =ROUND((D63*F63),2) -> 6.1
D64: 3.35 | E64: x | F64: 3.05 | G64: = | H64: =ROUND((D64*F64),2) -> 10.22
B66: Paredes Recepção | D66: Comprimento | F66: Altura
D67: 0.45 | E67: x | F67: 3.55 | G67: = | H67: =ROUND((D67*F67),2) -> 1.6
D68: 1.55 | E68: x | F68: 3.55 | G68: = | H68: =ROUND((D68*F68),2) -> 5.5
B70: Descontos: Janelas e Portas | D70: Largura | F70: Altura | H70: Quantidade
B71: P1 | D71: 0.9 | E71: x | F71: 2.1 | G71: x | H71: 3 | I71: = | J71: =ROUND((D71*F71*H71),2) -> 5.67
B72: P2 | D72: 1.2 | E72: x | F72: 3 | G72: x | H72: 1 | I72: = | J72: =ROUND((D72*F72*H72),2) -> 3.6
A76: =ORÇAMENTO!A18 -> 2.3 | B76: Vergas e contravergas | C76: ∑ | D76: =SUM(H86) -> 31.5 | E76: m
B77: Largura + excedente 0,3m cada lado x Quantidade
B79: Identificação | C79: Largura | D79: Larg. + exed. | F79: Quantidade
B80: J1 | C80: 1.6 | D80: =(C80*2)+(0.3*4) -> 4.4 | E80: x | F80: 2 | G80: = | H80: =ROUND((D80*F80),2) -> 8.8
B81: J2 | C81: 1.2 | D81: =(C81*2)+(0.3*4) -> 3.6 | E81: x | F81: 2 | G81: = | H81: 7.2
B82: J3 | C82: 2.5 | D82: =(C82*2)+(0.3*4) -> 6.2 | E82: x | F82: 1 | G82: = | H82: =ROUND((D82*F82),2) -> 6.2
B83: P1 | C83: 0.9 | D83: =C83+(0.3*2) -> 1.5 | E83: x | F83: 5 | G83: = | H83: =ROUND((D83*F83),2) -> 7.5
B84: P2 | C84: 1.2 | D84: =C84+(0.3*2) -> 1.8 | E84: x | F84: 1 | G84: = | H84: =ROUND((D84*F84),2) -> 1.8
G86: ∑ | H86: =SUM(H80:H85) -> 31.5
A88: =ORÇAMENTO!A19 -> 3 | B88: FORRO | M88: .
A89: =ORÇAMENTO!A20 -> 3.1 | B89: Forro de PVC em Placas, Frisado, larg=10cm, e=8mm (inclusive estrutura de fixação) | C89: ∑ | D89: =SUM(D92:D100) -> 113.21 | E89: m2
B90: Soma das áreas que receberão Forro de PVC
B92: Recepção/Espera | D92: 23.64
B93: Circulação | D93: 16.22
B94: WC PCD Feminino | D94: 4.23
B95: WC PCD Masculino | D95: 4.23
B96: Consultório Dentista | D96: 23.45
B97: Vigilância Epidemiológica | D97: 22.74
B98: Vigilância Sanitária | D98: 18.7
A101: =ORÇAMENTO!A21 -> 4 | B101: REVESTIMENTOS | M101: .
A102: =ORÇAMENTO!A22 -> 4.1 | B102: Chapisco | C102: ∑ | D102: =SUM(H106:H143)-SUM(L148:L152) -> 419.89 | E102: m2
B103: Comprimento x Altura - Descontos
B105: PAREDES VERTICAIS | D105: Comprimento | F105: Altura
B106: Parede 01 | D106: 5.95 | E106: x | F106: 3.25 | G106: = | H106: =ROUND((D106*F106),2) -> 19.34
B107: Parede 02 | D107: 5.65 | E107: x | F107: 3.25 | G107: = | H107: =ROUND((D107*F107),2) -> 18.36
B108: Parede 03 | D108: 0.75 | E108: x | F108: 3.25 | G108: = | H108: 2.44
B109: Parede 04 | D109: 0.45 | E109: x | F109: 3.25 | G109: = | H109: 1.46
B110: Parede 05 | D110: 3.8 | E110: x | F110: 3.25 | G110: = | H110: 12.35
B111: Parede 06 | D111: 3.5 | E111: x | F111: 3.25 | G111: = | H111: 11.38
B112: Parede 07 | D112: 3.65 | E112: x | F112: 3.25 | G112: = | H112: 11.86
B113: Parede 08 | D113: 1.3 | E113: x | F113: 3.25 | G113: = | H113: 4.23
B114: Parede 09 | D114: 1.3 | E114: x | F114: 3.25 | G114: = | H114: 4.23
B115: Parede 10 | D115: 3.7 | E115: x | F115: 3.25 | G115: = | H115: 12.03
B116: Parede 11 | D116: 5.65 | E116: x | F116: 3.25 | G116: = | H116: 18.36
B117: Parede 12 | D117: 5.65 | E117: x | F117: 3.25 | G117: = | H117: 18.36
B118: Parede 13 | D118: 3.05 | E118: x | F118: 3.25 | G118: = | H118: 9.91
B119: Parede 14 | D119: 2.9 | E119: x | F119: 3.25 | G119: = | H119: 9.43
B120: Parede 15 | D120: 6.55 | E120: x | F120: 3.25 | G120: = | H120: 21.29
B121: Parede 16 | D121: 6.55 | E121: x | F121: 3.25 | G121: = | H121: 21.29
B123: PAREDES HORIZONTAIS | D123: Comprimento | F123: Altura
B124: Parede 01 | D124: 13.45 | E124: x | F124: 3.25 | G124: = | H124: =ROUND((D124*F124),2) -> 43.71
B125: Parede 02 | D125: 13.45 | E125: x | F125: 3.25 | G125: = | H125: =ROUND((D125*F125),2) -> 43.71
B126: Parede 03 | D126: 2.05 | E126: x | F126: 3.25 | G126: = | H126: 6.66
B127: Parede 04 | D127: 2.05 | E127: x | F127: 3.25 | G127: = | H127: 6.66
B128: Parede 05 | D128: 5.35 | E128: x | F128: 3.25 | G128: = | H128: 17.39
B129: Parede 06 | D129: 5.6 | E129: x | F129: 3.25 | G129: = | H129: 18.2
B130: Parede 07 | D130: 4.75 | E130: x | F130: 3.25 | G130: = | H130: 15.44
B131: Parede 08 | D131: 4.7 | E131: x | F131: 3.25 | G131: = | H131: 15.28
B132: Parede 09 | D132: 6.75 | E132: x | F132: 3.25 | G132: = | H132: 21.94
B133: Parede 10 | D133: 6.45 | E133: x | F133: 3.25 | G133: = | H133: 20.96
B134: Parede 11 | D134: 4 | E134: x | F134: 3.25 | G134: = | H134: 13
B135: Parede 12 | D135: 6.45 | E135: x | F135: 3.25 | G135: = | H135: 20.96
B137: Abrigo Compressor | D137: Comprimento | F137: Altura
B138: Parede 01 | D138: 0.95 | E138: x | F138: 1 | G138: = | H138: =ROUND((D138*F138),2) -> 0.95
B139: Parede 02 | D139: 1.95 | E139: x | F139: 2 | G139: = | H139: =ROUND((D139*F139),2) -> 3.9
B140: Parede 03 | D140: 2.95 | E140: x | F140: 3 | G140: = | H140: 8.85
B141: Parede 04 | D141: 3.95 | E141: x | F141: 4 | G141: = | H141: 15.8
B142: Laje abrigo | H142: 1.03
B143: Laje abrigo | H143: 1.03
B146: Descontos x2 (Desconto do chapisco nos Dois Lados)
D147: Largura | F147: Altura | H147: Quantidade | J147: x 2
B148: J1 | D148: 1.6 | E148: x | F148: 2.1 | G148: x | H148: 2 | I148: x | J148: 2 | K148: = | L148: =ROUND((D148*F148*H148*J148),2) -> 13.44
B149: J2 | D149: 1.2 | E149: x | F149: 1.8 | G149: x | H149: 2 | I149: x | J149: 2 | K149: = | L149: =ROUND((D149*F149*H149*J149),2) -> 8.64
B150: J3 | D150: 2.5 | E150: x | F150: 1.5 | G150: x | H150: 1 | I150: x | J150: 2 | K150: = | L150: =ROUND((D150*F150*H150*J150),2) -> 7.5
B151: P1 | D151: 0.9 | E151: x | F151: 2.1 | G151: x | H151: 4 | I151: x | J151: 2 | K151: = | L151: 15.12
B152: P2 | D152: 1.2 | E152: x | F152: 3 | G152: x | H152: 1 | I152: x | J152: 2 | K152: = | L152: 7.2
A156: =ORÇAMENTO!A23 -> 4.2 | B156: Emboço/Reboco (Massa Única) | C156: ∑ | D156: =D102 -> 419.89 | E156: m2
B157: Igual área de Chapisco
A159: =ORÇAMENTO!A24 -> 4.3 | B159: Azulejos 20x20cm ( ou próximo a essa medida) | C159: ∑ | D159: =SUM(H163:H174)-SUM(L177:L178) -> 22.06 | E159: m2
B160: Comprimento x Altura - Descontos
B162: WC PCD FEMININO | D162: Comprimento | F162: Altura
B163: Parede 01 | D163: 2.2 | E163: x | F163: 1.5 | G163: = | H163: =ROUND((D163*F163),2) -> 3.3
B164: Parede 02 | D164: 2.2 | E164: x | F164: 1.5 | G164: = | H164: =ROUND((D164*F164),2) -> 3.3
B165: Parede 03 | D165: 1.925 | E165: x | F165: 1.5 | G165: = | H165: 2.89
B166: Parede 04 | D166: 1.925 | E166: x | F166: 1.5 | G166: = | H166: 2.89
B168: WC PCD MASCULINO | D168: Comprimento | F168: Altura
B169: Parede 01 | D169: 2.2 | E169: x | F169: 1.5 | G169: = | H169: =ROUND((D169*F169),2) -> 3.3
B170: Parede 02 | D170: 2.2 | E170: x | F170: 1.5 | G170: = | H170: 3.3
B171: Parede 03 | D171: 1.925 | E171: x | F171: 1.5 | G171: = | H171: 2.89
B172: Parede 04 | D172: 1.925 | E172: x | F172: 1.5 | G172: = | H172: 2.89
B175: Descontos x2 (Desconto do chapisco nos Dois Lados)
D176: Largura | F176: Altura | H176: Quantidade | J176: x 2
B177: P1 | D177: 0.9 | E177: x | F177: 1.5 | G177: x | H177: 2 | I177: x | J177: 1 | K177: = | L177: =ROUND((D177*F177*H177*J177),2) -> 2.7
A180: =ORÇAMENTO!A25 -> 4.4 | B180: Peitoril de Granito (com Pingadeira), e=2cm (fornecimento e instalação) | C180: ∑ | D180: =SUM(J184:J186) -> 1.62 | E180: m2
B181: Comprimento x Largura x Quantidade
D183: Comprimento | F183: Largura | H183: Quantidade
B184: J1 | D184: 1.6 | E184: x | F184: 0.2 | G184: x | H184: 2 | I184: = | J184: =ROUND((D184*F184*H184),2) -> 0.64
B185: J2 | D185: 1.2 | E185: x | F185: 0.2 | G185: x | H185: 2 | I185: = | J185: =ROUND((D185*F185*H185),2) -> 0.48
B186: J3 | D186: 2.5 | E186: x | F186: 0.2 | G186: x | H186: 1 | I186: = | J186: =ROUND((D186*F186*H186),2) -> 0.5
A188: =ORÇAMENTO!A26 -> 5 | B188: PISO | M188: .
A189: =ORÇAMENTO!A27 -> 5.1 | B189: Piso Edificação
A190: =ORÇAMENTO!A28 -> 5.1.1 | B190: Regularização e Apiloamento Manual | C190: ∑ | D190: =D201 -> 113.21 | E190: m2
B191: Soma das áreas de ambientes de piso com base de concreto
B193: Recepção/Espera | D193: 23.64
B194: Circulação | D194: 16.22
B195: WC PCD Feminino | D195: 4.23
B196: WC PCD Masculino | D196: 4.23
B197: Consultório Dentista | D197: 23.45
B198: Vigilância Epidemiológica | D198: 22.74
B199: Vigilância Sanitária | D199: 18.7
C201: ∑ | D201: =SUM(D192:D200) -> 113.21
A203: =ORÇAMENTO!A29 -> 5.1.2 | B203: Lastro de Brita Graduada para Contrapiso, e = 10cm | C203: ∑ | D203: =H205 -> 11.32 | E203: m3
B204: Área de regularização x 0,10
D205: =D190 -> 113.21 | E205: x | F205: 0.1 | G205: = | H205: =ROUND((D205*F205),2) -> 11.32
A207: =ORÇAMENTO!A30 -> 5.1.3 | B207: Lona 200 Micras (fornecimento e instalação) | C207: ∑ | D207: =D190 -> 113.21 | E207: m2
B208: Área de regularização
A210: =ORÇAMENTO!A31 -> 5.1.4 | B210: Tela Q 92 (CA-60) 4,2mm (Fornecimento e instalação) (1,48 kg/m2) | C210: ∑ | D210: =D190 -> 113.21 | E210: m2
A212: =ORÇAMENTO!A29 -> 5.1.2 | B212: Reforço de Aço CA-50 Ø6.3mm para Paredes de Concreto Celular | C212: ∑ | D212: 9.95 | E212: kg
A214: =ORÇAMENTO!A33 -> 5.1.6 | B214: Piso em Concreto 25 Mpa , e=7cm | C214: ∑ | D214: =H216 -> 7.92 | E214: m3
B215: área de piso x 0,07
D216: =D190 -> 113.21 | E216: x | F216: 0.07 | G216: = | H216: =ROUND((D216*F216),2) -> 7.92
A218: =ORÇAMENTO!A34 -> 5.1.7 | B218: Soleira de Granito, e=2cm (fornecimento e instalação) | C218: ∑ | D218: =SUM(J222:J223) -> 1.28 | E218: m2
B219: Comprimento x Largura x Quantidade
D221: Comprimento | F221: Largura | H221: Quantidade
B222: P1 | D222: 0.9 | E222: x | F222: 0.15 | G222: x | H222: 5 | I222: = | J222: =ROUND((D222*F222*H222),2) -> 0.68
B223: P2 | D223: 1.2 | E223: x | F223: 0.5 | G223: x | H223: 1 | I223: = | J223: =ROUND((D223*F223*H223),2) -> 0.6
A225: =ORÇAMENTO!A35 -> 5.1.8 | B225: Contrapiso em Argamassa, e=2cm | C225: ∑ | D225: =D190 -> 113.21 | E225: m2
A227: =ORÇAMENTO!A36 -> 5.1.9 | B227: Piso Cerâmico
A228: =ORÇAMENTO!A37 -> 5.1.8.1 | B228: Piso Cerâmico ACETINADO FOSCO 30x30 (ou próximo a esta medida), PEI 5, aplicado com Argamassa | C228: ∑ | D228: =SUM(D231:D233) -> 39.86 | E228: m2
B229: Soma de áreas de ambientes com piso
B231: Circulação | D231: 16.22
B232: Recepção/Espera | D232: 23.64
A234: =ORÇAMENTO!A38 -> 5.1.8.2 | B234: Piso Cerâmico BRILHO 30x30 (ou próximo a esta medida), PEI 5, aplicado com Argamassa | C234: ∑ | D234: =SUM(D237:D240) -> 64.89 | E234: m2
B235: Soma de áreas de ambientes com piso
B237: Consultório Dentista | D237: 23.45
B238: Vigilância Epidemiológica | D238: 22.74
B239: Vigilância Sanitária | D239: 18.7
A241: =ORÇAMENTO!A39 -> 5.1.8.3 | B241: Piso Cerâmico ANTIDERRAPANTE, 30x30 (ou próximo a esta medida), PEI 5, aplicado com Argamassa | C241: ∑ | D241: =SUM(D244:D245) -> 8.46 | E241: m2
B242: Soma de áreas de ambientes com piso antiderrapante
B244: WC PCD Feminino | D244: 4.23
B245: WC PCD Masculino | D245: 4.23
A247: =ORÇAMENTO!A40 -> 5.1.8.4 | B247: Rodapé Cerâmico de 7cm, colado com Argamassa | C247: ∑ | D247: =SUM(D250:D285)-SUM(H288:H289) -> 99.5 | E247: m
B248: Soma dos comprimentos por ambiente com desconto das portas
B250: Consultóri Dentista | D250: 3.65
B251: Consultóri Dentista | D251: 3.65
B252: Consultóri Dentista | D252: 6.45
B253: Consultóri Dentista | D253: 6.45
B254: Vigilância Epidemiologia | D254: 5.05
B255: Vigilância Epidemiologia | D255: 5.65
B256: Vigilância Epidemiologia | D256: 2.75
B257: Vigilância Epidemiologia | D257: 2.05
B258: Vigilância Epidemiologia | D258: 2.9
B259: Vigilância Epidemiologia | D259: 3.05
B260: Vigilância Sanitária | D260: 3.5
B261: Vigilância Sanitária | D261: 3.5
B262: Vigilância Sanitária | D262: 5.35
B263: Vigilância Sanitária | D263: 5.35
B264: Circulação | D264: 5.55
B265: Circulação | D265: 2
B266: Circulação | D266: 1.55
B267: Circulação | D267: 1.3
... 100 more rows

Sheet COMPOSIÇÕES
I2: Legenda
I3: CRD | J3: COMPOSIÇÕES DEMOLIÇÃO, RETIRADA E RECOLOCAÇÃO
I4: CED | J4: COMPOSIÇÕES EDIFICAÇÃO
I5: CEL | J5: ELÉTRICO
I6: CHD | J6: HIDROSSANITÁRIO
I7: CAC | J7: ACESSÓRIOS BWC
I8: CPR | J8: PREVENTIVO
I9: CES | J9: ESQUADRIAS
I10: CVE | J10: PAISAGISMO
I11: COM | J11: COMPLEMENTAÇÕES
I12: CPA | J12: COMPOSIÇÕES PAVIMENTAÇÃO
A14: Descrição | F14: UN | G14: Cód. | I14: =MATCH(G15,ORÇAMENTO!G:G,0) -> 28
A15: REGULARIZAÇÃO E APILOAMENTO MANUAL | F15: m2 | G15: CED003 | I15: =IF((ISNA(I14)=TRUE),"","ESTÁ SENDO UTILIZADA") -> ESTÁ SENDO UTILIZADA
A16: Descrição | B16: Coefi. | C16: Uni. | D16: Valor uni. | E16: Fonte | F16: Cód. | G16: Valor | I16: Linha | J16: Nome original na fonte
A17: =J17 -> SERVENTE COM ENCARGOS COMPLEMENTARES | B17: 0.5 | C17: h | D17: =OFFSET(FONTE!$A$4,I17,3,1) -> 16.16 | E17: =OFFSET(FONTE!$A$2,I17,4,1) -> SINAPI | F17: 88316 | G17: =ROUND((B17*D17),2) -> 8.08 | I17: =MATCH(F17,FONTE!$A$4:$A$13452,0)-1 -> 11398 | J17: =OFFSET(FONTE!$A$4,I17,1,1) -> SERVENTE COM ENCARGOS COMPLEMENTARES
F18: ∑ | G18: =SUM(G17) -> 8.08
A20: Descrição | F20: UN | G20: Cód. | I20: =MATCH(G21,ORÇAMENTO!G:G,0) -> 33
A21: CONCRETAGEM DE PISO, FCK 25 MPA, PARA ESPESSURA DE 5 À 15 CM - LANÇAMENTO, ADENSAMENTO E ACABAMENTO. | F21: m3 | G21: CED100 | I21: =IF((ISNA(I20)=TRUE),"","ESTÁ SENDO UTILIZADA") -> ESTÁ SENDO UTILIZADA
A22: Descrição | B22: Coefi. | C22: Uni. | D22: Valor uni. | E22: Fonte | F22: Cód. | G22: Valor | I22: Linha | J22: Nome original na fonte
A23: =J23 -> CONCRETO USINADO BOMBEAVEL, CLASSE DE RESISTENCIA C25, COM BRITA 0 E 1, SLUMP = 100 +/- 20 MM, EXCLUI SERVICO DE BOMBEAMENTO (NBR 8953) | B23: 1.15 | C23: M3 | D23: =OFFSET(FONTE!$A$4,I23,3,1) -> 250.03 | E23: =OFFSET(FONTE!$A$4,I23,4,1) -> SINAPI-I | F23: 34493 | G23: =ROUND((B23*D23),2) -> 287.53 | I23: =MATCH(F23,FONTE!$A$4:$A$14171,0)-1 -> 1331 | J23: =OFFSET(FONTE!$A$4,I23,1,1) -> CONCRETO USINADO BOMBEAVEL, CLASSE DE RESISTENCIA C25, COM BRITA 0 E 1, SLUMP = 100 +/- 20 MM, EXCLUI SERVICO DE BOMBEAMENTO (NBR 8953)
A24: PEDREIRO COM ENCARGOS COMPLEMENTARES | B24: 0.504 | C24: H | D24: =OFFSET(FONTE!$A$4,I24,3,1) -> 21.71 | E24: =OFFSET(FONTE!$A$4,I24,4,1) -> SINAPI | F24: 88309 | G24: 10.94 | I24: =MATCH(F24,FONTE!$A$4:$A$14171,0)-1 -> 11391 | J24: =OFFSET(FONTE!$A$4,I24,1,1) -> PEDREIRO COM ENCARGOS COMPLEMENTARES
A25: SERVENTE COM ENCARGOS COMPLEMENTARES | B25: 0.504 | C25: H | D25: =OFFSET(FONTE!$A$4,I25,3,1) -> 16.16 | E25: =OFFSET(FONTE!$A$4,I25,4,1) -> SINAPI | F25: 88316 | G25: 8.14 | I25: =MATCH(F25,FONTE!$A$4:$A$14171,0)-1 -> 11398 | J25: =OFFSET(FONTE!$A$4,I25,1,1) -> SERVENTE COM ENCARGOS COMPLEMENTARES
A26: VIBRADOR DE IMERSÃO, DIÂMETRO DE PONTEIRA 45MM, MOTOR ELÉTRICO TRIFÁSICO POTÊNCIA DE 2 CV - CHP DIURNO. AF_06/2015 | B26: 0.066 | C26: CHP | D26: =OFFSET(FONTE!$A$4,I26,3,1) -> 1.06 | E26: =OFFSET(FONTE!$A$4,I26,4,1) -> SINAPI | F26: 90586 | G26: 0.07 | I26: =MATCH(F26,FONTE!$A$4:$A$14171,0)-1 -> 5736 | J26: =OFFSET(FONTE!$A$4,I26,1,1) -> VIBRADOR DE IMERSÃO, DIÂMETRO DE PONTEIRA 45MM, MOTOR ELÉTRICO TRIFÁSICO POTÊNCIA DE 2 CV - CHP DIURNO. AF_06/2015
A27: VIBRADOR DE IMERSÃO, DIÂMETRO DE PONTEIRA 45MM, MOTOR ELÉTRICO TRIFÁSICO POTÊNCIA DE 2 CV - CHI DIURNO. AF_06/2015 | B27: 0.066 | C27: CHI | D27: =OFFSET(FONTE!$A$4,I27,3,1) -> 0.3 | E27: =OFFSET(FONTE!$A$4,I27,4,1) -> SINAPI | F27: 90587 | G27: 0.02 | I27: =MATCH(F27,FONTE!$A$4:$A$14171,0)-1 -> 5875 | J27: =OFFSET(FONTE!$A$4,I27,1,1) -> VIBRADOR DE IMERSÃO, DIÂMETRO DE PONTEIRA 45MM, MOTOR ELÉTRICO TRIFÁSICO POTÊNCIA DE 2 CV - CHI DIURNO. AF_06/2015
F28: ∑ | G28: =SUM(G23:G27) -> 306.7
A30: Descrição | F30: UN | G30: Cód. | I30: =MATCH(G31,ORÇAMENTO!G:G,0) -> 140
A31: =A33 -> Exaustor para Ventilação Mecânica para Banheiros | F31: un | G31: CED900 | I31: =IF((ISNA(I30)=TRUE),"","ESTÁ SENDO UTILIZADA") -> ESTÁ SENDO UTILIZADA
A32: Descrição | B32: Coefi. | C32: Uni. | D32: Valor uni. | E32: Fonte | F32: Cód. | G32: Valor | I32: Linha | J32: Nome original na fonte
A33: =J33 -> Exaustor para Ventilação Mecânica para Banheiros | B33: 1 | C33: UN | D33: =OFFSET(FONTE!$A$4,I33,3,1) -> 225 | E33: =OFFSET(FONTE!$A$4,I33,4,1) -> Mercado | F33: MED112 | G33: =ROUND((B33*D33),2) -> 225 | I33: =MATCH(F33,FONTE!$A$4:$A$13475,0)-1 -> 11651 | J33: =OFFSET(FONTE!$A$4,I33,1,1) -> Exaustor para Ventilação Mecânica para Banheiros
A34: ELETRICISTA COM ENCARGOS COMPLEMENTARES | B34: 2 | C34: h | D34: =OFFSET(FONTE!$A$4,I34,3,1) -> 28.54 | E34: =OFFSET(FONTE!$A$4,I34,4,1) -> SINAPI | F34: 88264 | G34: 57.08 | I34: =MATCH(F34,FONTE!$A$4:$A$13475,0)-1 -> 11353 | J34: =OFFSET(FONTE!$A$4,I34,1,1) -> ELETRICISTA COM ENCARGOS COMPLEMENTARES
F35: ∑ | G35: =SUM(G33:G34) -> 282.08
A37: Descrição | F37: UN | G37: Cód. | I37: =MATCH(G38,ORÇAMENTO!G:G,0) -> 54
A38: Eletroduto PVC Corrugado 1" (fornecimento, escavação, assentamento e reaterro) | F38: m | G38: CEL006 | I38: =IF((ISNA(I37)=TRUE),"","ESTÁ SENDO UTILIZADA") -> ESTÁ SENDO UTILIZADA
A39: Descrição | B39: coef. | C39: uni. | D39: valor uni. | E39: ref | F39: cód | G39: valor s/BDI | I39: Linha | J39: Nome original na fonte
A40: =J40 -> ELETRODUTO FLEXÍVEL CORRUGADO, PVC, DN 32 MM (1"), PARA CIRCUITOS TERMINAIS, INSTALADO EM LAJE - FORNECIMENTO E INSTALAÇÃO. AF_12/2015 | B40: 1 | C40: m | D40: =OFFSET(FONTE!$A$4,I40,3,1) -> 7.64 | E40: =OFFSET(FONTE!$A$2,I40,4,1) -> SINAPI | F40: 91846 | G40: =ROUND((B40*D40),2) -> 7.64 | I40: =MATCH(F40,FONTE!$A$4:$A$14720,0)-1 -> 7717 | J40: =OFFSET(FONTE!$A$4,I40,1,1) -> ELETRODUTO FLEXÍVEL CORRUGADO, PVC, DN 32 MM (1"), PARA CIRCUITOS TERMINAIS, INSTALADO EM LAJE - FORNECIMENTO E INSTALAÇÃO. AF_12/2015
A41: =J41 -> FITA PLASTICA ZEBRADA PARA DEMARCACAO DE AREAS, LARGURA = 7 CM, SEM ADESIVO (COLETADO CAIXA) | B41: 1 | C41: H | D41: =OFFSET(FONTE!$A$4,I41,3,1) -> 0.11 | E41: =OFFSET(FONTE!$A$2,I41,4,1) -> SINAPI-I | F41: 42015 | G41: =ROUND((B41*D41),2) -> 0.11 | I41: =MATCH(F41,FONTE!$A$4:$A$14720,0)-1 -> 2272 | J41: =OFFSET(FONTE!$A$4,I41,1,1) -> FITA PLASTICA ZEBRADA PARA DEMARCACAO DE AREAS, LARGURA = 7 CM, SEM ADESIVO (COLETADO CAIXA)
A42: =J42 -> ASSENTADOR DE TUBOS COM ENCARGOS COMPLEMENTARES | B42: 0.16 | C42: H | D42: =OFFSET(FONTE!$A$4,I42,3,1) -> 20.77 | E42: =OFFSET(FONTE!$A$2,I42,4,1) -> SINAPI | F42: 88246 | G42: =ROUND((B42*D42),2) -> 3.32 | I42: =MATCH(F42,FONTE!$A$4:$A$14720,0)-1 -> 11336 | J42: =OFFSET(FONTE!$A$4,I42,1,1) -> ASSENTADOR DE TUBOS COM ENCARGOS COMPLEMENTARES
A43: =J43 -> ESCAVAÇÃO MANUAL DE VALA COM PROFUNDIDADE MENOR OU IGUAL A 1,30 M. AF_03/2016 | B43: =1*0.6*0.3 -> 0.18 | C43: H | D43: =OFFSET(FONTE!$A$4,I43,3,1) -> 63.92 | E43: =OFFSET(FONTE!$A$2,I43,4,1) -> SINAPI | F43: 93358 | G43: =ROUND((B43*D43),2) -> 11.51 | I43: =MATCH(F43,FONTE!$A$4:$A$14720,0)-1 -> 9879 | J43: =OFFSET(FONTE!$A$4,I43,1,1) -> ESCAVAÇÃO MANUAL DE VALA COM PROFUNDIDADE MENOR OU IGUAL A 1,30 M. AF_03/2016
A44: =J44 -> REATERRO MANUAL APILOADO COM SOQUETE. AF_10/2017 | B44: 0.17 | C44: H | D44: =OFFSET(FONTE!$A$4,I44,3,1) -> 38.76 | E44: =OFFSET(FONTE!$A$2,I44,4,1) -> SINAPI | F44: 96995 | G44: =ROUND((B44*D44),2) -> 6.59 | I44: =MATCH(F44,FONTE!$A$4:$A$14720,0)-1 -> 9931 | J44: =OFFSET(FONTE!$A$4,I44,1,1) -> REATERRO MANUAL APILOADO COM SOQUETE. AF_10/2017
F45: ∑ | G45: =SUM(G40:G44) -> 29.17
A47: Descrição | F47: UN | G47: Cód. | I47: =MATCH(G48,ORÇAMENTO!G:G,0) -> 64
A48: Disjuntor Diferencial Residual (DR), 2 polos F-N, 25A (fornecimento e instalação) | F48: un | G48: CEL013 | I48: =IF((ISNA(I47)=TRUE),"","ESTÁ SENDO UTILIZADA") -> ESTÁ SENDO UTILIZADA
A49: Descrição | B49: coef. | C49: uni. | D49: valor uni. | E49: ref | F49: cód | G49: valor s/BDI | I49: Linha | J49: Nome original na fonte
A50: =J50 -> DISPOSITIVO DR, 2 POLOS, SENSIBILIDADE DE 30 MA, CORRENTE DE 25 A, TIPO AC | B50: 1 | C50: un | D50: =OFFSET(FONTE!$A$4,I50,3,1) -> 166.44 | E50: =OFFSET(FONTE!$A$2,I50,4,1) -> SINAPI-I | F50: 39445 | G50: =ROUND((B50*D50),2) -> 166.44 | I50: =MATCH(F50,FONTE!$A$4:$A$14720,0)-1 -> 1913 | J50: =OFFSET(FONTE!$A$4,I50,1,1) -> DISPOSITIVO DR, 2 POLOS, SENSIBILIDADE DE 30 MA, CORRENTE DE 25 A, TIPO AC
A51: =J51 -> ELETRICISTA COM ENCARGOS COMPLEMENTARES | B51: 0.16 | C51: H | D51: =OFFSET(FONTE!$A$4,I51,3,1) -> 28.54 | E51: =OFFSET(FONTE!$A$2,I51,4,1) -> SINAPI | F51: 88264 | G51: =ROUND((B51*D51),2) -> 4.57 | I51: =MATCH(F51,FONTE!$A$4:$A$14720,0)-1 -> 11353 | J51: =OFFSET(FONTE!$A$4,I51,1,1) -> ELETRICISTA COM ENCARGOS COMPLEMENTARES
A52: =J52 -> AUXILIAR DE ELETRICISTA COM ENCARGOS COMPLEMENTARES | B52: 0.16 | C52: H | D52: =OFFSET(FONTE!$A$4,I52,3,1) -> 20.79 | E52: =OFFSET(FONTE!$A$2,I52,4,1) -> SINAPI | F52: 88247 | G52: =ROUND((B52*D52),2) -> 3.33 | I52: =MATCH(F52,FONTE!$A$4:$A$14720,0)-1 -> 11337 | J52: =OFFSET(FONTE!$A$4,I52,1,1) -> AUXILIAR DE ELETRICISTA COM ENCARGOS COMPLEMENTARES
F53: ∑ | G53: =SUM(G50:G52) -> 174.34
A55: Descrição | F55: UN | G55: Cód. | I55: =MATCH(G56,ORÇAMENTO!G:G,0) -> 85
A56: BUCHA DE REDUCAO DE PVC, SOLDAVEL, CURTA, COM 32 X 25 MM, PARA AGUA FRIA PREDIAL - FORNECIMENTO E INSTALAÇÃO | F56: un | G56: CHD007 | I56: =IF((ISNA(I55)=TRUE),"","ESTÁ SENDO UTILIZADA") -> ESTÁ SENDO UTILIZADA
A57: Descrição | B57: Coefi. | C57: Uni. | D57: Valor uni. | E57: Fonte | F57: Cód. | G57: Valor s/BDI | I57: Linha | J57: Nome original na fonte
A58: =J58 -> ADESIVO PLASTICO PARA PVC, FRASCO COM 850 GR | B58: 0.007 | C58: un | D58: =OFFSET(FONTE!$A$4,I58,3,1) -> 46.25 | E58: =OFFSET(FONTE!$A$2,I58,4,1) -> SINAPI-I | F58: 122 | G58: =ROUND((D58*B58),2) -> 0.32 | I58: =MATCH(F58,FONTE!$A$4:$A$13452,0)-1 -> 168 | J58: =OFFSET(FONTE!$A$4,I58,1,1) -> ADESIVO PLASTICO PARA PVC, FRASCO COM 850 GR
A59: =J59 -> BUCHA DE REDUCAO DE PVC, SOLDAVEL, CURTA, COM 32 X 25 MM, PARA AGUA FRIA PREDIAL | B59: 1 | C59: un | D59: =OFFSET(FONTE!$A$4,I59,3,1) -> 0.61 | E59: =OFFSET(FONTE!$A$2,I59,4,1) -> SINAPI-I | F59: 829 | G59: 0.61 | I59: =MATCH(F59,FONTE!$A$4:$A$13452,0)-1 -> 672 | J59: =OFFSET(FONTE!$A$4,I59,1,1) -> BUCHA DE REDUCAO DE PVC, SOLDAVEL, CURTA, COM 32 X 25 MM, PARA AGUA FRIA PREDIAL
A60: SOLUCAO LIMPADORA PARA PVC, FRASCO COM 1000 CM3 | B60: 0.008 | C60: un | D60: =OFFSET(FONTE!$A$4,I60,3,1) -> 40.16 | E60: =OFFSET(FONTE!$A$2,I60,4,1) -> SINAPI-I | F60: 20083 | G60: 0.32 | I60: =MATCH(F60,FONTE!$A$4:$A$13452,0)-1 -> 4255 | J60: =OFFSET(FONTE!$A$4,I60,1,1) -> SOLUCAO LIMPADORA PARA PVC, FRASCO COM 1000 CM3
A61: LIXA D'AGUA EM FOLHA, GRAO 100 | B61: 0.03 | C61: un | D61: =OFFSET(FONTE!$A$4,I61,3,1) -> 1.47 | E61: =OFFSET(FONTE!$A$2,I61,4,1) -> SINAPI-I | F61: 38383 | G61: 0.04 | I61: =MATCH(F61,FONTE!$A$4:$A$13452,0)-1 -> 2884 | J61: =OFFSET(FONTE!$A$4,I61,1,1) -> LIXA D'AGUA EM FOLHA, GRAO 100
A62: AUXILIAR DE ENCANADOR OU BOMBEIRO HIDRÁULICO COM ENCARGOS COMPLEMENTARES | B62: 0.09 | C62: h | D62: =OFFSET(FONTE!$A$4,I62,3,1) -> 16.33 | E62: =OFFSET(FONTE!$A$2,I62,4,1) -> SINAPI | F62: 88248 | G62: 1.47 | I62: =MATCH(F62,FONTE!$A$4:$A$13452,0)-1 -> 11338 | J62: =OFFSET(FONTE!$A$4,I62,1,1) -> AUXILIAR DE ENCANADOR OU BOMBEIRO HIDRÁULICO COM ENCARGOS COMPLEMENTARES
A63: ENCANADOR OU BOMBEIRO HIDRÁULICO COM ENCARGOS COMPLEMENTARES | B63: 0.09 | C63: h | D63: =OFFSET(FONTE!$A$4,I63,3,1) -> 22.06 | E63: =OFFSET(FONTE!$A$2,I63,4,1) -> SINAPI | F63: 88267 | G63: 1.99 | I63: =MATCH(F63,FONTE!$A$4:$A$13452,0)-1 -> 11356 | J63: =OFFSET(FONTE!$A$4,I63,1,1) -> ENCANADOR OU BOMBEIRO HIDRÁULICO COM ENCARGOS COMPLEMENTARES
F64: ∑ | G64: =SUM(G58:G63) -> 4.75
A66: Descrição | F66: UN | G66: Cód. | I66: =MATCH(G67,ORÇAMENTO!G:G,0) -> 87
A67: BUCHA DE REDUCAO DE PVC, SOLDAVEL, LONGA, COM 50 X 32 MM, PARA AGUA FRIA PREDIAL - FORNECIMENTO E INSTALAÇÃO | F67: un | G67: CHD010 | I67: =IF((ISNA(I66)=TRUE),"","ESTÁ SENDO UTILIZADA") -> ESTÁ SENDO UTILIZADA
A68: Descrição | B68: Coefi. | C68: Uni. | D68: Valor uni. | E68: Fonte | F68: Cód. | G68: Valor s/BDI | I68: Linha | J68: Nome original na fonte
A69: =J69 -> ADESIVO PLASTICO PARA PVC, FRASCO COM 850 GR | B69: 0.007 | C69: un | D69: =OFFSET(FONTE!$A$4,I69,3,1) -> 46.25 | E69: =OFFSET(FONTE!$A$2,I69,4,1) -> SINAPI-I | F69: 122 | G69: =ROUND((D69*B69),2) -> 0.32 | I69: =MATCH(F69,FONTE!$A$4:$A$13452,0)-1 -> 168 | J69: =OFFSET(FONTE!$A$4,I69,1,1) -> ADESIVO PLASTICO PARA PVC, FRASCO COM 850 GR
A70: =J70 -> BUCHA DE REDUCAO DE PVC, SOLDAVEL, LONGA, COM 50 X 32 MM, PARA AGUA FRIA PREDIAL | B70: 1 | C70: un | D70: =OFFSET(FONTE!$A$4,I70,3,1) -> 3.19 | E70: =OFFSET(FONTE!$A$2,I70,4,1) -> SINAPI-I | F70: 820 | G70: 3.19 | I70: =MATCH(F70,FONTE!$A$4:$A$13452,0)-1 -> 685 | J70: =OFFSET(FONTE!$A$4,I70,1,1) -> BUCHA DE REDUCAO DE PVC, SOLDAVEL, LONGA, COM 50 X 32 MM, PARA AGUA FRIA PREDIAL
A71: SOLUCAO LIMPADORA PARA PVC, FRASCO COM 1000 CM3 | B71: 0.008 | C71: un | D71: =OFFSET(FONTE!$A$4,I71,3,1) -> 40.16 | E71: =OFFSET(FONTE!$A$2,I71,4,1) -> SINAPI-I | F71: 20083 | G71: 0.32 | I71: =MATCH(F71,FONTE!$A$4:$A$13452,0)-1 -> 4255 | J71: =OFFSET(FONTE!$A$4,I71,1,1) -> SOLUCAO LIMPADORA PARA PVC, FRASCO COM 1000 CM3
A72: LIXA D'AGUA EM FOLHA, GRAO 100 | B72: 0.03 | C72: un | D72: =OFFSET(FONTE!$A$4,I72,3,1) -> 1.47 | E72: =OFFSET(FONTE!$A$2,I72,4,1) -> SINAPI-I | F72: 38383 | G72: 0.04 | I72: =MATCH(F72,FONTE!$A$4:$A$13452,0)-1 -> 2884 | J72: =OFFSET(FONTE!$A$4,I72,1,1) -> LIXA D'AGUA EM FOLHA, GRAO 100
A73: AUXILIAR DE ENCANADOR OU BOMBEIRO HIDRÁULICO COM ENCARGOS COMPLEMENTARES | B73: 0.09 | C73: h | D73: =OFFSET(FONTE!$A$4,I73,3,1) -> 16.33 | E73: =OFFSET(FONTE!$A$2,I73,4,1) -> SINAPI | F73: 88248 | G73: 1.47 | I73: =MATCH(F73,FONTE!$A$4:$A$13452,0)-1 -> 11338 | J73: =OFFSET(FONTE!$A$4,I73,1,1) -> AUXILIAR DE ENCANADOR OU BOMBEIRO HIDRÁULICO COM ENCARGOS COMPLEMENTARES
A74: ENCANADOR OU BOMBEIRO HIDRÁULICO COM ENCARGOS COMPLEMENTARES | B74: 0.09 | C74: h | D74: =OFFSET(FONTE!$A$4,I74,3,1) -> 22.06 | E74: =OFFSET(FONTE!$A$2,I74,4,1) -> SINAPI | F74: 88267 | G74: 1.99 | I74: =MATCH(F74,FONTE!$A$4:$A$13452,0)-1 -> 11356 | J74: =OFFSET(FONTE!$A$4,I74,1,1) -> ENCANADOR OU BOMBEIRO HIDRÁULICO COM ENCARGOS COMPLEMENTARES
F75: ∑ | G75: =SUM(G69:G74) -> 7.33
A77: Descrição | F77: UN | G77: Cód. | I77: =MATCH(G78,ORÇAMENTO!G:G,0) -> 123
A78: JUNCAO SIMPLES, PVC, DN 100 X 50 MM, SERIE NORMAL PARA ESGOTO PREDIAL - FORNECIMENTOE INSTALAÇÃO | F78: un | G78: CHD019 | I78: =IF((ISNA(I77)=TRUE),"","ESTÁ SENDO UTILIZADA") -> ESTÁ SENDO UTILIZADA
A79: Descrição | B79: Coefi. | C79: Uni. | D79: Valor uni. | E79: Fonte | F79: Cód. | G79: Valor s/BDI | I79: Linha | J79: Nome original na fonte
A80: =J80 -> ANEL BORRACHA PARA TUBO ESGOTO PREDIAL DN 50 MM (NBR 5688) | B80: 1 | C80: un | D80: =OFFSET(FONTE!$A$4,I80,3,1) -> 1 | E80: =OFFSET(FONTE!$A$2,I80,4,1) -> SINAPI-I | F80: 296 | G80: =ROUND((D80*B80),2) -> 1 | I80: =MATCH(F80,FONTE!$A$4:$A$13452,0)-1 -> 222 | J80: =OFFSET(FONTE!$A$4,I80,1,1) -> ANEL BORRACHA PARA TUBO ESGOTO PREDIAL DN 50 MM (NBR 5688)
A81: =J81 -> ANEL BORRACHA PARA TUBO ESGOTO PREDIAL, DN 100 MM (NBR 5688) | B81: 1 | C81: un | D81: =OFFSET(FONTE!$A$4,I81,3,1) -> 1.77 | E81: =OFFSET(FONTE!$A$2,I81,4,1) -> SINAPI-I | F81: 301 | G81: 1.77 | I81: =MATCH(F81,FONTE!$A$4:$A$13452,0)-1 -> 224 | J81: =OFFSET(FONTE!$A$4,I81,1,1) -> ANEL BORRACHA PARA TUBO ESGOTO PREDIAL, DN 100 MM (NBR 5688)
A82: PASTA LUBRIFICANTE PARA TUBOS E CONEXOES COM JUNTA ELASTICA (USO EM PVC, ACO, POLIETILENO E OUTROS) ( DE *400* G) | B82: 0.092 | C82: un | D82: =OFFSET(FONTE!$A$4,I82,3,1) -> 16.93 | E82: =OFFSET(FONTE!$A$2,I82,4,1) -> SINAPI-I | F82: 20078 | G82: 1.56 | I82: =MATCH(F82,FONTE!$A$4:$A$13452,0)-1 -> 3589 | J82: =OFFSET(FONTE!$A$4,I82,1,1) -> PASTA LUBRIFICANTE PARA TUBOS E CONEXOES COM JUNTA ELASTICA (USO EM PVC, ACO, POLIETILENO E OUTROS) ( DE *400* G)
A83: JUNCAO SIMPLES, PVC, DN 100 X 50 MM, SERIE NORMAL PARA ESGOTO PREDIAL | B83: 1 | C83: un | D83: =OFFSET(FONTE!$A$4,I83,3,1) -> 9.37 | E83: =OFFSET(FONTE!$A$2,I83,4,1) -> SINAPI-I | F83: 3659 | G83: 9.37 | I83: =MATCH(F83,FONTE!$A$4:$A$13452,0)-1 -> 2753 | J83: =OFFSET(FONTE!$A$4,I83,1,1) -> JUNCAO SIMPLES, PVC, DN 100 X 50 MM, SERIE NORMAL PARA ESGOTO PREDIAL
A84: AUXILIAR DE ENCANADOR OU BOMBEIRO HIDRÁULICO COM ENCARGOS COMPLEMENTARES | B84: 0.185 | C84: h | D84: =OFFSET(FONTE!$A$4,I84,3,1) -> 16.33 | E84: =OFFSET(FONTE!$A$2,I84,4,1) -> SINAPI | F84: 88248 | G84: 3.02 | I84: =MATCH(F84,FONTE!$A$4:$A$13452,0)-1 -> 11338 | J84: =OFFSET(FONTE!$A$4,I84,1,1) -> AUXILIAR DE ENCANADOR OU BOMBEIRO HIDRÁULICO COM ENCARGOS COMPLEMENTARES
A85: ENCANADOR OU BOMBEIRO HIDRÁULICO COM ENCARGOS COMPLEMENTARES | B85: 0.185 | C85: h | D85: =OFFSET(FONTE!$A$4,I85,3,1) -> 22.06 | E85: =OFFSET(FONTE!$A$2,I85,4,1) -> SINAPI | F85: 88267 | G85: 4.08 | I85: =MATCH(F85,FONTE!$A$4:$A$13452,0)-1 -> 11356 | J85: =OFFSET(FONTE!$A$4,I85,1,1) -> ENCANADOR OU BOMBEIRO HIDRÁULICO COM ENCARGOS COMPLEMENTARES
F86: ∑ | G86: =SUM(G80:G85) -> 20.8
A88: Descrição | F88: UN | G88: Cód. | I88: =MATCH(G89,ORÇAMENTO!G:G,0) -> 132
A89: DUCHA HIGIÊNICA METÁLICA DE PAREDE ARTICULÁVEL (fornecimento e instalação) | F89: un | G89: CAC001 | I89: =IF((ISNA(I88)=TRUE),"","ESTÁ SENDO UTILIZADA") -> ESTÁ SENDO UTILIZADA
A90: Descrição | B90: Coefi. | C90: Uni. | D90: Valor uni. | E90: Fonte | F90: Cód. | G90: Valor s/BDI | I90: Linha | J90: Nome original na fonte
A91: =J91 -> DUCHA METALICA DE PAREDE, ARTICULAVEL, COM BRACO/CANO, SEM DESVIADOR | B91: 1 | C91: unid. | D91: =OFFSET(FONTE!$A$4,I91,3,1) -> 184.15 | E91: =OFFSET(FONTE!$A$2,I91,4,1) -> SINAPI-I | F91: 38189 | G91: =ROUND((D91*B91),2) -> 184.15 | I91: =MATCH(F91,FONTE!$A$4:$A$13466,0)-1 -> 1976 | J91: =OFFSET(FONTE!$A$4,I91,1,1) -> DUCHA METALICA DE PAREDE, ARTICULAVEL, COM BRACO/CANO, SEM DESVIADOR
A92: =J92 -> FITA VEDA ROSCA EM ROLOS DE 18 MM X 50 M (L X C) | B92: 0.01 | C92: m | D92: =OFFSET(FONTE!$A$4,I92,3,1) -> 6.63 | E92: =OFFSET(FONTE!$A$2,I92,4,1) -> SINAPI-I | F92: 3148 | G92: =ROUND((D92*B92),2) -> 0.07 | I92: =MATCH(F92,FONTE!$A$4:$A$13466,0)-1 -> 2275 | J92: =OFFSET(FONTE!$A$4,I92,1,1) -> FITA VEDA ROSCA EM ROLOS DE 18 MM X 50 M (L X C)
A93: =J93 -> ELETRICISTA COM ENCARGOS COMPLEMENTARES | B93: 0.45 | C93: h | D93: =OFFSET(FONTE!$A$4,I93,3,1) -> 28.54 | E93: =OFFSET(FONTE!$A$2,I93,4,1) -> SINAPI | F93: 88264 | G93: =ROUND((D93*B93),2) -> 12.84 | I93: =MATCH(F93,FONTE!$A$4:$A$13466,0)-1 -> 11353 | J93: =OFFSET(FONTE!$A$4,I93,1,1) -> ELETRICISTA COM ENCARGOS COMPLEMENTARES
A94: =J94 -> SERVENTE COM ENCARGOS COMPLEMENTARES | B94: 0.3 | C94: h | D94: =OFFSET(FONTE!$A$4,I94,3,1) -> 16.16 | E94: =OFFSET(FONTE!$A$2,I94,4,1) -> SINAPI | F94: 88316 | G94: =ROUND((D94*B94),2) -> 4.85 | I94: =MATCH(F94,FONTE!$A$4:$A$13466,0)-1 -> 11398 | J94: =OFFSET(FONTE!$A$4,I94,1,1) -> SERVENTE COM ENCARGOS COMPLEMENTARES
F95: ∑ | G95: =SUM(G91:G94) -> 201.91
A97: Descrição | F97: UN | G97: Cód. | I97: =MATCH(G98,ORÇAMENTO!G:G,0) -> 133
A98: ALARME DE EMERGÊNCIA AUDIOVISUAL (fornecimento e instalação) | F98: un | G98: CAC002 | I98: =IF((ISNA(I97)=TRUE),"","ESTÁ SENDO UTILIZADA") -> ESTÁ SENDO UTILIZADA
A99: Descrição | B99: Coefi. | C99: Uni. | D99: Valor uni. | E99: Fonte | F99: Cód. | G99: Valor | I99: Linha | J99: Nome original na fonte
A100: ALARME DE EMERGÊNCIA AUDIOVISUAL | B100: 1 | C100: un | D100: =OFFSET(FONTE!$A$4,I100,3,1) -> 450 | E100: =OFFSET(FONTE!$A$2,I100,4,1) -> Mercado | F100: MAC004 | G100: =ROUND((B100*D100),2) -> 450 | I100: =MATCH(F100,FONTE!$A$4:$A$13452,0)-1 -> 11793 | J100: =OFFSET(FONTE!$A$4,I100,1,1) -> Alarme de Emergência Audiovisual
A101: =J101 -> ELETRICISTA COM ENCARGOS COMPLEMENTARES | B101: 0.33 | C101: h | D101: =OFFSET(FONTE!$A$4,I101,3,1) -> 28.54 | E101: =OFFSET(FONTE!$A$2,I101,4,1) -> SINAPI | F101: 88264 | G101: =ROUND((B101*D101),2) -> 9.42 | I101: =MATCH(F101,FONTE!$A$4:$A$13452,0)-1 -> 11353 | J101: =OFFSET(FONTE!$A$4,I101,1,1) -> ELETRICISTA COM ENCARGOS COMPLEMENTARES
F102: ∑ | G102: =SUM(G98:G101) -> 459.42
A104: Descrição | F104: UN | G104: Cód. | I104: =MATCH(G105,ORÇAMENTO!G:G,0) -> 135
A105: BARRA DE APOIO ANGULAR, 60 CM, EM ACO INOX POLIDO (fornecimento e instalação) | F105: un | G105: CAC003 | I105: =IF((ISNA(I104)=TRUE),"","ESTÁ SENDO UTILIZADA") -> ESTÁ SENDO UTILIZADA
A106: Descrição | B106: Coefi. | C106: Uni. | D106: Valor uni. | E106: Fonte | F106: Cód. | G106: Valor | I106: Linha | J106: Nome original na fonte
A107: BARRA DE APOIO ANGULAR, 60 CM, EM ACO INOX POLIDO | B107: 1 | C107: un | D107: =OFFSET(FONTE!$A$4,I107,3,1) -> 253.39 | E107: =OFFSET(FONTE!$A$2,I107,4,1) -> SINAPI-I | F107: 36214 | G107: =ROUND((B107*D107),2) -> 253.39 | I107: =MATCH(F107,FONTE!$A$4:$A$13452,0)-1 -> 459 | J107: =OFFSET(FONTE!$A$4,I107,1,1) -> BARRA DE APOIO ANGULAR, 60 CM, EM ACO INOX POLIDO, DIAMETRO MINIMO 3 CM
A108: Parafuso em aço zincado e bucha de nylon sem aba s8 | B108: 8 | C108: un | D108: =OFFSET(FONTE!$A$4,I108,3,1) -> 0.41 | E108: =OFFSET(FONTE!$A$2,I108,4,1) -> SINAPI-I | F108: 7583 | G108: =ROUND((B108*D108),2) -> 3.28 | I108: =MATCH(F108,FONTE!$A$4:$A$13452,0)-1 -> 633 | J108: =OFFSET(FONTE!$A$4,I108,1,1) -> BUCHA DE NYLON SEM ABA S8, COM PARAFUSO DE 4,80 X 50 MM EM ACO ZINCADO COM ROSCA SOBERBA, CABECA CHATA E FENDA PHILLIPS
A109: SERVENTE COM ENCARGOS COMPLEMENTARES | B109: 0.5 | C109: H | D109: =OFFSET(FONTE!$A$4,I109,3,1) -> 16.16 | E109: =OFFSET(FONTE!$A$2,I109,4,1) -> SINAPI | F109: 88316 | G109: =ROUND((B109*D109),2) -> 8.08 | I109: =MATCH(F109,FONTE!$A$4:$A$13452,0)-1 -> 11398 | J109: =OFFSET(FONTE!$A$4,I109,1,1) -> SERVENTE COM ENCARGOS COMPLEMENTARES
F110: ∑ | G110: =SUM(G106:G109) -> 264.75
A112: Descrição | F112: UN | G112: Cód. | I112: =MATCH(G113,ORÇAMENTO!G:G,0) -> 136
A113: BARRA DE APOIO RETA, EM ALUMINIO, COMPRIMENTO 60CM OU MENOR (fornecimento e instalação) | F113: un | G113: CAC004 | I113: =IF((ISNA(I112)=TRUE),"","ESTÁ SENDO UTILIZADA") -> ESTÁ SENDO UTILIZADA
A114: Descrição | B114: Coefi. | C114: Uni. | D114: Valor uni. | E114: Fonte | F114: Cód. | G114: Valor | I114: Linha | J114: Nome original na fonte
A115: BARRA DE APOIO RETA, EM ALUMINIO, COMPRIMENTO 60CM | B115: 1 | C115: un | D115: =OFFSET(FONTE!$A$4,I115,3,1) -> 109.57 | E115: =OFFSET(FONTE!$A$2,I115,4,1) -> SINAPI-I | F115: 36218 | G115: =ROUND((B115*D115),2) -> 109.57 | I115: =MATCH(F115,FONTE!$A$4:$A$13452,0)-1 -> 469 | J115: =OFFSET(FONTE!$A$4,I115,1,1) -> BARRA DE APOIO RETA, EM ALUMINIO, COMPRIMENTO 60CM, DIAMETRO MINIMO 3 CM
A116: Parafuso em aço zincado e bucha de nylon sem aba s8 | B116: 8 | C116: un | D116: =OFFSET(FONTE!$A$4,I116,3,1) -> 0.41 | E116: =OFFSET(FONTE!$A$2,I116,4,1) -> SINAPI-I | F116: 7583 | G116: =ROUND((B116*D116),2) -> 3.28 | I116: =MATCH(F116,FONTE!$A$4:$A$13452,0)-1 -> 633 | J116: =OFFSET(FONTE!$A$4,I116,1,1) -> BUCHA DE NYLON SEM ABA S8, COM PARAFUSO DE 4,80 X 50 MM EM ACO ZINCADO COM ROSCA SOBERBA, CABECA CHATA E FENDA PHILLIPS
A117: SERVENTE COM ENCARGOS COMPLEMENTARES | B117: 0.5 | C117: H | D117: =OFFSET(FONTE!$A$4,I117,3,1) -> 16.16 | E117: =OFFSET(FONTE!$A$2,I117,4,1) -> SINAPI | F117: 88316 | G117: =ROUND((B117*D117),2) -> 8.08 | I117: =MATCH(F117,FONTE!$A$4:$A$13452,0)-1 -> 11398 | J117: =OFFSET(FONTE!$A$4,I117,1,1) -> SERVENTE COM ENCARGOS COMPLEMENTARES
F118: ∑ | G118: =SUM(G114:G117) -> 120.93
A120: Descrição | F120: UN | G120: Cód. | I120: =MATCH(G121,ORÇAMENTO!G:G,0) -> 137
A121: BARRA DE APOIO RETA, EM ALUMINIO, COMPRIMENTO 70CM (fornecimento e instalação) | F121: un | G121: CAC005 | I121: =IF((ISNA(I120)=TRUE),"","ESTÁ SENDO UTILIZADA") -> ESTÁ SENDO UTILIZADA
A122: Descrição | B122: Coefi. | C122: Uni. | D122: Valor uni. | E122: Fonte | F122: Cód. | G122: Valor | I122: Linha | J122: Nome original na fonte
A123: BARRA DE APOIO RETA, EM ALUMINIO, COMPRIMENTO 70CM | B123: 1 | C123: un | D123: =OFFSET(FONTE!$A$4,I123,3,1) -> 125.64 | E123: =OFFSET(FONTE!$A$2,I123,4,1) -> SINAPI-I | F123: 36220 | G123: =ROUND((B123*D123),2) -> 125.64 | I123: =MATCH(F123,FONTE!$A$4:$A$13452,0)-1 -> 470 | J123: =OFFSET(FONTE!$A$4,I123,1,1) -> BARRA DE APOIO RETA, EM ALUMINIO, COMPRIMENTO 70CM, DIAMETRO MINIMO 3 CM
A124: Parafuso em aço zincado e bucha de nylon sem aba s8 | B124: 8 | C124: un | D124: =OFFSET(FONTE!$A$4,I124,3,1) -> 0.41 | E124: =OFFSET(FONTE!$A$2,I124,4,1) -> SINAPI-I | F124: 7583 | G124: =ROUND((B124*D124),2) -> 3.28 | I124: =MATCH(F124,FONTE!$A$4:$A$13452,0)-1 -> 633 | J124: =OFFSET(FONTE!$A$4,I124,1,1) -> BUCHA DE NYLON SEM ABA S8, COM PARAFUSO DE 4,80 X 50 MM EM ACO ZINCADO COM ROSCA SOBERBA, CABECA CHATA E FENDA PHILLIPS
A125: SERVENTE COM ENCARGOS COMPLEMENTARES | B125: 0.5 | C125: H | D125: =OFFSET(FONTE!$A$4,I125,3,1) -> 16.16 | E125: =OFFSET(FONTE!$A$2,I125,4,1) -> SINAPI | F125: 88316 | G125: =ROUND((B125*D125),2) -> 8.08 | I125: =MATCH(F125,FONTE!$A$4:$A$13452,0)-1 -> 11398 | J125: =OFFSET(FONTE!$A$4,I125,1,1) -> SERVENTE COM ENCARGOS COMPLEMENTARES
F126: ∑ | G126: =SUM(G122:G125) -> 137
A128: Descrição | F128: UN | G128: Cód. | I128: =MATCH(G129,ORÇAMENTO!G:G,0) -> 138
A129: BARRA DE APOIO RETA, EM ALUMINIO, COMPRIMENTO 80CM (fornecimento e instalação) | F129: un | G129: CAC006 | I129: =IF((ISNA(I128)=TRUE),"","ESTÁ SENDO UTILIZADA") -> ESTÁ SENDO UTILIZADA
A130: Descrição | B130: Coefi. | C130: Uni. | D130: Valor uni. | E130: Fonte | F130: Cód. | G130: Valor | I130: Linha | J130: Nome original na fonte
A131: BARRA DE APOIO RETA, EM ALUMINIO, COMPRIMENTO 80CM | B131: 1 | C131: un | D131: =OFFSET(FONTE!$A$4,I131,3,1) -> 135.9 | E131: =OFFSET(FONTE!$A$2,I131,4,1) -> SINAPI-I | F131: 36080 | G131: =ROUND((B131*D131),2) -> 135.9 | I131: =MATCH(F131,FONTE!$A$4:$A$13452,0)-1 -> 471 | J131: =OFFSET(FONTE!$A$4,I131,1,1) -> BARRA DE APOIO RETA, EM ALUMINIO, COMPRIMENTO 80 CM, DIAMETRO MINIMO 3 CM
A132: Parafuso em aço zincado e bucha de nylon sem aba s8 | B132: 8 | C132: un | D132: =OFFSET(FONTE!$A$4,I132,3,1) -> 0.41 | E132: =OFFSET(FONTE!$A$2,I132,4,1) -> SINAPI-I | F132: 7583 | G132: =ROUND((B132*D132),2) -> 3.28 | I132: =MATCH(F132,FONTE!$A$4:$A$13452,0)-1 -> 633 | J132: =OFFSET(FONTE!$A$4,I132,1,1) -> BUCHA DE NYLON SEM ABA S8, COM PARAFUSO DE 4,80 X 50 MM EM ACO ZINCADO COM ROSCA SOBERBA, CABECA CHATA E FENDA PHILLIPS
A133: SERVENTE COM ENCARGOS COMPLEMENTARES | B133: 0.5 | C133: H | D133: =OFFSET(FONTE!$A$4,I133,3,1) -> 16.16 | E133: =OFFSET(FONTE!$A$2,I133,4,1) -> SINAPI | F133: 88316 | G133: =ROUND((B133*D133),2) -> 8.08 | I133: =MATCH(F133,FONTE!$A$4:$A$13452,0)-1 -> 11398 | J133: =OFFSET(FONTE!$A$4,I133,1,1) -> SERVENTE COM ENCARGOS COMPLEMENTARES
F134: ∑ | G134: =SUM(G130:G133) -> 147.26
A136: Descrição | F136: UN | G136: Cód. | I136: =MATCH(G137,ORÇAMENTO!G:G,0) -> 142
A137: TOALHEIRO PLÁSTICO TIPO DISPENSER PARA PAPEL TOALHA INTERFOLHADO (fornecimento e instalação) | F137: un | G137: CAC007 | I137: =IF((ISNA(I136)=TRUE),"","ESTÁ SENDO UTILIZADA") -> ESTÁ SENDO UTILIZADA
A138: Descrição | B138: Coefi. | C138: Uni. | D138: Valor uni. | E138: Fonte | F138: Cód. | G138: Valor | I138: Linha | J138: Nome original na fonte
A139: SERVENTE COM ENCARGOS COMPLEMENTARES | B139: 0.25 | C139: h | D139: =OFFSET(FONTE!$A$4,I139,3,1) -> 16.16 | E139: =OFFSET(FONTE!$A$2,I139,4,1) -> SINAPI | F139: 88316 | G139: =ROUND((D139*B139),2) -> 4.04 | I139: =MATCH(F139,FONTE!$A$4:$A$13466,0)-1 -> 11398 | J139: =OFFSET(FONTE!$A$4,I139,1,1) -> SERVENTE COM ENCARGOS COMPLEMENTARES
A140: =J140 -> TOALHEIRO PLASTICO TIPO DISPENSER PARA PAPEL TOALHA INTERFOLHADO | B140: 1 | C140: un | D140: =OFFSET(FONTE!$A$4,I140,3,1) -> 58.2 | E140: =OFFSET(FONTE!$A$2,I140,4,1) -> SINAPI-I | F140: 37401 | G140: =ROUND((D140*B140),2) -> 58.2 | I140: =MATCH(F140,FONTE!$A$4:$A$13466,0)-1 -> 4774 | J140: =OFFSET(FONTE!$A$4,I140,1,1) -> TOALHEIRO PLASTICO TIPO DISPENSER PARA PAPEL TOALHA INTERFOLHADO
F141: ∑ | G141: =SUM(G137:G140) -> 62.24
A143: Descrição | F143: UN | G143: Cód. | I143: =MATCH(G144,ORÇAMENTO!G:G,0) -> 143
A144: PAPELEIRA TIPO DISPENSER PARA PAPEL HIGIÊNICO PARA ROLO DE 300M (fornecimento e instalação) | F144: un | G144: CAC008 | I144: =IF((ISNA(I143)=TRUE),"","ESTÁ SENDO UTILIZADA") -> ESTÁ SENDO UTILIZADA
A145: Descrição | B145: Coefi. | C145: Uni. | D145: Valor uni. | E145: Fonte | F145: Cód. | G145: Valor | I145: Linha | J145: Nome original na fonte
A146: SERVENTE COM ENCARGOS COMPLEMENTARES | B146: 0.25 | C146: h | D146: =OFFSET(FONTE!$A$4,I146,3,1) -> 16.16 | E146: =OFFSET(FONTE!$A$2,I146,4,1) -> SINAPI | F146: 88316 | G146: =ROUND((D146*B146),2) -> 4.04 | I146: =MATCH(F146,FONTE!$A$4:$A$13466,0)-1 -> 11398 | J146: =OFFSET(FONTE!$A$4,I146,1,1) -> SERVENTE COM ENCARGOS COMPLEMENTARES
A147: =J147 -> PAPELEIRA PLASTICA TIPO DISPENSER PARA PAPEL HIGIENICO ROLAO | B147: 1 | C147: un | D147: =OFFSET(FONTE!$A$4,I147,3,1) -> 58.2 | E147: =OFFSET(FONTE!$A$2,I147,4,1) -> SINAPI-I | F147: 37400 | G147: =ROUND((D147*B147),2) -> 58.2 | I147: =MATCH(F147,FONTE!$A$4:$A$13466,0)-1 -> 3510 | J147: =OFFSET(FONTE!$A$4,I147,1,1) -> PAPELEIRA PLASTICA TIPO DISPENSER PARA PAPEL HIGIENICO ROLAO
F148: ∑ | G148: =SUM(G144:G147) -> 62.24
A150: Descrição | F150: UN | G150: Cód. | I150: =MATCH(G151,ORÇAMENTO!G:G,0) -> 144
A151: GANCHO PARA PENDURAR UTENSÍLIOS (fornecimento e instalação) | F151: un | G151: CAC009 | I151: =IF((ISNA(I150)=TRUE),"","ESTÁ SENDO UTILIZADA") -> ESTÁ SENDO UTILIZADA
A152: Descrição | B152: Coefi. | C152: Uni. | D152: Valor uni. | E152: Fonte | F152: Cód. | G152: Valor | I152: Linha | J152: Nome original na fonte
A153: =J153 -> CABIDE/GANCHO DE BANHEIRO SIMPLES EM METAL CROMADO | B153: 1 | C153: un | D153: =OFFSET(FONTE!$A$4,I153,3,1) -> 16.81 | E153: =OFFSET(FONTE!$A$2,I153,4,1) -> SINAPI-I | F153: 37399 | G153: =ROUND((B153*D153),2) -> 16.81 | I153: =MATCH(F153,FONTE!$A$4:$A$13452,0)-1 -> 757 | J153: =OFFSET(FONTE!$A$4,I153,1,1) -> CABIDE/GANCHO DE BANHEIRO SIMPLES EM METAL CROMADO
A154: SERVENTE COM ENCARGOS COMPLEMENTARES | B154: 0.33 | C154: h | D154: =OFFSET(FONTE!$A$4,I154,3,1) -> 16.16 | E154: =OFFSET(FONTE!$A$2,I154,4,1) -> SINAPI | F154: 88316 | G154: =ROUND((B154*D154),2) -> 5.33 | I154: =MATCH(F154,FONTE!$A$4:$A$13452,0)-1 -> 11398 | J154: =OFFSET(FONTE!$A$4,I154,1,1) -> SERVENTE COM ENCARGOS COMPLEMENTARES
F155: ∑ | G155: =SUM(G151:G154) -> 22.14
A157: Descrição | F157: UN | G157: Cód. | I157: =MATCH(G158,ORÇAMENTO!G:G,0) -> 145
A158: PORTA OBJETOS (fornecimento e instalação) | F158: un | G158: CAC010 | I158: =IF((ISNA(I157)=TRUE),"","ESTÁ SENDO UTILIZADA") -> ESTÁ SENDO UTILIZADA
A159: Descrição | B159: Coefi. | C159: Uni. | D159: Valor uni. | E159: Fonte | F159: Cód. | G159: Valor | I159: Linha | J159: Nome original na fonte
A160: =J160 -> CHAPA DE MDF BRANCO LISO 2 FACES, E = 25 MM, DE *2,75 X 1,85* M | B160: =0.3*0.3*PI()/2 -> 0.1413716694 | C160: un | D160: =OFFSET(FONTE!$A$4,I160,3,1) -> 42.31 | E160: =OFFSET(FONTE!$A$2,I160,4,1) -> SINAPI-I | F160: 34666 | G160: =ROUND((B160*D160),2) -> 5.98 | I160: =MATCH(F160,FONTE!$A$4:$A$13452,0)-1 -> 1238 | J160: =OFFSET(FONTE!$A$4,I160,1,1) -> CHAPA DE MDF BRANCO LISO 2 FACES, E = 25 MM, DE *2,75 X 1,85* M
A161: MÃO FRANCESA EM BARRA DE FERRO CHATO RETANGULAR 2" X 1/4", REFORÇADA, 30 X 25 CM | B161: 1 | C161: h | D161: =OFFSET(FONTE!$A$4,I161,3,1) -> 24.38 | E161: =OFFSET(FONTE!$A$2,I161,4,1) -> SINAPI | F161: 86958 | G161: =ROUND((B161*D161),2) -> 24.38 | I161: =MATCH(F161,FONTE!$A$4:$A$13452,0)-1 -> 11108 | J161: =OFFSET(FONTE!$A$4,I161,1,1) -> MÃO FRANCESA EM BARRA DE FERRO CHATO RETANGULAR 2" X 1/4", REFORÇADA, 30 X 25 CM
A162: AJUDANTE DE CARPINTEIRO COM ENCARGOS COMPLEMENTARES | B162: 0.5 | C162: h | D162: =OFFSET(FONTE!$A$4,I162,3,1) -> 23.56 | E162: =OFFSET(FONTE!$A$2,I162,4,1) -> SINAPI | F162: 88239 | G162: =ROUND((B162*D162),2) -> 11.78 | I162: =MATCH(F162,FONTE!$A$4:$A$13452,0)-1 -> 11330 | J162: =OFFSET(FONTE!$A$4,I162,1,1) -> AJUDANTE DE CARPINTEIRO COM ENCARGOS COMPLEMENTARES
A163: SERVENTE COM ENCARGOS COMPLEMENTARES | B163: 0.33 | C163: h | D163: =OFFSET(FONTE!$A$4,I163,3,1) -> 16.16 | E163: =OFFSET(FONTE!$A$2,I163,4,1) -> SINAPI | F163: 88316 | G163: =ROUND((B163*D163),2) -> 5.33 | I163: =MATCH(F163,FONTE!$A$4:$A$13452,0)-1 -> 11398 | J163: =OFFSET(FONTE!$A$4,I163,1,1) -> SERVENTE COM ENCARGOS COMPLEMENTARES
F164: ∑ | G164: =SUM(G158:G163) -> 47.47
A166: Descrição | F166: UN | G166: Cód. | I166: =MATCH(G167,ORÇAMENTO!G:G,0) -> 146
A167: LIXEIRA BASCULANTE DE PVC 12 LITROS (fornecimento e instalação) | F167: un | G167: CAC011 | I167: =IF((ISNA(I166)=TRUE),"","ESTÁ SENDO UTILIZADA") -> ESTÁ SENDO UTILIZADA
A168: Descrição | B168: Coefi. | C168: Uni. | D168: Valor uni. | E168: Fonte | F168: Cód. | G168: Valor | I168: Linha | J168: Nome original na fonte
A169: SERVENTE COM ENCARGOS COMPLEMENTARES | B169: 0.16 | C169: h | D169: =OFFSET(FONTE!$A$4,I169,3,1) -> 16.16 | E169: =OFFSET(FONTE!$A$2,I169,4,1) -> SINAPI | F169: 88316 | G169: =ROUND((D169*B169),2) -> 2.59 | I169: =MATCH(F169,FONTE!$A$4:$A$13452,0)-1 -> 11398 | J169: =OFFSET(FONTE!$A$4,I169,1,1) -> SERVENTE COM ENCARGOS COMPLEMENTARES
A170: LIXEIRA BASCULANTE DE PVC 12 LITROS | B170: 1 | C170: h | D170: =OFFSET(FONTE!$A$4,I170,3,1) -> 32 | E170: =OFFSET(FONTE!$A$2,I170,4,1) -> Mercado | F170: MED099 | G170: =ROUND((D170*B170),2) -> 32 | I170: =MATCH(F170,FONTE!$A$4:$A$13452,0)-1 -> 11641 | J170: =OFFSET(FONTE!$A$4,I170,1,1) -> Lixeira basculante de pvc 12 litros
F171: ∑ | G171: =SUM(G167:G170) -> 34.59
A173: Descrição | F173: UN | G173: Cód. | I173: =MATCH(G174,ORÇAMENTO!G:G,0) -> 147
A174: PLACA TÁTIL BRAILLE PARA SINALIZAÇÃO DE AMBIENTES (fornecimento e instalação) | F174: un | G174: CAC012 | I174: =IF((ISNA(I173)=TRUE),"","ESTÁ SENDO UTILIZADA") -> ESTÁ SENDO UTILIZADA
A175: Descrição | B175: Coefi. | C175: Uni. | D175: Valor uni. | E175: Fonte | F175: Cód. | G175: Valor | I175: Linha | J175: Nome original na fonte
A176: Placa tátil brailler para sinalização de ambientes, com fita dupla face | B176: 1 | C176: un | D176: =OFFSET(FONTE!$A$4,I176,3,1) -> 43.04 | E176: =OFFSET(FONTE!$A$2,I176,4,1) -> SINAPI-I | F176: 10851 | G176: =ROUND((B176*D176),2) -> 43.04 | I176: =MATCH(F176,FONTE!$A$4:$A$13452,0)-1 -> 3761 | J176: =OFFSET(FONTE!$A$4,I176,1,1) -> PLACA DE ACRILICO TRANSPARENTE ADESIVADA PARA SINALIZACAO DE PORTAS, BORDA POLIDA, DE *25 X 8*, E = 6 MM (NAO INCLUI ACESSORIOS PARA FIXACAO)
A177: SERVENTE COM ENCARGOS COMPLEMENTARES | B177: 0.16 | C177: h | D177: =OFFSET(FONTE!$A$4,I177,3,1) -> 16.16 | E177: =OFFSET(FONTE!$A$2,I177,4,1) -> SINAPI | F177: 88316 | G177: =ROUND((B177*D177),2) -> 2.59 | I177: =MATCH(F177,FONTE!$A$4:$A$13452,0)-1 -> 11398 | J177: =OFFSET(FONTE!$A$4,I177,1,1) -> SERVENTE COM ENCARGOS COMPLEMENTARES
F178: ∑ | G178: =SUM(G174:G177) -> 45.63
A180: Descrição | F180: UN | G180: Cód. | I180: =MATCH(G181,ORÇAMENTO!G:G,0) -> 148
A181: PLACA DE PROTEÇÃO DE IMPACTO NAS PORTAS (fornecimento e instalação) | F181: m2 | G181: CAC013 | I181: =IF((ISNA(I180)=TRUE),"","ESTÁ SENDO UTILIZADA") -> ESTÁ SENDO UTILIZADA
A182: Descrição | B182: Coefi. | C182: Uni. | D182: Valor uni. | E182: Fonte | F182: Cód. | G182: Valor | I182: Linha | J182: Nome original na fonte
A183: =J183 -> CHAPA DE ACO GALVANIZADA BITOLA GSG 20, E = 0,95 MM (7,60 KG/M2) | B183: 1 | C183: m2 | D183: =OFFSET(FONTE!$A$4,I183,3,1) -> 47.33 | E183: =OFFSET(FONTE!$A$2,I183,4,1) -> SINAPI-I | F183: 39630 | G183: =ROUND((B183*D183),2) -> 47.33 | I183: =MATCH(F183,FONTE!$A$4:$A$13452,0)-1 -> 1176 | J183: =OFFSET(FONTE!$A$4,I183,1,1) -> CHAPA DE ACO GALVANIZADA BITOLA GSG 20, E = 0,95 MM (7,60 KG/M2)
A184: SERVENTE COM ENCARGOS COMPLEMENTARES | B184: 0.33 | C184: h | D184: =OFFSET(FONTE!$A$4,I184,3,1) -> 16.16 | E184: =OFFSET(FONTE!$A$2,I184,4,1) -> SINAPI | F184: 88316 | G184: =ROUND((B184*D184),2) -> 5.33 | I184: =MATCH(F184,FONTE!$A$4:$A$13452,0)-1 -> 11398 | J184: =OFFSET(FONTE!$A$4,I184,1,1) -> SERVENTE COM ENCARGOS COMPLEMENTARES
A185: =J185 -> PARAFUSO DE ACO ZINCADO COM ROSCA SOBERBA, CABECA CHATA E FENDA SIMPLES, DIAMETRO 4,8 MM, COMPRIMENTO 45 MM | B185: 4 | C185: un | D185: =OFFSET(FONTE!$A$4,I185,3,1) -> 0.14 | E185: =OFFSET(FONTE!$A$2,I185,4,1) -> SINAPI-I | F185: 4356 | G185: 0.56 | I185: =MATCH(F185,FONTE!$A$4:$A$13452,0)-1 -> 3521 | J185: =OFFSET(FONTE!$A$4,I185,1,1) -> PARAFUSO DE ACO ZINCADO COM ROSCA SOBERBA, CABECA CHATA E FENDA SIMPLES, DIAMETRO 4,8 MM, COMPRIMENTO 45 MM
F186: ∑ | G186: =SUM(G183:G185) -> 53.22
A188: Descrição | F188: UN | G188: Cód. | I188: =MATCH(G189,ORÇAMENTO!G:G,0) -> 151
A189: BLOCO AUTONOMO COM INDICAÇÃO DE SAIDA | F189: un | G189: CPR001 | I189: =IF((ISNA(I188)=TRUE),"","ESTÁ SENDO UTILIZADA") -> ESTÁ SENDO UTILIZADA
A190: Descrição | B190: Coefi. | C190: Uni. | D190: Valor uni. | E190: Fonte | F190: Cód. | G190: Valor | I190: Linha | J190: Nome original na fonte
A191: =J191 -> BLOCO AUTÔNOMO COM INDICAÇÃO DE SAÍDA | B191: 1 | C191: un | D191: =OFFSET(FONTE!$A$8,I191,3,1) -> 69.905 | E191: =OFFSET(FONTE!$A$2,I191,4,1) -> Mercado | F191: MEL036 | G191: =ROUND((B191*D191),2) -> 69.91 | I191: =MATCH(F191,FONTE!$A$8:$A$14720,0)-1 -> 11682 | J191: =OFFSET(FONTE!$A$8,I191,1,1) -> BLOCO AUTÔNOMO COM INDICAÇÃO DE SAÍDA
A192: SERVENTE COM ENCARGOS COMPLEMENTARES | B192: 0.16 | C192: h | D192: =OFFSET(FONTE!$A$8,I192,3,1) -> 16.16 | E192: =OFFSET(FONTE!$A$2,I192,4,1) -> SINAPI | F192: 88316 | G192: =ROUND((B192*D192),2) -> 2.59 | I192: =MATCH(F192,FONTE!$A$8:$A$14720,0)-1 -> 11394 | J192: =OFFSET(FONTE!$A$8,I192,1,1) -> SERVENTE COM ENCARGOS COMPLEMENTARES
F193: ∑ | G193: =SUM(G191:G192) -> 72.5
A195: Descrição | F195: UN | G195: Cód. | I195: =MATCH(G196,ORÇAMENTO!G:G,0) -> 152
A196: PLACA INDICATIVA DE EXTINTOR DE INCÊNDIO, EM PVC 20x20cm | F196: un | G196: CPR003 | I196: =IF((ISNA(I195)=TRUE),"","ESTÁ SENDO UTILIZADA") -> ESTÁ SENDO UTILIZADA
A197: Descrição | B197: Coefi. | C197: Uni. | D197: Valor uni. | E197: Fonte | F197: Cód. | G197: Valor | I197: Linha | J197: Nome original na fonte
A198: =J198 -> BUCHA DE NYLON, DIAMETRO DO FURO 8 MM, COMPRIMENTO 40 MM, COM PARAFUSO DE ROSCA SOBERBA, CABECA CHATA, FENDA SIMPLES, 4,8 X 50 MM | B198: 2 | C198: un | D198: =OFFSET(FONTE!$A$4,I198,3,1) -> 0.34 | E198: =OFFSET(FONTE!$A$2,I198,4,1) -> SINAPI-I | F198: 4350 | G198: =ROUND((B198*D198),2) -> 0.68 | I198: =MATCH(F198,FONTE!$A$4:$A$13452,0)-1 -> 634 | J198: =OFFSET(FONTE!$A$4,I198,1,1) -> BUCHA DE NYLON, DIAMETRO DO FURO 8 MM, COMPRIMENTO 40 MM, COM PARAFUSO DE ROSCA SOBERBA, CABECA CHATA, FENDA SIMPLES, 4,8 X 50 MM
A199: =J199 -> PLACA DE SINALIZACAO EM CHAPA DE ALUMINIO COM PINTURA REFLETIVA, E = 2 MM | B199: =0.2*0.2 -> 0.04 | C199: m2 | D199: =OFFSET(FONTE!$A$4,I199,3,1) -> 691.2 | E199: =OFFSET(FONTE!$A$2,I199,4,1) -> SINAPI-I | F199: 34721 | G199: =ROUND((B199*D199),2) -> 27.65 | I199: =MATCH(F199,FONTE!$A$4:$A$13452,0)-1 -> 3776 | J199: =OFFSET(FONTE!$A$4,I199,1,1) -> PLACA DE SINALIZACAO EM CHAPA DE ALUMINIO COM PINTURA REFLETIVA, E = 2 MM
A200: SERVENTE COM ENCARGOS COMPLEMENTARES | B200: 0.16 | C200: h | D200: =OFFSET(FONTE!$A$4,I200,3,1) -> 16.16 | E200: =OFFSET(FONTE!$A$2,I200,4,1) -> SINAPI | F200: 88316 | G200: =ROUND((B200*D200),2) -> 2.59 | I200: =MATCH(F200,FONTE!$A$4:$A$13452,0)-1 -> 11398 | J200: =OFFSET(FONTE!$A$4,I200,1,1) -> SERVENTE COM ENCARGOS COMPLEMENTARES
F201: ∑ | G201: =SUM(G199:G200) -> 30.24
A203: Descrição | F203: UN | G203: Cód. | I203: =MATCH(G204,ORÇAMENTO!G:G,0) -> 159
A204: JANELA DE ALUMÍNIO BASCULANTE | F204: un | G204: CES001 | I204: =IF((ISNA(I203)=TRUE),"","ESTÁ SENDO UTILIZADA") -> ESTÁ SENDO UTILIZADA
A205: Descrição | B205: Coefi. | C205: Uni. | D205: Valor uni. | E205: Fonte | F205: Cód. | G205: Valor s/BDI | I205: Linha | J205: Nome original na fonte
A206: =J206 -> JANELA BASCULANTE EM ALUMINIO, 100 X 100 CM (A X L), ACABAMENTO ACET OU BRILHANTE, BATENTE/REQUADRO DE 3 A 14 CM, COM VIDRO, SEM GUARNICAO/ALIZAR | B206: 2.08 | C206: m2 | D206: =OFFSET(FONTE!$A$4,I206,3,1) -> 349.02 | E206: =OFFSET(FONTE!$A$2,I206,4,1) -> SINAPI-I | F206: 34379 | G206: =ROUND((B206*D206),2) -> 725.96 | I206: =MATCH(F206,FONTE!$A$4:$A$13452,0)-1 -> 2526 | J206: =OFFSET(FONTE!$A$4,I206,1,1) -> JANELA BASCULANTE EM ALUMINIO, 100 X 100 CM (A X L), ACABAMENTO ACET OU BRILHANTE, BATENTE/REQUADRO DE 3 A 14 CM, COM VIDRO, SEM GUARNICAO/ALIZAR
A207: =J207 -> PARAFUSO DE ACO ZINCADO COM ROSCA SOBERBA, CABECA CHATA E FENDA SIMPLES, DIAMETRO 4,2 MM, COMPRIMENTO * 32 * MM | B207: 24.4 | C207: un | D207: =OFFSET(FONTE!$A$4,I207,3,1) -> 0.1 | E207: =OFFSET(FONTE!$A$2,I207,4,1) -> SINAPI-I | F207: 4377 | G207: =ROUND((B207*D207),2) -> 2.44 | I207: =MATCH(F207,FONTE!$A$4:$A$13452,0)-1 -> 3520 | J207: =OFFSET(FONTE!$A$4,I207,1,1) -> PARAFUSO DE ACO ZINCADO COM ROSCA SOBERBA, CABECA CHATA E FENDA SIMPLES, DIAMETRO 4,2 MM, COMPRIMENTO * 32 * MM
A208: SILICONE ACETICO USO GERAL INCOLOR 280 G | B208: 1.2467 | C208: un | D208: =OFFSET(FONTE!$A$4,I208,3,1) -> 9.66 | E208: =OFFSET(FONTE!$A$2,I208,4,1) -> SINAPI-I | F208: 39961 | G208: =ROUND((B208*D208),2) -> 12.04 | I208: =MATCH(F208,FONTE!$A$4:$A$13452,0)-1 -> 4237 | J208: =OFFSET(FONTE!$A$4,I208,1,1) -> SILICONE ACETICO USO GERAL INCOLOR 280 G
A209: PEDREIRO COM ENCARGOS COMPLEMENTARES | B209: 1.05 | C209: h | D209: =OFFSET(FONTE!$A$4,I209,3,1) -> 21.71 | E209: =OFFSET(FONTE!$A$2,I209,4,1) -> SINAPI | F209: 88309 | G209: =ROUND((B209*D209),2) -> 22.8 | I209: =MATCH(F209,FONTE!$A$4:$A$13452,0)-1 -> 11391 | J209: =OFFSET(FONTE!$A$4,I209,1,1) -> PEDREIRO COM ENCARGOS COMPLEMENTARES
A210: SERVENTE COM ENCARGOS COMPLEMENTARES | B210: 0.853 | C210: h | D210: =OFFSET(FONTE!$A$4,I210,3,1) -> 16.16 | E210: =OFFSET(FONTE!$A$2,I210,4,1) -> SINAPI | F210: 88316 | G210: =ROUND((B210*D210),2) -> 13.78 | I210: =MATCH(F210,FONTE!$A$4:$A$13452,0)-1 -> 11398 | J210: =OFFSET(FONTE!$A$4,I210,1,1) -> SERVENTE COM ENCARGOS COMPLEMENTARES
F211: ∑ | G211: =SUM(G206:G210) -> 777.02
A213: Descrição | F213: UN | G213: Cód. | I213: =MATCH(G214,ORÇAMENTO!G:G,0) -> 164
A214: Porta - 2 Folhas de Abrir com Bandeira Fixa de 90cm - Madeira Maciça - 1,20 x 3,00 , c/ BATENTE, GUARNIÇÃO, VERNIZ E FERRAGENS (fornecimento e instalação) | F214: un | G214: CES008 | I214: =IF((ISNA(I213)=TRUE),"","ESTÁ SENDO UTILIZADA") -> ESTÁ SENDO UTILIZADA
A215: Descrição | B215: Coefi. | C215: Uni. | D215: Valor uni. | E215: Fonte | F215: Cód. | G215: Valor s/BDI | I215: Linha | J215: Nome original na fonte
A216: =J216 -> PORTA DE MADEIRA-DE-LEI TIPO MEXICANA SEM EMENDA (ANGELIM OU EQUIVALENTE REGIONAL), E = *3,5* CM | B216: =0.6*2.1*2 -> 2.52 | C216: un | D216: =OFFSET(FONTE!$A$4,I216,3,1) -> 371.44 | E216: =OFFSET(FONTE!$A$2,I216,4,1) -> SINAPI-I | F216: 4998 | G216: =ROUND((D216*B216),2) -> 936.03 | I216: =MATCH(F216,FONTE!$A$4:$A$13452,0)-1 -> 3849 | J216: =OFFSET(FONTE!$A$4,I216,1,1) -> PORTA DE MADEIRA-DE-LEI TIPO MEXICANA SEM EMENDA (ANGELIM OU EQUIVALENTE REGIONAL), E = *3,5* CM
A217: DOBRADICA EM ACO/FERRO, 3 1/2" X 3", E= 1,9 A 2 MM, COM ANEL, CROMADO OU ZINCADO, TAMPA BOLA, COM PARAFUSOS | B217: 6 | C217: un | D217: =OFFSET(FONTE!$A$4,I217,3,1) -> 25.65 | E217: =OFFSET(FONTE!$A$2,I217,4,1) -> SINAPI-I | F217: 2432 | G217: 153.9 | I217: =MATCH(F217,FONTE!$A$4:$A$13452,0)-1 -> 1964 | J217: =OFFSET(FONTE!$A$4,I217,1,1) -> DOBRADICA EM ACO/FERRO, 3 1/2" X 3", E= 1,9 A 2 MM, COM ANEL, CROMADO OU ZINCADO, TAMPA BOLA, COM PARAFUSOS
A218: PARAFUSO ROSCA SOBERBA ZINCADO CABECA CHATA FENDA SIMPLES 3,5 X 25 MM (1 ") | B218: =2*19.8 -> 39.6 | C218: un | D218: =OFFSET(FONTE!$A$4,I218,3,1) -> 0.04 | E218: =OFFSET(FONTE!$A$2,I218,4,1) -> SINAPI-I | F218: 11055 | G218: 1.58 | I218: =MATCH(F218,FONTE!$A$4:$A$13452,0)-1 -> 3558 | J218: =OFFSET(FONTE!$A$4,I218,1,1) -> PARAFUSO ROSCA SOBERBA ZINCADO CABECA CHATA FENDA SIMPLES 3,5 X 25 MM (1 ")
A219: CARPINTEIRO DE ESQUADRIA COM ENCARGOS COMPLEMENTARES | B219: =2*2.145 -> 4.29 | C219: un | D219: =OFFSET(FONTE!$A$4,I219,3,1) -> 24.53 | E219: =OFFSET(FONTE!$A$2,I219,4,1) -> SINAPI | F219: 88261 | G219: 105.23 | I219: =MATCH(F219,FONTE!$A$4:$A$13452,0)-1 -> 11350 | J219: =OFFSET(FONTE!$A$4,I219,1,1) -> CARPINTEIRO DE ESQUADRIA COM ENCARGOS COMPLEMENTARES
A220: SERVENTE COM ENCARGOS COMPLEMENTARES | B220: =2*1.073 -> 2.146 | C220: un | D220: =OFFSET(FONTE!$A$4,I220,3,1) -> 16.16 | E220: =OFFSET(FONTE!$A$2,I220,4,1) -> SINAPI | F220: 88316 | G220: 34.68 | I220: =MATCH(F220,FONTE!$A$4:$A$13452,0)-1 -> 11398 | J220: =OFFSET(FONTE!$A$4,I220,1,1) -> SERVENTE COM ENCARGOS COMPLEMENTARES
A221: ADUELA / MARCO / BATENTE PARA PORTA DE 60X210CM, FIXAÇÃO COM ARGAMASSA, PADRÃO MÉDIO - FORNECIMENTO E INSTALAÇÃO. AF_08/2015_P | B221: 1.5 | C221: un | D221: =OFFSET(FONTE!$A$4,I221,3,1) -> 240.88 | E221: =OFFSET(FONTE!$A$2,I221,4,1) -> SINAPI | F221: 90804 | G221: 361.32 | I221: =MATCH(F221,FONTE!$A$4:$A$13452,0)-1 -> 6940 | J221: =OFFSET(FONTE!$A$4,I221,1,1) -> ADUELA / MARCO / BATENTE PARA PORTA DE 60X210CM, FIXAÇÃO COM ARGAMASSA, PADRÃO MÉDIO - FORNECIMENTO E INSTALAÇÃO. AF_08/2015_P
A222: =J222 -> ALIZAR / GUARNIÇÃO DE 5X1,5CM PARA PORTA DE 60X210CM FIXADO COM PREGOS, PADRÃO MÉDIO - FORNECIMENTO E INSTALAÇÃO. AF_08/2015 | B222: 3 | C222: m2 | D222: =OFFSET(FONTE!$A$4,I222,3,1) -> 25.97 | E222: =OFFSET(FONTE!$A$2,I222,4,1) -> SINAPI | F222: 90826 | G222: 77.91 | I222: =MATCH(F222,FONTE!$A$4:$A$13452,0)-1 -> 6952 | J222: =OFFSET(FONTE!$A$4,I222,1,1) -> ALIZAR / GUARNIÇÃO DE 5X1,5CM PARA PORTA DE 60X210CM FIXADO COM PREGOS, PADRÃO MÉDIO - FORNECIMENTO E INSTALAÇÃO. AF_08/2015
A223: =J223 -> VERNIZ SINTETICO EM MADEIRA, DUAS DEMAOS | B223: =1.5*4.62 -> 6.93 | C223: m2 | D223: =OFFSET(FONTE!$A$4,I223,3,1) -> 20.66 | E223: =OFFSET(FONTE!$A$2,I223,4,1) -> SINAPI | F223: 40905 | G223: =ROUND((D223*B223),2) -> 143.17 | I223: =MATCH(F223,FONTE!$A$4:$A$13452,0)-1 -> 10372 | J223: =OFFSET(FONTE!$A$4,I223,1,1) -> VERNIZ SINTETICO EM MADEIRA, DUAS DEMAOS
A224: VIDRO TEMPERADO INCOLOR, ESPESSURA 10MM, FORNECIMENTO E INSTALACAO, INCLUSIVE MASSA PARA VEDACAO | B224: =1.2*0.9 -> 1.08 | C224: m2 | D224: =OFFSET(FONTE!$A$4,I224,3,1) -> 235.22 | E224: =OFFSET(FONTE!$A$2,I224,4,1) -> SINAPI | F224: 72120 | G224: 254.04 | I224: =MATCH(F224,FONTE!$A$4:$A$13452,0)-1 -> 7077 | J224: =OFFSET(FONTE!$A$4,I224,1,1) -> VIDRO TEMPERADO INCOLOR, ESPESSURA 10MM, FORNECIMENTO E INSTALACAO, INCLUSIVE MASSA PARA VEDACAO
F225: ∑ | G225: =SUM(G216:G224) -> 2067.86
A227: Descrição | F227: UN | G227: Cód. | I227: =MATCH(G228,ORÇAMENTO!G:G,0) -> 167
... 10 more rows

Sheet CRONOGRAMA
A14: VALORES EM REAIS
A15: ITEM | B15: DESCRIÇÃO | C15: TOTAL | D15: % | E15: 1º MÊS | F15: % | G15: 2º MÊS | H15: % | I15: 3º MÊS | J15: %
A17: =ORÇAMENTO!A13 -> 1 | B17: =ORÇAMENTO!B13 -> SERVIÇOS INICIAIS | C17: =ORÇAMENTO!F13 -> 1131.75 | D17: =C17*100/$C$32 -> 0.9750388336 | E17: =C17*F17/100 -> 1131.75 | F17: 100 | G17: =C17*H17/100 -> 0 | H17: 0 | I17: =C17*J17/100 -> 0 | J17: 0 | K17: =SUM(F17,H17,J17) -> 100
A18: =ORÇAMENTO!A15 -> 2 | B18: =ORÇAMENTO!B15 -> FECHAMENTOS | C18: =ORÇAMENTO!F15 -> 17501.12 | D18: 15.0777748 | E18: =C18*F18/100 -> 17501.12 | F18: 100 | G18: =C18*H18/100 -> 0 | H18: 0 | I18: =C18*J18/100 -> 0 | J18: 0 | K18: =SUM(F18,H18,J18) -> 100
A19: =ORÇAMENTO!A19 -> 3 | B19: =ORÇAMENTO!B19 -> FORRO | C19: =ORÇAMENTO!F19 -> 5547.29 | D19: 4.779167812 | E19: 2773.645 | F19: 50 | G19: 2773.645 | H19: 50 | I19: 0 | J19: 0 | K19: 100
A20: =ORÇAMENTO!A21 -> 4 | B20: =ORÇAMENTO!B21 -> REVESTIMENTOS | C20: =ORÇAMENTO!F21 -> 16227.86 | D20: 13.98082057 | E20: 3245.572 | F20: 20 | G20: 12982.288 | H20: 80 | I20: 0 | J20: 0 | K20: 100
A21: =ORÇAMENTO!A26 -> 5 | B21: =ORÇAMENTO!B26 -> PISO | C21: =ORÇAMENTO!F26 -> 20623.91 | D21: 17.76815829 | E21: 4124.782 | F21: 20 | G21: 12374.346 | H21: 60 | I21: 4124.782 | J21: 20 | K21: 100
A22: =ORÇAMENTO!A49 -> 6 | B22: =ORÇAMENTO!B49 -> INSTALAÇÕES ELÉTRICAS | C22: =ORÇAMENTO!F49 -> 15785.62 | D22: 13.59981667 | E22: 6314.248 | F22: 40 | G22: 7892.81 | H22: 50 | I22: 1578.562 | J22: 10 | K22: 100
A23: =ORÇAMENTO!A73 -> 7 | B23: =ORÇAMENTO!B73 -> INSTALAÇÃO DO SISTEMA DE ÁGUA FRIA | C23: =ORÇAMENTO!F73 -> 1673.18 | D23: 1.441498101 | E23: 836.59 | F23: 50 | G23: 669.272 | H23: 40 | I23: 167.318 | J23: 10 | K23: 100
A24: =ORÇAMENTO!A108 -> 8 | B24: =ORÇAMENTO!B108 -> REDE DE ESGOTO SANITÁRIO | C24: =ORÇAMENTO!F108 -> 1525.87 | D24: 1.314585823 | E24: =C24*F24/100 -> 762.935 | F24: 50 | G24: =C24*H24/100 -> 762.935 | H24: 50 | I24: =C24*J24/100 -> 0 | J24: 0 | K24: 100
A25: =ORÇAMENTO!A129 -> 9 | B25: =ORÇAMENTO!B129 -> INSTALAÇÃO DOS APARELHOS SANITÁRIOS E ACESSÓRIOS | C25: =ORÇAMENTO!F129 -> 6453.48 | D25: 5.559879489 | E25: =C25*F25/100 -> 0 | F25: 0 | G25: =C25*H25/100 -> 0 | H25: 0 | I25: =C25*J25/100 -> 6453.48 | J25: 100 | K25: 100
A26: =ORÇAMENTO!A149 -> 10 | B26: =ORÇAMENTO!B149 -> PREVENTIVO CONTRA INCÊNDIO | C26: =ORÇAMENTO!F149 -> 606.32 | D26: 0.5223640783 | E26: 0 | F26: 0 | G26: 0 | H26: 0 | I26: 606.32 | J26: 100 | K26: 100
A27: =ORÇAMENTO!A157 -> 11 | B27: =ORÇAMENTO!B157 -> ESQUADRIAS | C27: =ORÇAMENTO!F157 -> 21606.91 | D27: 18.61504424 | E27: 0 | F27: 0 | G27: 0 | H27: 0 | I27: 21606.91 | J27: 100 | K27: 100
A28: =ORÇAMENTO!A166 -> 12 | B28: =ORÇAMENTO!B166 -> COMPLEMENTAÇÕES | C28: =ORÇAMENTO!F166 -> 531.49 | D28: 0.4578956392 | E28: =C28*F28/100 -> 0 | F28: 0 | G28: =C28*H28/100 -> 0 | H28: 0 | I28: =C28*J28/100 -> 531.49 | J28: 100 | K28: 100
A29: =ORÇAMENTO!A168 -> 13 | B29: =ORÇAMENTO!B168 -> PINTURA | C29: =ORÇAMENTO!F168 -> 6418.5 | D29: 5.5297431 | E29: 0 | F29: 0 | G29: 0 | H29: 0 | I29: 6418.5 | J29: 100 | K29: 100
A30: =ORÇAMENTO!A172 -> 14 | B30: =ORÇAMENTO!B172 -> LIMPEZA DA OBRA | C30: =ORÇAMENTO!F172 -> 439 | D30: 0.3782125451 | E30: 0 | F30: 0 | G30: 0 | H30: 0 | I30: =C30*J30/100 -> 439 | J30: 100 | K30: 100
B32: SUBTOTAL | C32: =SUM(C17:C30) -> 116072.3 | D32: =SUM(D17:D30) -> 100 | E32: =SUM(E17:E31) -> 36690.642 | F32: =E32*100/$C$32 -> 31.61016194 | G32: =SUM(G17:G31) -> 37455.296 | H32: =G32*100/$C$32 -> 32.26893583 | I32: =SUM(I17:I31) -> 41926.362 | J32: =I32*100/$C$32 -> 36.12090223
B33: TOTAL ACUMULADO | E33: =E32 -> 36690.642 | F33: =F32 -> 31.61016194 | G33: =E33+G32 -> 74145.938 | H33: =F33+H32 -> 63.87909777 | I33: 116072.3 | J33: 100
C35: =ORÇAMENTO!F175 -> 116072.3
A223: 13.1
G511: COM003
G523: COM004
A525: =J525 -> 0 | B525: 32.25 | C525: m2
A526: =J526 -> 0 | B526: 3.23 | C526: m3
A527: 0 | B527: 70.95 | C527: kg
A528: 0 | B528: 3.23 | C528: m3
A529: 0 | B529: 2 | C529: un
A530: =J530 -> 0 | B530: 7.44 | C530: m2 | F530: COM003

Sheet COTAÇÃO DE MERCADO
A14: Abaixo segue uma lista com valores e nomes de fabricantes. Junto ao nome de cada fabricante há o contato deles e o CNPJ: Os valores referem-se ao produto posto no local da obra. Para a composição dos custos utilizou-se a Mediana do Mercado.
A15: Código utilizado | B15: Descrição | C15: Uni. | D15: Data da Pesquisa | E15: Empresas | F15: Valor orçado s/ BDI | G15: Valor orçado da Mediana s/ BDI
A17: MED112 | B17: =OFFSET(FONTE!$A$1,H17,1,1) -> Exaustor para Ventilação Mecânica para Banheiros | C17: =OFFSET(FONTE!$B$1,H17,1,1) -> un | D17: =OFFSET(FONTE!$A$1,H17,5,1) -> 2018-06-08 | E17: =OFFSET(FONTE!$A$1,H17,6,1) -> Nardelli Mat. Cons. - CNPJ: 75.862.961.0002-95 Fone: (47) 3525-6700 - 9 8814-6137 - 9 8886-2548 Contato: Vilando Vieira | F17: =OFFSET(FONTE!$A$1,H17,10,1) -> 200 | G17: =OFFSET(FONTE!$A$1,H17,3,1) -> 225 | H17: =MATCH(A17,FONTE!$A$1:$A$14165,0)-1 -> 11654
D18: =OFFSET(FONTE!$A$1,H18,5,1) -> 2018-06-08 | E18: =OFFSET(FONTE!$A$1,H18,11,1) -> Tonet Materiais de Construção -CNPJ: 80.653.918/0003-30 Fone:(47)- 3531-7400 - 9 8814-6137 - -Genesio Hasse | F18: =OFFSET(FONTE!$A$1,H18,15,1) -> 250 | H18: =MATCH(A17,FONTE!$A$1:$A$14165,0)-1 -> 11654
A20: MED099 | B20: =OFFSET(FONTE!$A$1,H20,1,1) -> Lixeira basculante de pvc 12 litros | C20: =OFFSET(FONTE!$B$1,H20,1,1) -> un. | D20: 2017-07-03 | E20: =OFFSET(FONTE!$A$1,H20,6,1) -> Nardelli Mat. Cons. - CNPJ: 75.862.961.0002-95 Fone: (47) 3525-6700 - 9 8814-6137 - 9 8886-2548 Contato: Vilando Vieira | F20: =OFFSET(FONTE!$A$1,H20,10,1) -> 32 | G20: =OFFSET(FONTE!$A$1,H20,3,1) -> 32 | H20: =MATCH(A20,FONTE!$A$1:$A$14165,0)-1 -> 11644
D21: 2017-07-03 | E21: =OFFSET(FONTE!$A$1,H21,11,1) -> Tonet Materiais de Construção -CNPJ: 80.653.918/0003-30 Fone:(47)- 3531-7400 - 9 8814-6137 - -Genesio Hasse | F21: =OFFSET(FONTE!$A$1,H21,15,1) -> 35 | H21: =MATCH(A20,FONTE!$A$1:$A$14165,0)-1 -> 11644
D22: 2017-07-03 | E22: =OFFSET(FONTE!$A$1,H22,16,1) -> Luxpoli Tintas - CNPJ: 83.482.034/0001-97 - Rio do Sul/SC - Tel.: (47) 3521-0018 | F22: =OFFSET(FONTE!$A$1,H22,20,1) -> 29.5 | H22: =MATCH(A20,FONTE!$A$1:$A$14165,0)-1 -> 11644
A24: MAC004 | B24: =OFFSET(FONTE!$A$1,H24,1,1) -> Alarme de Emergência Audiovisual | C24: =OFFSET(FONTE!$B$1,H24,1,1) -> un. | D24: 2017-07-03 | E24: =OFFSET(FONTE!$A$1,H24,6,1) -> Tatil inox acessibilidade (mundo tatil) - (11) 4343-7353 - Bragança Paulista- SP | F24: =OFFSET(FONTE!$A$1,H24,10,1) -> 435 | G24: =OFFSET(FONTE!$A$1,H24,3,1) -> 450 | H24: =MATCH(A24,FONTE!$A$1:$A$14165,0)-1 -> 11796
D25: 2017-07-03 | E25: =OFFSET(FONTE!$A$1,H25,11,1) -> Bralarmseg Equipamentos Eletrônicos Ltda (41) 3045-9744 | F25: =OFFSET(FONTE!$A$1,H25,15,1) -> 460 | H25: =MATCH(A24,FONTE!$A$1:$A$14165,0)-1 -> 11796
D26: 2017-07-03 | E26: =OFFSET(FONTE!$A$1,H26,16,1) -> Nardelli Mat. Cons. - CNPJ: 75.862.961.0002-95 Fone: (47) 3525-6700 - 9 8814-6137 - 9 8886-2548 Contato: Vilando Vieira | F26: =OFFSET(FONTE!$A$1,H26,20,1) -> 450 | H26: =MATCH(A24,FONTE!$A$1:$A$14165,0)-1 -> 11796
A28: MEL036 | B28: =OFFSET(FONTE!$A$1,H28,1,1) -> BLOCO AUTÔNOMO COM INDICAÇÃO DE SAÍDA | C28: un | D28: =OFFSET(FONTE!$A$1,H28,5,1) -> 2017-11-30 | E28: =OFFSET(FONTE!$A$1,H28,6,1) -> NEMA - CNPJ: 80.756.893/0001-39 Fone: (47) 3531-8700 / 9 8825-2978 Contato: Simone Budag Diel | F28: =OFFSET(FONTE!$A$1,H28,10,1) -> 68 | G28: =OFFSET(FONTE!$A$1,H28,3,1) -> 69.905 | H28: =MATCH(A28,FONTE!$A$1:$A$14165,0)-1 -> 11689
D29: =OFFSET(FONTE!$A$1,H29,5,1) -> 2017-11-30 | E29: =OFFSET(FONTE!$A$1,H29,11,1) -> Elétrica Bom Pastor - CNPJ-03.009.360.0001-18 Fone-(47)-3521 4249 | F29: =OFFSET(FONTE!$A$1,H29,15,1) -> 71.81 | H29: =MATCH(A28,FONTE!$A$1:$A$14165,0)-1 -> 11689
G148: COM003
G160: COM004
A162: =J162 -> 0 | B162: 32.25 | C162: m2
A163: =J163 -> 0 | B163: 3.23 | C163: m3
A164: 0 | B164: 70.95 | C164: kg
A165: 0 | B165: 3.23 | C165: m3
A166: 0 | B166: 2 | C166: un
A167: =J167 -> 0 | B167: 7.44 | C167: m2 | F167: COM003

Sheet BDI
B14: O valor do BDI é obtido pela fórmula e taxas abaixo
B16: FÓRMULA BDI
B19: BDI = | C19: (1+AC+S+R+G)(1+DF)(1+L) | D19: -1
C20: _______________________________________
C21: (1-I)
B24: ONDE:
B25: AC = Taxa de Administração Central | E25: 0.03
B26: S = Taxa de Seguros | E26: 0.004
B27: G = Taxa de Garantias | E27: 0.004
B28: R = Taxa de Riscos | E28: 0.0097
B29: DF = Taxa de Despesas Financeiras | E29: 0.0059
B30: L = Taxa de Lucro / Remuneração | E30: 0.066
B31: I = Taxa de Incidência de Impostos | E31: =D34 -> 0.0665
C32: I1: PIS e COFINS | D32: 0.0365
C33: I2: ISSQN (conforme legislação municipal) | D33: 0.03
C34: ∑ | D34: =SUM(D32:D33) -> 0.0665
B36: TEMOS ENTÃO ENTRANDO COM OS DADOS NA FÓRMULA
C38: =TRUNC(((((1+E25+E26+E27+E28)*(1+E29)*(1+E30))/(1-E31))-1),4) -> 0.2034
F505: COM003
F517: COM004
A519: 32.25 | B519: m2
A520: 3.23 | B520: m3
A521: 70.95 | B521: kg
A522: 3.23 | B522: m3
A523: 2 | B523: un
A524: 7.44 | B524: m2 | E524: COM003

Sheet FONTE
B2: SINAPI - ABRIL/2018 - SEM DESONERAÇÃO
A4: Código | B4: Descricao | C4: Unidade | D4: Preço Unitário | E4: Fonte
A6: INSUMOS
A8: 13532 | B8: !EM PROCESSO DE DESATIVACAO! VEICULO TIPO MINI FURGAO COM MOTOR ENTRE *1.4 A 1.6* FLEX, 2 PORTAS | C8: UN | D8: 50218.91 | E8: SINAPI-I
A9: 4757 | B9: !EM PROCESSO DE DESATIVACAO! ASFALTADOR | C9: H | D9: 18.89 | E9: SINAPI-I
A10: 12075 | B10: !EM PROCESSO DE DESATIVACAO! CAIXA P/ MEDICAO DE DEMANDA E ENERGIA REATIVA EM CHAPA 18 ESTAMPADA , PADRAO DE CONCESSIONARIA LOCAL | C10: UN | D10: 719.18 | E10: SINAPI-I
A11: 13617 | B11: !EM PROCESSO DE DESATIVACAO! CAMINHONETE CABINE SIMPLES COM MOTOR 1.6 FLEX, CAMBIO MANUAL, POTENCIA 101/104 CV, 2 PORTAS | C11: UN | D11: 45828.67 | E11: SINAPI-I
A12: 1159 | B12: !EM PROCESSO DE DESATIVACAO! CAMINHONETE COM MOTOR A DIESEL, POTENCIA 180 CV, CABINE DUPLA, 4X4 | C12: UN | D12: 150274.47 | E12: SINAPI-I
A13: 2404 | B13: !EM PROCESSO DE DESATIVACAO! DIVISORIA COLMEIA CEGA COM MONTANTE E RODAPE DE ALUMINIO ANODIZADO SIMPLES (SEM COLOCACAO) | C13: M2 | D13: 80 | E13: SINAPI-I
A14: 2720 | B14: !EM PROCESSO DE DESATIVACAO! ESCAVADEIRA DRAGA DE ARRASTE, CAP. 3/4 JC 140HP (INCL MANUTENCAO/OPERACAO) | C14: H | D14: 191.2 | E14: SINAPI-I
A15: 2719 | B15: !EM PROCESSO DE DESATIVACAO! ESCAVADEIRA HIDRAULICA SOBRE ESTEIRAS DE 99 HP, PESO OPERACIONAL DE *16* T E CAPACIDADE DE 0,85 A 1,00 M3 (LOCACAO COM OPERADOR, COMBUSTIVEL E MANUTENCAO) | C15: H | D15: 162 | E15: SINAPI-I
A16: 13382 | B16: !EM PROCESSO DE DESATIVACAO! LUMINARIA FECHADA P/ ILUMINACAO PUBLICA, TIPO ABL 50/F OU EQUIV, P/ LAMPADA A VAPOR DE MERCURIO 400W | C16: UN | D16: 179.61 | E16: SINAPI-I
A17: 20198 | B17: !EM PROCESSO DE DESATIVACAO! MADEIRA DE 1A. QUALIDADE (MADEIRA BRANCA), SERRADA E NAO APARELHADA, PARA FORMAS DE CONCRETO ARMADO | C17: M3 | D17: 520 | E17: SINAPI-I
A18: 4126 | B18: !EM PROCESSO DE DESATIVACAO! TERMINAL DE PORCELANA (MUFLA) UNIPOLAR, USO EXTERNO, TENSAO 3,6/6 KV, PARA CABO DE 10/16 MM2, COM ISOLAMENTO EPR | C18: UN | D18: 167.11 | E18: SINAPI-I
A19: 10615 | B19: !EM PROCESSO DE DESATIVACAO! VEICULO DE PASSEIO COM MOTOR 1.0 FLEX, POTENCIA 72/85 CV, 5 PORTAS, COR SOLIDA, BASICO | C19: UN | D19: 42650 | E19: SINAPI-I
A20: 13860 | B20: !EM PROCESSO DE DESATIVACAO! VEICULO DE PASSEIO COM MOTOR 1.6 FLEX, POTENCIA 101/104 CV, 4 PORTAS | C20: UN | D20: 46175.8 | E20: SINAPI-I
A21: 38605 | B21: ABERTURA PARA ENCAIXE DE CUBA OU LAVATORIO EM BANCADA DE MARMORE/ GRANITO OU OUTRO TIPO DE PEDRA NATURAL | C21: UN | D21: 106.61 | E21: SINAPI-I
A22: 11270 | B22: ABRACADEIRA DE LATAO PARA FIXACAO DE CABO PARA-RAIO, DIMENSOES 32 X 24 X 24 MM | C22: UN | D22: 1.41 | E22: SINAPI-I
A23: 412 | B23: ABRACADEIRA DE NYLON PARA AMARRACAO DE CABOS, COMPRIMENTO DE *230* X *7,6* MM | C23: UN | D23: 0.92 | E23: SINAPI-I
A24: 414 | B24: ABRACADEIRA DE NYLON PARA AMARRACAO DE CABOS, COMPRIMENTO DE 100 X 2,5 MM | C24: UN | D24: 0.05 | E24: SINAPI-I
A25: 410 | B25: ABRACADEIRA DE NYLON PARA AMARRACAO DE CABOS, COMPRIMENTO DE 150 X *3,6* MM | C25: UN | D25: 0.14 | E25: SINAPI-I
A26: 411 | B26: ABRACADEIRA DE NYLON PARA AMARRACAO DE CABOS, COMPRIMENTO DE 200 X *4,6* MM | C26: UN | D26: 0.18 | E26: SINAPI-I
A27: 408 | B27: ABRACADEIRA DE NYLON PARA AMARRACAO DE CABOS, COMPRIMENTO DE 390 X *4,6* MM | C27: UN | D27: 0.89 | E27: SINAPI-I
A28: 39131 | B28: ABRACADEIRA EM ACO PARA AMARRACAO DE ELETRODUTOS, TIPO D, COM 1 1/2" E CUNHA DE FIXACAO | C28: UN | D28: 1.02 | E28: SINAPI-I
A29: 394 | B29: ABRACADEIRA EM ACO PARA AMARRACAO DE ELETRODUTOS, TIPO D, COM 1 1/2" E PARAFUSO DE FIXACAO | C29: UN | D29: 1.03 | E29: SINAPI-I
A30: 39130 | B30: ABRACADEIRA EM ACO PARA AMARRACAO DE ELETRODUTOS, TIPO D, COM 1 1/4" E CUNHA DE FIXACAO | C30: UN | D30: 0.93 | E30: SINAPI-I
A31: 395 | B31: ABRACADEIRA EM ACO PARA AMARRACAO DE ELETRODUTOS, TIPO D, COM 1 1/4" E PARAFUSO DE FIXACAO | C31: UN | D31: 0.99 | E31: SINAPI-I
A32: 39127 | B32: ABRACADEIRA EM ACO PARA AMARRACAO DE ELETRODUTOS, TIPO D, COM 1/2" E CUNHA DE FIXACAO | C32: UN | D32: 0.49 | E32: SINAPI-I
A33: 392 | B33: ABRACADEIRA EM ACO PARA AMARRACAO DE ELETRODUTOS, TIPO D, COM 1/2" E PARAFUSO DE FIXACAO | C33: UN | D33: 0.5 | E33: SINAPI-I
A34: 39129 | B34: ABRACADEIRA EM ACO PARA AMARRACAO DE ELETRODUTOS, TIPO D, COM 1" E CUNHA DE FIXACAO | C34: UN | D34: 0.57 | E34: SINAPI-I
A35: 393 | B35: ABRACADEIRA EM ACO PARA AMARRACAO DE ELETRODUTOS, TIPO D, COM 1" E PARAFUSO DE FIXACAO | C35: UN | D35: 0.6 | E35: SINAPI-I
A36: 39133 | B36: ABRACADEIRA EM ACO PARA AMARRACAO DE ELETRODUTOS, TIPO D, COM 2 1/2" E CUNHA DE FIXACAO | C36: UN | D36: 1.34 | E36: SINAPI-I
A37: 397 | B37: ABRACADEIRA EM ACO PARA AMARRACAO DE ELETRODUTOS, TIPO D, COM 2 1/2" E PARAFUSO DE FIXACAO | C37: UN | D37: 1.48 | E37: SINAPI-I
A38: 39132 | B38: ABRACADEIRA EM ACO PARA AMARRACAO DE ELETRODUTOS, TIPO D, COM 2" E CUNHA DE FIXACAO | C38: UN | D38: 1.07 | E38: SINAPI-I
A39: 396 | B39: ABRACADEIRA EM ACO PARA AMARRACAO DE ELETRODUTOS, TIPO D, COM 2" E PARAFUSO DE FIXACAO | C39: UN | D39: 1.14 | E39: SINAPI-I
A40: 39135 | B40: ABRACADEIRA EM ACO PARA AMARRACAO DE ELETRODUTOS, TIPO D, COM 3 1/2" E CUNHA DE FIXACAO | C40: UN | D40: 2.14 | E40: SINAPI-I
A41: 39128 | B41: ABRACADEIRA EM ACO PARA AMARRACAO DE ELETRODUTOS, TIPO D, COM 3/4" E CUNHA DE FIXACAO | C41: UN | D41: 0.53 | E41: SINAPI-I
A42: 400 | B42: ABRACADEIRA EM ACO PARA AMARRACAO DE ELETRODUTOS, TIPO D, COM 3/4" E PARAFUSO DE FIXACAO | C42: UN | D42: 0.52 | E42: SINAPI-I
A43: 39125 | B43: ABRACADEIRA EM ACO PARA AMARRACAO DE ELETRODUTOS, TIPO D, COM 3/8" E PARAFUSO DE FIXACAO | C43: UN | D43: 0.53 | E43: SINAPI-I
A44: 39134 | B44: ABRACADEIRA EM ACO PARA AMARRACAO DE ELETRODUTOS, TIPO D, COM 3" E CUNHA DE FIXACAO | C44: UN | D44: 1.78 | E44: SINAPI-I
A45: 398 | B45: ABRACADEIRA EM ACO PARA AMARRACAO DE ELETRODUTOS, TIPO D, COM 3" E PARAFUSO DE FIXACAO | C45: UN | D45: 1.64 | E45: SINAPI-I
A46: 39126 | B46: ABRACADEIRA EM ACO PARA AMARRACAO DE ELETRODUTOS, TIPO D, COM 4" E CUNHA DE FIXACAO | C46: UN | D46: 2.41 | E46: SINAPI-I
A47: 399 | B47: ABRACADEIRA EM ACO PARA AMARRACAO DE ELETRODUTOS, TIPO D, COM 4" E PARAFUSO DE FIXACAO | C47: UN | D47: 2.12 | E47: SINAPI-I
A48: 39158 | B48: ABRACADEIRA EM ACO PARA AMARRACAO DE ELETRODUTOS, TIPO ECONOMICA (GOTA), COM 8" | C48: UN | D48: 5.7 | E48: SINAPI-I
A49: 39141 | B49: ABRACADEIRA EM ACO PARA AMARRACAO DE ELETRODUTOS, TIPO U SIMPLES, COM 1 1/2" | C49: UN | D49: 0.41 | E49: SINAPI-I
A50: 39140 | B50: ABRACADEIRA EM ACO PARA AMARRACAO DE ELETRODUTOS, TIPO U SIMPLES, COM 1 1/4" | C50: UN | D50: 0.37 | E50: SINAPI-I
A51: 39137 | B51: ABRACADEIRA EM ACO PARA AMARRACAO DE ELETRODUTOS, TIPO U SIMPLES, COM 1/2" | C51: UN | D51: 0.21 | E51: SINAPI-I
A52: 39139 | B52: ABRACADEIRA EM ACO PARA AMARRACAO DE ELETRODUTOS, TIPO U SIMPLES, COM 1" | C52: UN | D52: 0.31 | E52: SINAPI-I
A53: 39143 | B53: ABRACADEIRA EM ACO PARA AMARRACAO DE ELETRODUTOS, TIPO U SIMPLES, COM 2 1/2" | C53: UN | D53: 0.85 | E53: SINAPI-I
A54: 39142 | B54: ABRACADEIRA EM ACO PARA AMARRACAO DE ELETRODUTOS, TIPO U SIMPLES, COM 2" | C54: UN | D54: 0.61 | E54: SINAPI-I
A55: 39138 | B55: ABRACADEIRA EM ACO PARA AMARRACAO DE ELETRODUTOS, TIPO U SIMPLES, COM 3/4" | C55: UN | D55: 0.22 | E55: SINAPI-I
A56: 39136 | B56: ABRACADEIRA EM ACO PARA AMARRACAO DE ELETRODUTOS, TIPO U SIMPLES, COM 3/8" | C56: UN | D56: 0.15 | E56: SINAPI-I
A57: 39144 | B57: ABRACADEIRA EM ACO PARA AMARRACAO DE ELETRODUTOS, TIPO U SIMPLES, COM 3" | C57: UN | D57: 0.99 | E57: SINAPI-I
A58: 39145 | B58: ABRACADEIRA EM ACO PARA AMARRACAO DE ELETRODUTOS, TIPO U SIMPLES, COM 4" | C58: UN | D58: 1.64 | E58: SINAPI-I
A59: 12615 | B59: ABRACADEIRA PVC, PARA CALHA PLUVIAL, DIAMETRO ENTRE 80 E 100 MM, PARA DRENAGEM PREDIAL | C59: UN | D59: 2.82 | E59: SINAPI-I
A60: 11927 | B60: ABRACADEIRA, GALVANIZADA/ZINCADA, ROSCA SEM FIM, PARAFUSO INOX, LARGURA FITA *12,6 A *14 MM, D = 2" A 2 1/2" | C60: UN | D60: 4.22 | E60: SINAPI-I
A61: 11928 | B61: ABRACADEIRA, GALVANIZADA/ZINCADA, ROSCA SEM FIM, PARAFUSO INOX, LARGURA FITA *12,6 A *14 MM, D = 3" A 3 3/4" | C61: UN | D61: 4.84 | E61: SINAPI-I
A62: 11929 | B62: ABRACADEIRA, GALVANIZADA/ZINCADA, ROSCA SEM FIM, PARAFUSO INOX, LARGURA FITA *12,6 A *14 MM, D = 4" A 4 3/4" | C62: UN | D62: 7.49 | E62: SINAPI-I
A63: 36801 | B63: ACABAMENTO CROMADO PARA REGISTRO PEQUENO, 1/2 " OU 3/4 " | C63: UN | D63: 21.42 | E63: SINAPI-I
A64: 36246 | B64: ACABAMENTO SIMPLES/CONVENCIONAL PARA FORRO PVC, TIPO "U" OU "C", COR BRANCA, COMPRIMENTO 6 M | C64: M | D64: 2.36 | E64: SINAPI-I
A65: 37600 | B65: ACESSORIO DE LIGACAO NAO ELETRICO PARA CARGAS EXPLOSIVAS, TUBO DE 6 M | C65: UN | D65: 47.99 | E65: SINAPI-I
A66: 37599 | B66: ACESSORIO INICIADOR NAO ELETRICO, TUBO DE 6 M, TEMPO DE RETARDO DE *160* MS | C66: UN | D66: 44.66 | E66: SINAPI-I
A67: 1 | B67: ACETILENO (RECARGA PARA CILINDRO DE CONJUNTO OXICORTE GRANDE) | C67: KG | D67: 45 | E67: SINAPI-I
A68: 3 | B68: ACIDO MURIATICO, DILUICAO 10% A 12% PARA USO EM LIMPEZA | C68: L | D68: 2.93 | E68: SINAPI-I
A69: 26 | B69: ACO CA-25, 10,0 MM, VERGALHAO | C69: KG | D69: 4.15 | E69: SINAPI-I
A70: 20 | B70: ACO CA-25, 12,5 MM, VERGALHAO | C70: KG | D70: 4.18 | E70: SINAPI-I
A71: 21 | B71: ACO CA-25, 16,0 MM, VERGALHAO | C71: KG | D71: 4.18 | E71: SINAPI-I
A72: 24 | B72: ACO CA-25, 20,0 MM, VERGALHAO | C72: KG | D72: 4.18 | E72: SINAPI-I
A73: 25 | B73: ACO CA-25, 25,0 MM, VERGALHAO | C73: KG | D73: 4.18 | E73: SINAPI-I
A74: 34341 | B74: ACO CA-25, 32,0 MM, VERGALHAO | C74: KG | D74: 3.93 | E74: SINAPI-I
A75: 22 | B75: ACO CA-25, 6,3 MM, VERGALHAO | C75: KG | D75: 4.47 | E75: SINAPI-I
A76: 23 | B76: ACO CA-25, 8,0 MM, VERGALHAO | C76: KG | D76: 4.43 | E76: SINAPI-I
A77: 34439 | B77: ACO CA-50, 10,0 MM, DOBRADO E CORTADO | C77: KG | D77: 5.12 | E77: SINAPI-I
A78: 34 | B78: ACO CA-50, 10,0 MM, VERGALHAO | C78: KG | D78: 4.55 | E78: SINAPI-I
A79: 34441 | B79: ACO CA-50, 12,5 MM, DOBRADO E CORTADO | C79: KG | D79: 4.85 | E79: SINAPI-I
A80: 31 | B80: ACO CA-50, 12,5 MM, VERGALHAO | C80: KG | D80: 4.33 | E80: SINAPI-I
A81: 34443 | B81: ACO CA-50, 16 MM, DOBRADO E CORTADO | C81: KG | D81: 4.85 | E81: SINAPI-I
A82: 27 | B82: ACO CA-50, 16,0 MM, VERGALHAO | C82: KG | D82: 4.33 | E82: SINAPI-I
A83: 34446 | B83: ACO CA-50, 20 MM, DOBRADO E CORTADO | C83: KG | D83: 4.85 | E83: SINAPI-I
A84: 29 | B84: ACO CA-50, 20,0 MM, VERGALHAO | C84: KG | D84: 4.05 | E84: SINAPI-I
A85: 28 | B85: ACO CA-50, 25,0 MM, VERGALHAO | C85: KG | D85: 4.68 | E85: SINAPI-I
A86: 34449 | B86: ACO CA-50, 6,3 MM, DOBRADO E CORTADO | C86: KG | D86: 5.34 | E86: SINAPI-I
A87: 32 | B87: ACO CA-50, 6,3 MM, VERGALHAO | C87: KG | D87: 4.76 | E87: SINAPI-I
A88: 33 | B88: ACO CA-50, 8,0 MM, VERGALHAO | C88: KG | D88: 5.35 | E88: SINAPI-I
A89: 34343 | B89: ACO CA-60, VERGALHAO, 9,5 MM | C89: KG | D89: 5.14 | E89: SINAPI-I
A90: 34452 | B90: ACO CA-60, 4,2 MM, DOBRADO E CORTADO | C90: KG | D90: 4.73 | E90: SINAPI-I
A91: 36 | B91: ACO CA-60, 4,2 MM, VERGALHAO | C91: KG | D91: 4.51 | E91: SINAPI-I
A92: 34456 | B92: ACO CA-60, 5,0 MM, DOBRADO E CORTADO | C92: KG | D92: 4.73 | E92: SINAPI-I
A93: 39 | B93: ACO CA-60, 5,0 MM, VERGALHAO | C93: KG | D93: 4.51 | E93: SINAPI-I
A94: 34457 | B94: ACO CA-60, 6,0 MM, DOBRADO E CORTADO | C94: KG | D94: 5.08 | E94: SINAPI-I
A95: 40 | B95: ACO CA-60, 6,0 MM, VERGALHAO | C95: KG | D95: 4.61 | E95: SINAPI-I
A96: 34460 | B96: ACO CA-60, 7,0 MM, DOBRADO E CORTADO | C96: KG | D96: 5.18 | E96: SINAPI-I
A97: 42 | B97: ACO CA-60, 7,0 MM, VERGALHAO | C97: KG | D97: 4.68 | E97: SINAPI-I
A98: 38 | B98: ACO CA-60, 8,0 MM, VERGALHAO | C98: KG | D98: 5.22 | E98: SINAPI-I
A99: 34344 | B99: ACO-FIO PARA PROTENSAO, CP-150 RB L, 8 MM | C99: KG | D99: 7.09 | E99: SINAPI-I
A100: 20063 | B100: ACOPLAMENTO DE CONDUTOR PLUVIAL, EM PVC, DIAMETRO ENTRE 80 E 100 MM, PARA DRENAGEM PREDIAL | C100: UN | D100: 2.81 | E100: SINAPI-I
A101: 40410 | B101: ACOPLAMENTO RIGIDO EM FERRO FUNDIDO PARA SISTEMA DE TUBULACAO RANHURADA, DN 50 MM (2") | C101: UN | D101: 16.98 | E101: SINAPI-I
A102: 40411 | B102: ACOPLAMENTO RIGIDO EM FERRO FUNDIDO PARA SISTEMA DE TUBULACAO RANHURADA, DN 65 MM (2 1/2") | C102: UN | D102: 18.42 | E102: SINAPI-I
A103: 40412 | B103: ACOPLAMENTO RIGIDO EMFERRO FUNDIDO PARA SISTEMA DE TUBULACAO RANHURADA, DN 80 MM (3") | C103: UN | D103: 20.68 | E103: SINAPI-I
A104: 38838 | B104: ADAPTADOR DE COBRE PARA TUBULACAO PEX, DN 16 X 15 MM | C104: UN | D104: 6.34 | E104: SINAPI-I
A105: 38839 | B105: ADAPTADOR DE COBRE PARA TUBULACAO PEX, DN 20 X 22 MM | C105: UN | D105: 7.46 | E105: SINAPI-I
A106: 55 | B106: ADAPTADOR DE COMPRESSAO EM POLIPROPILENO (PP), PARA TUBO EM PEAD, 20 MM X 1/2", PARA LIGACAO PREDIAL DE AGUA (NTS 179) | C106: UN | D106: 3.12 | E106: SINAPI-I
A107: 61 | B107: ADAPTADOR DE COMPRESSAO EM POLIPROPILENO (PP), PARA TUBO EM PEAD, 20 MM X 3/4", PARA LIGACAO PREDIAL DE AGUA (NTS 179) | C107: UN | D107: 2.95 | E107: SINAPI-I
A108: 62 | B108: ADAPTADOR DE COMPRESSAO EM POLIPROPILENO (PP), PARA TUBO EM PEAD, 32 MM X 1", PARA LIGACAO PREDIAL DE AGUA (NTS 179) | C108: UN | D108: 6.11 | E108: SINAPI-I
A109: 77 | B109: ADAPTADOR PVC PARA SIFAO METALICO, SOLDAVEL, COM ANEL BORRACHA (JE), 40 MM X 1 1/2" | C109: UN | D109: 2.79 | E109: SINAPI-I
A110: 76 | B110: ADAPTADOR PVC PARA SIFAO, ROSCAVEL, 40 MM X 1 1/4" | C110: UN | D110: 0.54 | E110: SINAPI-I
A111: 67 | B111: ADAPTADOR PVC ROSCAVEL, COM FLANGES E ANEL DE VEDACAO, 1/2", PARA CAIXA D' AGUA | C111: UN | D111: 6.08 | E111: SINAPI-I
A112: 71 | B112: ADAPTADOR PVC ROSCAVEL, COM FLANGES E ANEL DE VEDACAO, 1", PARA CAIXA D' AGUA | C112: UN | D112: 10.7 | E112: SINAPI-I
A113: 73 | B113: ADAPTADOR PVC ROSCAVEL, COM FLANGES E ANEL DE VEDACAO, 3/4", PARA CAIXA D' AGUA | C113: UN | D113: 7.69 | E113: SINAPI-I
A114: 103 | B114: ADAPTADOR PVC SOLDAVEL CURTO COM BOLSA E ROSCA, 110 MM X 4", PARA AGUA FRIA | C114: UN | D114: 26.6 | E114: SINAPI-I
A115: 107 | B115: ADAPTADOR PVC SOLDAVEL CURTO COM BOLSA E ROSCA, 20 MM X 1/2", PARA AGUA FRIA | C115: UN | D115: 0.5 | E115: SINAPI-I
A116: 65 | B116: ADAPTADOR PVC SOLDAVEL CURTO COM BOLSA E ROSCA, 25 MM X 3/4", PARA AGUA FRIA | C116: UN | D116: 0.57 | E116: SINAPI-I
A117: 108 | B117: ADAPTADOR PVC SOLDAVEL CURTO COM BOLSA E ROSCA, 32 MM X 1", PARA AGUA FRIA | C117: UN | D117: 1.12 | E117: SINAPI-I
A118: 110 | B118: ADAPTADOR PVC SOLDAVEL CURTO COM BOLSA E ROSCA, 40 MM X 1 1/2", PARA AGUA FRIA | C118: UN | D118: 2.66 | E118: SINAPI-I
A119: 109 | B119: ADAPTADOR PVC SOLDAVEL CURTO COM BOLSA E ROSCA, 40 MM X 1 1/4", PARA AGUA FRIA | C119: UN | D119: 2.03 | E119: SINAPI-I
A120: 111 | B120: ADAPTADOR PVC SOLDAVEL CURTO COM BOLSA E ROSCA, 50 MM X 1 1/4", PARA AGUA FRIA | C120: UN | D120: 4.62 | E120: SINAPI-I
A121: 112 | B121: ADAPTADOR PVC SOLDAVEL CURTO COM BOLSA E ROSCA, 50 MM X1 1/2", PARA AGUA FRIA | C121: UN | D121: 2.5 | E121: SINAPI-I
A122: 113 | B122: ADAPTADOR PVC SOLDAVEL CURTO COM BOLSA E ROSCA, 60 MM X 2", PARA AGUA FRIA | C122: UN | D122: 6.37 | E122: SINAPI-I
A123: 104 | B123: ADAPTADOR PVC SOLDAVEL CURTO COM BOLSA E ROSCA, 75 MM X 2 1/2", PARA AGUA FRIA | C123: UN | D123: 10.99 | E123: SINAPI-I
A124: 102 | B124: ADAPTADOR PVC SOLDAVEL CURTO COM BOLSA E ROSCA, 85 MM X 3", PARA AGUA FRIA | C124: UN | D124: 16.51 | E124: SINAPI-I
A125: 95 | B125: ADAPTADOR PVC SOLDAVEL, COM FLANGE E ANEL DE VEDACAO, 20 MM X 1/2", PARA CAIXA D'AGUA | C125: UN | D125: 6.98 | E125: SINAPI-I
A126: 96 | B126: ADAPTADOR PVC SOLDAVEL, COM FLANGE E ANEL DE VEDACAO, 25 MM X 3/4", PARA CAIXA D'AGUA | C126: UN | D126: 9.03 | E126: SINAPI-I
A127: 97 | B127: ADAPTADOR PVC SOLDAVEL, COM FLANGE E ANEL DE VEDACAO, 32 MM X 1", PARA CAIXA D'AGUA | C127: UN | D127: 11.37 | E127: SINAPI-I
A128: 98 | B128: ADAPTADOR PVC SOLDAVEL, COM FLANGE E ANEL DE VEDACAO, 40 MM X 1 1/4", PARA CAIXA D'AGUA | C128: UN | D128: 18.45 | E128: SINAPI-I
A129: 99 | B129: ADAPTADOR PVC SOLDAVEL, COM FLANGE E ANEL DE VEDACAO, 50 MM X 1 1/2", PARA CAIXA D'AGUA | C129: UN | D129: 21.28 | E129: SINAPI-I
A130: 100 | B130: ADAPTADOR PVC SOLDAVEL, COM FLANGES E ANEL DE VEDACAO, 60 MM X 2", PARA CAIXA D' AGUA | C130: UN | D130: 25.88 | E130: SINAPI-I
A131: 75 | B131: ADAPTADOR PVC SOLDAVEL, COM FLANGES LIVRES, 110 MM X 4", PARA CAIXA D' AGUA | C131: UN | D131: 194.12 | E131: SINAPI-I
A132: 114 | B132: ADAPTADOR PVC SOLDAVEL, COM FLANGES LIVRES, 25 MM X 3/4", PARA CAIXA D' AGUA | C132: UN | D132: 7.66 | E132: SINAPI-I
A133: 68 | B133: ADAPTADOR PVC SOLDAVEL, COM FLANGES LIVRES, 32 MM X 1", PARA CAIXA D' AGUA | C133: UN | D133: 10.27 | E133: SINAPI-I
A134: 86 | B134: ADAPTADOR PVC SOLDAVEL, COM FLANGES LIVRES, 40 MM X 1 1/4", PARA CAIXA D' AGUA | C134: UN | D134: 15.21 | E134: SINAPI-I
A135: 66 | B135: ADAPTADOR PVC SOLDAVEL, COM FLANGES LIVRES, 50 MM X 1 1/2", PARA CAIXA D' AGUA | C135: UN | D135: 17.45 | E135: SINAPI-I
A136: 69 | B136: ADAPTADOR PVC SOLDAVEL, COM FLANGES LIVRES, 60 MM X 2", PARA CAIXA D' AGUA | C136: UN | D136: 25.88 | E136: SINAPI-I
A137: 83 | B137: ADAPTADOR PVC SOLDAVEL, COM FLANGES LIVRES, 75 MM X 2 1/2", PARA CAIXA D' AGUA | C137: UN | D137: 100.69 | E137: SINAPI-I
A138: 74 | B138: ADAPTADOR PVC SOLDAVEL, COM FLANGES LIVRES, 85 MM X 3", PARA CAIXA D' AGUA | C138: UN | D138: 135.64 | E138: SINAPI-I
A139: 106 | B139: ADAPTADOR PVC SOLDAVEL, LONGO, COM FLANGE LIVRE, 110 MM X 4", PARA CAIXA D' AGUA | C139: UN | D139: 277.3 | E139: SINAPI-I
A140: 87 | B140: ADAPTADOR PVC SOLDAVEL, LONGO, COM FLANGE LIVRE, 25 MM X 3/4", PARA CAIXA D' AGUA | C140: UN | D140: 11.48 | E140: SINAPI-I
A141: 88 | B141: ADAPTADOR PVC SOLDAVEL, LONGO, COM FLANGE LIVRE, 32 MM X 1", PARA CAIXA D' AGUA | C141: UN | D141: 13.8 | E141: SINAPI-I
A142: 89 | B142: ADAPTADOR PVC SOLDAVEL, LONGO, COM FLANGE LIVRE, 40 MM X 1 1/4", PARA CAIXA D' AGUA | C142: UN | D142: 20.38 | E142: SINAPI-I
A143: 90 | B143: ADAPTADOR PVC SOLDAVEL, LONGO, COM FLANGE LIVRE, 50 MM X 1 1/2", PARA CAIXA D' AGUA | C143: UN | D143: 23.37 | E143: SINAPI-I
A144: 81 | B144: ADAPTADOR PVC SOLDAVEL, LONGO, COM FLANGE LIVRE, 60 MM X 2", PARA CAIXA D' AGUA | C144: UN | D144: 34.68 | E144: SINAPI-I
A145: 82 | B145: ADAPTADOR PVC SOLDAVEL, LONGO, COM FLANGE LIVRE, 75 MM X 2 1/2", PARA CAIXA D' AGUA | C145: UN | D145: 134.98 | E145: SINAPI-I
A146: 105 | B146: ADAPTADOR PVC SOLDAVEL, LONGO, COM FLANGE LIVRE, 85 MM X 3", PARA CAIXA D' AGUA | C146: UN | D146: 181.81 | E146: SINAPI-I
A147: 60 | B147: ADAPTADOR PVC, COM REGISTRO, PARA PEAD, 20 MM X 3/4", PARA LIGACAO PREDIAL DE AGUA | C147: UN | D147: 4.05 | E147: SINAPI-I
A148: 72 | B148: ADAPTADOR PVC, ROSCAVEL, COM FLANGES E ANEL DE VEDACAO, 1 1/2", PARA CAIXA D'AGUA | C148: UN | D148: 18 | E148: SINAPI-I
A149: 70 | B149: ADAPTADOR PVC, ROSCAVEL, COM FLANGES E ANEL DE VEDACAO, 1 1/4", PARA CAIXA D' AGUA | C149: UN | D149: 18.24 | E149: SINAPI-I
A150: 85 | B150: ADAPTADOR PVC, ROSCAVEL, COM FLANGES E ANEL DE VEDACAO, 2", PARA CAIXA D' AGUA | C150: UN | D150: 26.22 | E150: SINAPI-I
A151: 84 | B151: ADAPTADOR PVC, ROSCAVEL, PARA VALVULA PIA OU LAVATORIO, 40 MM | C151: UN | D151: 0.99 | E151: SINAPI-I
A152: 37997 | B152: ADAPTADOR, CPVC, SOLDAVEL, 15 MM, PARA AGUA QUENTE | C152: UN | D152: 4.21 | E152: SINAPI-I
A153: 37998 | B153: ADAPTADOR, CPVC, SOLDAVEL, 22 MM, PARA AGUA QUENTE | C153: UN | D153: 4.36 | E153: SINAPI-I
A154: 10899 | B154: ADAPTADOR, EM LATAO, ENGATE RAPIDO 2 1/2" X ROSCA INTERNA 5 FIOS 2 1/2", PARA INSTALACAO PREDIAL DE COMBATE A INCENDIO | C154: UN | D154: 38.11 | E154: SINAPI-I
A155: 10900 | B155: ADAPTADOR, EM LATAO, ENGATE RAPIDO1 1/2" X ROSCA INTERNA 5 FIOS 2 1/2", PARA INSTALACAO PREDIAL DE COMBATE A INCENDIO | C155: UN | D155: 29.82 | E155: SINAPI-I
A156: 46 | B156: ADAPTADOR, PVC PBA, BOLSA/ROSCA, JE, DN 75 / DE 85 MM | C156: UN | D156: 18.38 | E156: SINAPI-I
A157: 51 | B157: ADAPTADOR, PVC PBA, A BOLSA DEFOFO, JE, DN 100 / DE 110 MM | C157: UN | D157: 41.76 | E157: SINAPI-I
A158: 12863 | B158: ADAPTADOR, PVC PBA, A BOLSA DEFOFO, JE, DN 50 / DE 60 MM | C158: UN | D158: 12.02 | E158: SINAPI-I
A159: 50 | B159: ADAPTADOR, PVC PBA, A BOLSA DEFOFO, JE, DN 75 / DE 85 MM | C159: UN | D159: 26.45 | E159: SINAPI-I
A160: 47 | B160: ADAPTADOR, PVC PBA, BOLSA/ROSCA, JE, DN 100 / DE 110 MM | C160: UN | D160: 21.98 | E160: SINAPI-I
A161: 48 | B161: ADAPTADOR, PVC PBA, BOLSA/ROSCA, JE, DN 50 / DE 60 MM | C161: UN | D161: 8.58 | E161: SINAPI-I
A162: 52 | B162: ADAPTADOR, PVC PBA, PONTA/ROSCA, JE, DN 50 / DE 60 MM | C162: UN | D162: 4.28 | E162: SINAPI-I
A163: 43 | B163: ADAPTADOR, PVC PBA, PONTA/ROSCA, JE, DN 75 / DE 85 MM | C163: UN | D163: 11.27 | E163: SINAPI-I
A164: 4791 | B164: ADESIVO ACRILICO/COLA DE CONTATO | C164: KG | D164: 17 | E164: SINAPI-I
A165: 157 | B165: ADESIVO ESTRUTURAL A BASE DE RESINA EPOXI PARA INJECAO EM TRINCAS, BICOMPONENTE, BAIXA VISCOSIDADE | C165: KG | D165: 86.32 | E165: SINAPI-I
A166: 156 | B166: ADESIVO ESTRUTURAL A BASE DE RESINA EPOXI, BICOMPONENTE, FLUIDO | C166: KG | D166: 38.53 | E166: SINAPI-I
A167: 131 | B167: ADESIVO ESTRUTURAL A BASE DE RESINA EPOXI, BICOMPONENTE, PASTOSO (TIXOTROPICO) | C167: KG | D167: 36.99 | E167: SINAPI-I
A168: 39719 | B168: ADESIVO LIQUIDO A BASE DE RESINAS PARA COLAGEM DE ESPUMA DE ISOLAMENTO TERMICO FLEXIVEL | C168: L | D168: 60.57 | E168: SINAPI-I
A169: 21114 | B169: ADESIVO PARA TUBOS CPVC, *75* G | C169: UN | D169: 12.97 | E169: SINAPI-I
A170: 119 | B170: ADESIVO PLASTICO PARA PVC, BISNAGA COM 75 GR | C170: UN | D170: 5.12 | E170: SINAPI-I
A171: 20080 | B171: ADESIVO PLASTICO PARA PVC, FRASCO COM 175 GR | C171: UN | D171: 14.68 | E171: SINAPI-I
A172: 122 | B172: ADESIVO PLASTICO PARA PVC, FRASCO COM 850 GR | C172: UN | D172: 46.25 | E172: SINAPI-I
A173: 3410 | B173: ADESIVO/COLA PARA EPS (ISOPOR) E OUTROS MATERIAIS | C173: KG | D173: 19.36 | E173: SINAPI-I
A174: 124 | B174: ADITIVO ACELERADOR DE PEGA E ENDURECIMENTO PARA ARGAMASSAS E CONCRETOS | C174: L | D174: 9.61 | E174: SINAPI-I
A175: 7334 | B175: ADITIVO ADESIVO LIQUIDO PARA ARGAMASSAS DE REVESTIMENTOS CIMENTICIOS | C175: L | D175: 10.3 | E175: SINAPI-I
A176: 7325 | B176: ADITIVO IMPERMEABILIZANTE DE PEGA NORMAL PARA ARGAMASSAS E CONCRETOS SEM ARMACAO | C176: KG | D176: 4.44 | E176: SINAPI-I
A177: 123 | B177: ADITIVO IMPERMEABILIZANTE DE PEGA NORMAL PARA ARGAMASSAS E CONCRETOS SEM ARMACAO | C177: L | D177: 4.27 | E177: SINAPI-I
A178: 127 | B178: ADITIVO IMPERMEABILIZANTE DE PEGA ULTRARRAPIDA | C178: L | D178: 10.03 | E178: SINAPI-I
A179: 133 | B179: ADITIVO LIQUIDO INCORPORADOR DE AR PARA CONCRETO E ARGAMASSA | C179: L | D179: 4.3 | E179: SINAPI-I
A180: 37538 | B180: ADITIVO PLASTIFICANTE E ESTABILIZADOR PARA ARGAMASSAS DE ASSENTAMENTO E REBOCO | C180: 18L | D180: 106.9 | E180: SINAPI-I
A181: 132 | B181: ADITIVO PLASTIFICANTE RETARDADOR DE PEGA E REDUTOR DE AGUA PARA CONCRETO | C181: L | D181: 4.74 | E181: SINAPI-I
A182: 13408 | B182: ADITIVO SUPERPLASTIFICANTE DE PEGA NORMAL PARA CONCRETO (TAMBOR 200 KG) | C182: 200KG | D182: 1684.16 | E182: SINAPI-I
A183: 37476 | B183: ADUELA/GALERIA DE CONCRETO ARMADO, SECAO RETANGULAR 1.50 X 1.50 M (L X A), C = 1.00 M, E = 20 CM | C183: UN | D183: 1188.9 | E183: SINAPI-I
A184: 37478 | B184: ADUELA/GALERIA DE CONCRETO ARMADO, SECAO RETANGULAR 2.00 X 2.00 M (L X A), C = 1.00 M, E = 20 CM | C184: UN | D184: 1681.99 | E184: SINAPI-I
A185: 37477 | B185: ADUELA/GALERIA DE CONCRETO ARMADO, SECAO RETANGULAR 2.50 X 2.50 M (L X A), C = 1.00 M, E = 20 CM | C185: UN | D185: 2058.16 | E185: SINAPI-I
A186: 37479 | B186: ADUELA/GALERIA DE CONCRETO ARMADO, SECAO RETANGULAR 3.00 X 3.00 M (L X A), C = 1.00 M, E = 20 CM | C186: UN | D186: 2573.49 | E186: SINAPI-I
A187: 4319 | B187: AFASTADOR PARA TELHA DE FIBROCIMENTO CANALETE 90 OU KALHETAO | C187: UN | D187: 0.91 | E187: SINAPI-I
A188: 40553 | B188: AGREGADO RECICLADO (RCD), CLASSE A, CINZA, TIPO RACHAO RECICLADO | C188: M3 | D188: 36.25 | E188: SINAPI-I
A189: 13003 | B189: AGUA SANITARIA | C189: L | D189: 1.45 | E189: SINAPI-I
A190: 6114 | B190: AJUDANTE DE ARMADOR | C190: H | D190: 13.19 | E190: SINAPI-I
A191: 40912 | B191: AJUDANTE DE ARMADOR (MENSALISTA) | C191: MES | D191: 2335.32 | E191: SINAPI-I
A192: 247 | B192: AJUDANTE DE ELETRICISTA | C192: H | D192: 17.8 | E192: SINAPI-I
A193: 40919 | B193: AJUDANTE DE ELETRICISTA (MENSALISTA) | C193: MES | D193: 3148.85 | E193: SINAPI-I
A194: 25958 | B194: AJUDANTE DE ESTRUTURAS METALICAS | C194: H | D194: 13.92 | E194: SINAPI-I
A195: 40984 | B195: AJUDANTE DE ESTRUTURAS METALICAS (MENSALISTA) | C195: MES | D195: 2463.51 | E195: SINAPI-I
A196: 248 | B196: AJUDANTE DE OPERACAO EM GERAL | C196: H | D196: 13.66 | E196: SINAPI-I
A197: 41086 | B197: AJUDANTE DE OPERACAO EM GERAL (MENSALISTA) | C197: MES | D197: 2416.5 | E197: SINAPI-I
A198: 6127 | B198: AJUDANTE DE PEDREIRO | C198: H | D198: 12.55 | E198: SINAPI-I
A199: 34466 | B199: AJUDANTE DE PINTOR | C199: H | D199: 13.62 | E199: SINAPI-I
A200: 41083 | B200: AJUDANTE DE PINTOR (MENSALISTA) | C200: MES | D200: 2411.04 | E200: SINAPI-I
A201: 252 | B201: AJUDANTE DE SERRALHEIRO | C201: H | D201: 14.15 | E201: SINAPI-I
A202: 40909 | B202: AJUDANTE DE SERRALHEIRO (MENSALISTA) | C202: MES | D202: 2504.86 | E202: SINAPI-I
A203: 242 | B203: AJUDANTE ESPECIALIZADO | C203: H | D203: 24.57 | E203: SINAPI-I
A204: 41085 | B204: AJUDANTE ESPECIALIZADO (MENSALISTA) | C204: MES | D204: 4344.98 | E204: SINAPI-I
... 13243 more rows

Sheet DADOS GERAIS
A1: NOME PROJETO | B1: UBS CENTRO - AMPLIAÇÃO
A2: PROPRIETÁRIO | B2: PREFEITURA MUNICIPAL DE VITOR MEIRELES
A3: ENDEREÇO | B3: RUA GUIOMARA VENDRAMI
A4: BAIRRO | B4: BAIRRO PALMITOS
A5: CIDADE | B5: VITOR MEIRELES/SC
A6: DESCRIÇÃO | B6: Ampliação da UBS de Vitor Meireles
A7: EXTENSÃO | B7: Área Coberta:130,99 m² Área Externa: 33,79 m² ÁREA TOTAL: 163,88 m²
A8: BDI | B8: =BDI!C38 -> 0.2034
A9: DATA ORÇAMENTO | B9: ABR/2018
A10: REFERENCIA | B10: =FONTE!B2 -> SINAPI - ABRIL/2018 - SEM DESONERAÇÃO
B12: Rio do Sul, 08 de junho de 2018

Sheet FONTE BDI
A1: 1. VALORES DE BDI POR TIPO DE OBRA (2014)
B2: TIPO DE OBRA | C2: 1 Quartil | D2: Médio | E2: 3 Quartil | G2: PIS e COFINS
A3: 1.1 | B3: Construção de Edifícios | C3: 0.2034 | D3: 0.2212 | E3: 0.25 | G3: Todos | H3: 0.0365
A4: 1.2 | B4: Construção de Rodovias e Ferrovias (PRAÇAS) | C4: 0.196 | D4: 0.2097 | E4: 0.2423
A5: 1.3 | B5: Construção de Redes de Abastecimento de Água, Coleta de Esgoto e Construções Correlatas | C5: 0.2076 | D5: 0.2418 | E5: 0.2644
A6: 1.4 | B6: Construção e Manutenção de Estações e Redes de Distribuição de Energia Elétrica | C6: 0.24 | D6: 0.2584 | E6: 0.2786 | G6: Cont.Prev s/Rec.Bruta (Lei 12844/13 - Desoneração)
A7: 1.5 | B7: Obras Portuárias, Marítimas e Fluviais | C7: 0.228 | D7: 0.2748 | E7: 0.3095 | G7: Todos | H7: 0.02
A8: 1.6 | B8: Fornecimento de Materiais e Equipamentos | C8: 0.111 | D8: 0.1402 | E8: 0.168
B11: REFERÊNCIAS MINIMO E MÁXIMO BDI | G11: ISSQN (conforme legislação municipal)
B12: 1.1 Construção de Edifícios | G12: Agrolandia | H12: 0.03
B13: PARCELA DO BDI | C13: 1 Quartil | D13: Médio | E13: 3 Quartil | G13: Aurora | H13: 0.02
B14: Administração Central | C14: 0.03 | D14: 0.04 | E14: 0.055 | G14: Atalanta | H14: 0.03
B15: Seguro e Garantia | C15: 0.008 | D15: 0.008 | E15: 0.01 | G15: Braço do Trombudo | H15: 0.05
B16: Risco | C16: 0.0097 | D16: 0.0127 | E16: 0.0127 | G16: Chapadão do Lageado | H16: 0.025
B17: Despesas Financeiras | C17: 0.0059 | D17: 0.0123 | E17: 0.0139 | G17: Dona emma | H17: 0.02
B18: Lucro | C18: 0.0616 | D18: 0.074 | E18: 0.0896 | G18: Ibirama | H18: 0.025
B19: PIS, COFINS e ISSQN | C19: Conforme legislação específica | G19: Imbuia | H19: 0.03
G20: Ituporanga | H20: 0.03
B21: 1.2 Construção de Rodovias e Ferrovias | G21: Jose Boiteux | H21: 0.03
B22: PARCELA DO BDI | C22: 1 Quartil | D22: Médio | E22: 3 Quartil | G22: Laurentino | H22: 0.015
B23: Administração Central | C23: 0.038 | D23: 0.0401 | E23: 0.0467 | G23: Lontras | H23: 0.03
B24: Seguro e Garantia | C24: 0.0032 | D24: 0.004 | E24: 0.0074 | G24: Mirim doce | H24: 0.02
B25: Risco | C25: 0.005 | D25: 0.0056 | E25: 0.0097 | G25: Pouso Redondo | H25: 0.03
B26: Despesas Financeiras | C26: 0.0102 | D26: 0.0111 | E26: 0.0121 | G26: Presidente Getulio | H26: 0.02
B27: Lucro | C27: 0.0664 | D27: 0.073 | E27: 0.0869 | G27: Presidente Nereu | H27: 0.015
B28: PIS, COFINS e ISSQN | C28: Conforme legislação específica | G28: Rio do Campo | H28: 0.03
G29: Rio do Oeste | H29: 0.05
B30: 1.3 Construção de Redes de Abastecimento de Água, Coleta de Esgoto e Construções Correlatas | G30: Rio do Sul | H30: 0.02
B31: PARCELA DO BDI | C31: 1 Quartil | D31: Médio | E31: 3 Quartil | G31: Salete | H31: 0.02
B32: Administração Central | C32: 0.0343 | D32: 0.0493 | E32: 0.0671 | G32: Santa Terezinha | H32: 0.03
B33: Seguro e Garantia | C33: 0.0028 | D33: 0.0049 | E33: 0.0075 | G33: Taio | H33: 0.02
B34: Risco | C34: 0.01 | D34: 0.0139 | E34: 0.0174 | G34: Trombudo Central | H34: 0.03
B35: Despesas Financeiras | C35: 0.0094 | D35: 0.0099 | E35: 0.0117 | G35: Vidal Ramos | H35: 0.04
B36: Lucro | C36: 0.0674 | D36: 0.0804 | E36: 0.094 | G36: Vitor Meireles | H36: 0.03
B37: PIS, COFINS e ISSQN | C37: Conforme legislação específica | G37: Witmarsum | H37: 0.03
B39: 1.4 Construção e Manutenção de Estações e Redes de Distribuição de Energia Elétrica
B40: PARCELA DO BDI | C40: 1 Quartil | D40: Médio | E40: 3 Quartil
B41: Administração Central | C41: 0.0529 | D41: 0.0592 | E41: 0.0793
B42: Seguro e Garantia | C42: 0.0025 | D42: 0.0051 | E42: 0.0056
B43: Risco | C43: 0.01 | D43: 0.0148 | E43: 0.0197
B44: Despesas Financeiras | C44: 0.0101 | D44: 0.0107 | E44: 0.0111
B45: Lucro | C45: 0.08 | D45: 0.0831 | E45: 0.0951
B46: PIS, COFINS e ISSQN | C46: Conforme legislação específica
B48: 1.5 Portuárias, Marítimas e Fluviais
B49: PARCELA DO BDI | C49: 1 Quartil | D49: Médio | E49: 3 Quartil
B50: Administração Central | C50: 0.04 | D50: 0.0552 | E50: 0.0785
B51: Seguro e Garantia | C51: 0.0081 | D51: 0.0122 | E51: 0.0199
B52: Risco | C52: 0.0146 | D52: 0.0232 | E52: 0.0316
B53: Despesas Financeiras | C53: 0.0094 | D53: 0.0102 | E53: 0.0133
B54: Lucro | C54: 0.0714 | D54: 0.084 | E54: 0.1043
B55: PIS, COFINS e ISSQN | C55: Conforme legislação específica
B57: 1.6 Fornecimento de Materiais e Equipamentos
B58: PARCELA DO BDI | C58: 1 Quartil | D58: Médio | E58: 3 Quartil
B59: Administração Central | C59: 0.015 | D59: 0.0345 | E59: 0.0449
B60: Seguro e Garantia | C60: 0.003 | D60: 0.0048 | E60: 0.0082
B61: Risco | C61: 0.0056 | D61: 0.0085 | E61: 0.0089
B62: Despesas Financeiras | C62: 0.0085 | D62: 0.0085 | E62: 0.0111
B63: Lucro | C63: 0.035 | D63: 0.0511 | E63: 0.0622
B64: PIS, COFINS e ISSQN | C64: Conforme legislação específica
G517: COM003
G529: COM004
A531: =J531 -> 0 | B531: 32.25 | C531: m2
A532: =J532 -> 0 | B532: 3.23 | C532: m3
A533: 0 | B533: 70.95 | C533: kg
A534: 0 | B534: 3.23 | C534: m3
A535: 0 | B535: 2 | C535: un
A536: =J536 -> 0 | B536: 7.44 | C536: m2 | F536: COM003

Sheet BDI com desoneração
A2: COMPOSIÇÃO DE BDI COM DESONERAÇÃO
A5: O valor do BDI é obtido pela fórmula e taxas abaixo
A9: FÓRMULA BDI
A12: BDI= | B12: (1+AC+S+R+G)(1+DF)(1+L) | C12: -1
B13: _______________________________________
B14: (1-I)
A17: ONDE:
A18: AC= taxa de administração central | D18: 0.03
A19: S=taxa de seguros | D19: 0.004
A20: G=taxa de garantias | D20: 0.004
A21: R=taxa de riscos | D21: 0.0097
A22: DF=taxa de despesas financeiras | D22: 0.0059
A23: L=taxa de lucro / remuneração | D23: 0.0616
A24: I=taxa de incidência de impostos (EMPRESA DESONERADA) | D24: =SUM(C25:C27) -> 0.1115
B25: I1: PIS e COFINS | C25: 0.0365
B26: I2: ISSQN (conforme legislação municipal) | C26: 0.03
B27: I3: Cont.Prev s/Rec.Bruta (Lei 12844/13 - Desoneração) | C27: 0.045
B28: ∑ | C28: =SUM(C25:C27) -> 0.1115
A30: TEMOS ENTÃO ENTRANDO COM OS DADOS NA FÓRMULA
A32: BDI = | B32: =(((1+D18+D19+D21+D20)*(1+D22)*(1+D23))/(1-D24))-1 -> 0.2592014925
B35: 2.2. Para o tipo de obra “Construção de Edifícios”: | G35: VALORES DE BDI POR TIPO DE OBRA
B36: PARCELA DO BDI | C36: 1 Quartil | D36: Médio | E36: 3 Quartil | G36: TIPO DE OBRA | H36: 1 Quartil | I36: Médio | J36: 3 Quartil
B37: Administração Central | C37: 0.03 | D37: 0.04 | E37: 0.055 | G37: Construção de Edifícios | H37: 0.2034 | I37: 0.2212 | J37: 0.25
B38: Seguro e Garantia | C38: 0.008 | D38: 0.008 | E38: 0.01 | G38: Construção de Rodovias e Ferrovias | H38: 0.196 | I38: 0.2097 | J38: 0.2423
B39: Risco | C39: 0.0097 | D39: 0.0127 | E39: 0.0127 | G39: Construção de Redes de Abastecimento de Água, Coleta de Esgoto e Construções Correlatas | H39: 0.2076 | I39: 0.2418 | J39: 0.2644
B40: Despesas Financeiras | C40: 0.0059 | D40: 0.0123 | E40: 0.0139 | G40: Construção e Manutenção de Estações e Redes de Distribuição de Energia Elétrica | H40: 0.24 | I40: 0.2584 | J40: 0.2786
B41: Lucro | C41: 0.0616 | D41: 0.074 | E41: 0.0896 | G41: Obras Portuárias, Marítimas e Fluviais | H41: 0.228 | I41: 0.2748 | J41: 0.3095
B42: PIS, COFINS e ISSQN | C42: Conforme legislação específica | G42: Fornecimento de Materiais e Equipamentos | H42: 0.111 | I42: 0.1402 | J42: 0.168
B45: 2.3. Para o tipo de obra “Construção de Rodovias e Ferrovias, Praças”:
B46: PARCELA DO BDI | C46: 1 Quartil | D46: Médio | E46: 3 Quartil
B47: Administração Central | C47: 0.038 | D47: 0.0401 | E47: 0.0467
B48: Seguro e Garantia | C48: 0.0032 | D48: 0.004 | E48: 0.0074
B49: Risco | C49: 0.005 | D49: 0.0056 | E49: 0.0097
B50: Despesas Financeiras | C50: 0.0102 | D50: 0.0111 | E50: 0.0121
B51: Lucro | C51: 0.0664 | D51: 0.073 | E51: 0.0869
B52: PIS, COFINS e ISSQN | C52: Conforme legislação específica
B55: 2.4. Para o tipo de obra “Construção de Redes de Abastecimento de Água, Coleta de Esgoto e Construções Correlatas”:
B56: PARCELA DO BDI | C56: 1 Quartil | D56: Médio | E56: 3 Quartil
B57: Administração Central | C57: 0.0343 | D57: 0.0493 | E57: 0.0671
B58: Seguro e Garantia | C58: 0.0028 | D58: 0.0049 | E58: 0.0075
B59: Risco | C59: 0.01 | D59: 0.0139 | E59: 0.0174
B60: Despesas Financeiras | C60: 0.0094 | D60: 0.0099 | E60: 0.0117
B61: Lucro | C61: 0.0674 | D61: 0.0804 | E61: 0.094
B62: PIS, COFINS e ISSQN | C62: Conforme legislação específica
B65: 2.5. Para o tipo de obra “Construção e Manutenção de Estações e Redes de Distribuição de Energia Elétrica”
B67: PARCELA DO BDI | C67: 1 Quartil | D67: Médio | E67: 3 Quartil
B68: Administração Central | C68: 0.0529 | D68: 0.0592 | E68: 0.0793
B69: Seguro e Garantia | C69: 0.0025 | D69: 0.0051 | E69: 0.0056
B70: Risco | C70: 0.01 | D70: 0.0148 | E70: 0.0197
B71: Despesas Financeiras | C71: 0.0101 | D71: 0.0107 | E71: 0.0111
B72: Lucro | C72: 0.08 | D72: 0.0831 | E72: 0.0951
B73: PIS, COFINS e ISSQN | C73: Conforme legislação específica
B76: 2.6. Para o tipo de obra “Portuárias, Marítimas e Fluviais”:
B77: PARCELA DO BDI | C77: 1 Quartil | D77: Médio | E77: 3 Quartil
B78: Administração Central | C78: 0.04 | D78: 0.0552 | E78: 0.0785
B79: Seguro e Garantia | C79: 0.0081 | D79: 0.0122 | E79: 0.0199
B80: Risco | C80: 0.0146 | D80: 0.0232 | E80: 0.0316
B81: Despesas Financeiras | C81: 0.0094 | D81: 0.0102 | E81: 0.0133
B82: Lucro | C82: 0.0714 | D82: 0.084 | E82: 0.1043
B83: PIS, COFINS e ISSQN | C83: Conforme legislação específica
B86: 2.7. Para “Fornecimento de Materiais e Equipamentos”:
B87: PARCELA DO BDI | C87: 1 Quartil | D87: Médio | E87: 3 Quartil
B88: Administração Central | C88: 0.015 | D88: 0.0345 | E88: 0.0449
B89: Seguro e Garantia | C89: 0.003 | D89: 0.0048 | E89: 0.0082
B90: Risco | C90: 0.0056 | D90: 0.0085 | E90: 0.0089
B91: Despesas Financeiras | C91: 0.0085 | D91: 0.0085 | E91: 0.0111
B92: Lucro | C92: 0.035 | D92: 0.0511 | E92: 0.0622
B93: PIS, COFINS e ISSQN | C93: Conforme legislação específica

Sheet Mercado
B2: NEMA - CNPJ: 80.756.893/0001-39 Fone: (47) 3531-8700 / 9 8825-2978 Contato: Simone Budag Diel
B3: Elétrica Bom Pastor - Rio do Sul - CNPJ: 03.009.360.0001-18 Fone: (47) 3521-4249 - 9 8882-3022 Contato: Diogo Ramos
B4: Nardelli Mat. Cons. - CNPJ: 75.862.961.0002-95 Fone: (47) 3525-6700 - 9 8814-6137 - 9 8886-2548 Contato: Vilando Vieira
B5: Tonet Materiais de Construção - CNPJ: 80.653.918/0003-30 Fone: (47) 3531-7400 - 9 8814-6137 Contato: Genesio Hasse
B6: Comercial Versátil Ltda - CNPJ: 85.776.441.0001-32 Fone: (47) 3521-0294 - 9 9929-5039 Contato: Sandro S. Gonçalves | C6: eletrico
B7: Fronza Artefatos de Cimento - Rio do Sul - CNPJ: 79.695.086.0001-74 Fone: (47) 3525-2719 Contato: Elvis Fronza | C7: pre moldado
B8: Fronza Artefatos de Cimento - Rio do Sul - CNPJ: 79.695.086.0001-74 Fone: (47) 3525-2719 Contato: Aldo Fronza
B9: Afubra - CNPJ: 74.072.513/0003-06 Fone: (47) 3525-8750 Contato Simone Ramon
B11: ARG Industrial - CNPJ: 04.415.095/0001-65 Fone: (47) 3562-2020 Contato: Otávio Trevizan | C11: acm e metalica
B12: BAUER & SCHMITT - CNPJ: 07.747.162/0001-37 Fone: (47) 3334-3727 Contato: Greice Schmitt | C12: acm e metalica
B13: TONON - CNPJ: 05.018.077/0001-02 Fone: (47) 3521-4965 Contato: Ademir Torinelli | C13: acm e metalica
B14: Metálica Canoas - CNPJ 03.774.195/0001-15 Fone: (47) 3522-1135 - 9 9181-4259 Contato: Eduardo Voigt
B15: Tonon Soluções Metalicas - CNPJ 05.018.077/0001-02 Fone: (47) 3521-4965 Contato: Deisiani
B19: Pedra Girardi - CNPJ: 05.134.001/0001-42 - Tel.: (47) 3522-2642 - Contato Ivone
B20: Pedras Molinari - CNPJ: 14.564.706/0001-90 - Tel.: (47) 3546-2830 - Contato: Cleber
B21: Pedras Rampeloti - CNPJ 04.463.986/0001-97 - Tel.: (47) 3334-0061 - Contato: Ivana
A23: acessibilidade | B23: Total Acessibilidade CNPJ: 121.270.024.0001-95 - Tel. (47) 3346 1175 - Itajai - Contato Sabrina Fortunato
A24: acessibilidade | B24: Zeus do Brasil - CNPJ: 82.699.588.0001-88 Fone: (47) 3231-1111 Contato: Juliana Siste
A25: acessibilidade | B25: Tatil inox acessibilidade (mundo tatil) - (11) 4343-7353 - Bragança Paulista- SP - Contato Carlos
A26: acessibilidade | B26: Bralarmseg Equipamentos Eletrônicos Ltda (41) 3045-9744
A27: acessibilidade | B27: Casa do Braille - CNPJ 093.798.31.0001.90 - Fone - (11) 4997 2611 - Contato Tatiana Fernandes
A28: acessibilidade | B28: Andaluz Acessibilidade CNPJ : 05.598.129/0001-67 - (11) 3733-5997 - Carlos | D28: http://www.andaluzacessibilidade.com.br/
D29: http://www.tatilinox.com.br/
B30: Casa do Braile - (11) 4997 2611 | D30: http://www.casadobraille.com.br/
B32: D'arruda comercio de Madeiras -CNPJ: 13.217.924/0001-96 - Tel: (47) 3542-0100 - Agronomica/SC Contato
B33: Ecotrat - CNPJ: 16.835.440/0001-07- Tel: (47) 9 9268-1508 - Rio do Sul/SC - Contato Juliana Schlemper
B34: Madesch comércio de madeiras - CNPJ: 80.653.504/0001-40 - Tel: (47) 3533-5171 -Aurora/SC - Contato Neri Schlemper Junior -
A37: academia | B37: Paulo Ziober Equipamentos Metalurgicos LTDA- Maringá/PR - CNPJ: 08.374.053/0001-84 - Tel.: (44) 3029-4410 - Contato: Ana Lima | D37: vendaspublico2@zioberbrasil.com.br
A38: academia | B38: Milla Equipamentos Metalúrgicos LTDA-ME - Av. Brasília, nº461 - Paulina, SP - CNPJ: 10.555.495/0001-84 - (19) 3363 1051 -Contato Tatiana Demetrio
A39: academia | B39: DOMINGOS MALAGUTTI - EPP (Playlandia) CNPJ: 12.662.890/0001-86 Tel: (49) 3322-1625
A40: academia | B40: PHYSICUS COMERCIO DE ARTIGOS ESPORTIVOS LTDA CNPJ: 11.538.866/0001-77 Tel: (17) 3482-9500
A41: academia - não vende mais | B41: Askein Equipamentos LTDA - Chapecó/SC - CNPJ: 76.344.795/0001-17 - Tel.: (49)3322-1625 - Contato: Leticia | D41: vendas4@mobilebras.com
A42: academia | B42: Mobilebras produtos e serviços - 47 3373-3491
A45: academia | B45: Escobrinq Ltda EPP -
A46: academia | B46: Academia Livre - 45 3254-7056
A47: academia | B47: Tryanon equipamentos - 19 3016-4553
A48: academia | B48: Ginast - 19 3113-5400
B54: kiT Poste Vargas - Rio do Sul - CNPJ 26.943.141/0001-31 -Fone (47) 9645-5764 / (47) 9998-9919 - Contato - Robison Carlos Vargas
A57: meio fio- tubo - paver | B57: Fronza Artefatos de Cimento - Rio do Sul - CNPJ: 79.695.086.0001-74 - 3525-2719 - Aldo Fronza
B58: Cimentari Artefatos de cimento - Rio do Sul - CNPJ:04.342.079/0001-90 - Tel 47 3525 0083 - Gabriela Fronza
A59: meio fio- tubo - paver | B59: Kurtz Mat. De Construção - Ituporanga - CNPJ: 07.990.747.0001-83 - 3533- 5959 - Charles Franco
A62: paver | B62: Blocos Leske - Lontras - CNPJ: 03.972.712.0001-60 - 3523-0519 - Tagor Leske
A64: bando de praça de plastico | B64: Engeplas - CNPJ 05.051.606/0001-70 - Tel. (41) 3338-7790 - Nelson Lombardi
A69: granito e marmore | B69: Marmoraria O.M. Ind. E Com. LTDA - CNPJ: 83.780.593/0001-83 - Rio do Sul/SC - Contato; Tiago - 3525-0326
B70: Mármores e Granitos Souza - Rio do sul/SC - Contato: Edelson Souza - 3531-4224
B71: JA Granitos - CNPJ - 3521-6327 - Contato: Silvana Goedert Batista
A75: Parede Dry Wall Placa Cimentícia Dos 2 Lados (7 cm FERRO +2,2cm PLACAS) | B75: Máquinas Sul - CNPJ: 05401865/000183 - Tel.: (47) 3522-2533 - (47) 3521-1229
B76: Arte Gesso - CNPJ: 12.397.703/0001-84 - Itajaí/SC - Tel.: (47) 3338-0203
B77: Diviblu Divisórias - Tel.: (47) 3336-1313 - Blumenal/SC - CNPJ: 05.693.532/0001-75
